Workbook

Sheet Data_Main (hidden)
B4: Year | C4: 2018 | D4: Enter
B5: Year_Long | C5: =m_year&"/"&m_year+1 -> 2018/2019 | D5: Calculated
B6: Year_Short | C6: =RIGHT(m_year,2)&"/"&RIGHT(m_year,2)+1 -> 18/19 | D6: Calculated
B9: MODEL VERSION | C9: 3
B11: show_disclaimer | C11: TRUE | D11: Calculated

Sheet Data_Sheets (hidden)
B10: Sheet | C10: State(show to keep sheet visible or blank to hide)
B11: Data_Main
B12: Data_Sheets
B13: DV_TABLES
B14: Instructions | C14: Show
B15: Main | C15: Show
B16: Summary | C16: Show
B17: Prime Lambs Input
B18: Prime Lambs
B19: Prime Lambs Merino Ewes Input
B20: Prime Lambs Merino Ewes
B21: Merino SR Input
B22: Merino SR
B23: Wethers Input
B24: Wethers
B25: Cleanskin Sheep Input
B26: Cleanskin Sheep
B27: GM_INFO
B28: Beef Input
B29: Beef

Sheet DV_TABLES (hidden)

Sheet Instructions
B7: ="Livestock Farm Gross Margin Guide -"&TEXT(m_year,"0000") -> Livestock Farm Gross Margin Guide -2018
B8: This spreadsheet can take a few moments to load
B9: PLEASE NOTE:THIS VERSION WILL ONLY WORK WITH EXCEL VERSIONS 2007 & ABOVE FOR WINDOWS ONLY. It will not work with Excel for Mac, Ipad, Android, tablets etc.
B11: Before You Start
B12: Before you start you will need to enable macros.
B13: This may appear as a Security Warning at the top of your page. To do this, click on “Enable Content”.
B14: Clicking “Enable Content” allows you to enter data into the Excel Worksheet.
B22: You may also see a message about "PROTECTED VIEW". Please click "Enable Editing".
B29: Yellow cells = data entry (some yellow cells contain formulas, these usually represent default
B30: values but may be over written. To revert back to the default value formula click the blue 'Reset…'
B31: link next to the cell.
B32: Blue cells contain formulas, are protected and can not be overwritten.
B46: Before you begin in the Main sheet please select the Livestock types you will be using:
B76: For technical support or to report errors/omissions regarding this spreadsheet please
B77: email Barry Mudge at:
C78: theoaks5@bigpond.com

Sheet Main
C3: ="FARM GROSS MARGIN GUIDE - "&TEXT(m_year,"0000") -> FARM GROSS MARGIN GUIDE - 2018 | G3: ="Version-"&TEXT(MODEL_VERSION,"0.0") -> Version-3.0
C6: by clicking checkboxes or All or None buttons
B7: FALSE | C7: Prime Lambs 1st Cross Ewes
B8: FALSE | C8: Prime Lambs Merino Ewes
B9: FALSE | C9: Merino SR
B10: FALSE | C10: Wethers
B11: FALSE | C11: Cleanskin Sheep
B12: FALSE | C12: Beef

Sheet Summary
B2: ="GROSS MARGINS SUMMARY - "&TEXT(m_year,"0000") -> GROSS MARGINS SUMMARY - 2018
D4: Gross Margin
B5: Type | C5: No of head
B6: Prime Lambs 1st Cross Ewes | C6: ='Prime Lambs Input'!E7*rng_Prime_Lambs_DATA -> 0 | D6: ='Prime Lambs'!Q174*rng_Prime_Lambs_DATA -> 0 | E6: ='Prime Lambs'!Q172*rng_Prime_Lambs_DATA -> 0 | F6: ='Prime Lambs'!Q37*rng_Prime_Lambs_DATA -> 0 | G6: ='Prime Lambs'!Q170*rng_Prime_Lambs_DATA -> 0
B7: Prime Lambs Merino Ewes | C7: ='Prime Lambs Merino Ewes Input'!E7*rng_Prime_LambsMerino_DATA -> 0 | D7: ='Prime Lambs Merino Ewes'!Q174*rng_Prime_LambsMerino_DATA -> 0 | E7: ='Prime Lambs Merino Ewes'!Q172*rng_Prime_LambsMerino_DATA -> 0 | F7: ='Prime Lambs Merino Ewes'!Q37*rng_Prime_LambsMerino_DATA -> 0 | G7: ='Prime Lambs Merino Ewes'!Q170*rng_Prime_LambsMerino_DATA -> 0
B8: Merino SR | C8: ='Merino SR Input'!E7*rng_Merino_SR_DATA -> 0 | D8: ='Merino SR'!Q174*rng_Merino_SR_DATA -> 0 | E8: ='Merino SR'!Q172*rng_Merino_SR_DATA -> 0 | F8: ='Merino SR'!Q37*rng_Merino_SR_DATA -> 0 | G8: ='Merino SR'!Q170*rng_Merino_SR_DATA -> 0
B9: Wethers | C9: ='Wethers Input'!E7*rng_Whethers_DATA -> 0 | D9: =Wethers!Q7*rng_Whethers_DATA -> 0 | E9: =Wethers!Q172*rng_Whethers_DATA -> 0 | F9: =Wethers!Q37*rng_Whethers_DATA -> 0 | G9: =Wethers!Q170*rng_Whethers_DATA -> 0
B10: Cleanskin Sheep | C10: ='Cleanskin Sheep Input'!E7*rng_Cleanskin_Sheep_DATA -> 0 | D10: ='Cleanskin Sheep'!Q174*rng_Cleanskin_Sheep_DATA -> 0 | E10: ='Cleanskin Sheep'!Q172*rng_Cleanskin_Sheep_DATA -> 0 | F10: ='Cleanskin Sheep'!Q37*rng_Cleanskin_Sheep_DATA -> 0 | G10: ='Cleanskin Sheep'!Q170*rng_Cleanskin_Sheep_DATA -> 0
B11: Beef | C11: ='Beef Input'!E15*rng_Beef_DATA -> 0 | D11: =Beef!Q174*rng_Beef_DATA -> 0 | E11: =Beef!Q172*rng_Beef_DATA -> 0 | F11: =Beef!Q41*rng_Beef_DATA -> 0 | G11: =Beef!Q170*rng_Beef_DATA -> 0
B12: TOTAL | E12: =SUM(E6:E11) -> 0 | F12: =SUM(F6:F11) -> 0 | G12: =SUM(G6:G11) -> 0

Sheet Prime Lambs Input (hidden)
C1: Prime Lambs (1st cross ewes)
C2: =UPPER(var_animal)&" GROSS MARGIN - "&TEXT(m_year,"0000") -> PRIME LAMBS (1ST CROSS EWES) GROSS MARGIN - 2018
C4: GENERAL INFORMATION
C5: This represents a First Cross Ewe enterprise (Merino X Border Liecester) mated to a terminal sire. All ewe replacements are purchased, but age of replacements can be varied from 1.5 years to 4.5 years. Following are the various assumptions used in the calculation of the Gross Margin. Cells with yellow highlight can be changed.
C7: Ewes mated | E7: 1000
C8: Age ewes purchased | E8: 1.5
C9: Age ewes sold | E9: 6.5
C10: Av Weaning % | E10: 1.15
C11: Ram percentage | E11: 0.02
C12: Years Rams Kept | E12: 3
C13: Flock death Rate | E13: 0.03
C14: % Lambs carried over | E14: 0
C17: LIVESTOCK SALES | E17: Price/Hd | F17: Number | G17: Total
C18: c.f.a Ewes | E18: 110 | F18: =ROUND('Prime Lambs'!AG220,1) -> 182.4 | G18: =E18*F18 -> 20064
C19: c.f.a Rams | E19: 50 | F19: =ROUND('Prime Lambs'!AG238,0) -> 6 | G19: =E19*F19 -> 300
C20: Lambs | E20: 140 | F20: =ROUND('Prime Lambs'!AG227,0) -> 1150 | G20: =E20*F20 -> 161000
C25: TOTAL SALES | F25: =SUM(F18:F23) -> 1338.4 | G25: =SUM(G18:G23) -> 181364
C28: LIVESTOCK PURCHASES | E28: Price/Hd | F28: Number | G28: Total
C29: Ewes | E29: 280 | F29: ='Prime Lambs'!AD220 -> 212.3653636 | G29: =E29*F29 -> 59462.30181
C30: Rams | E30: 1500 | F30: ='Prime Lambs'!AD238 -> 6.870727266 | G30: =E30*F30 -> 10306.0909
C32: TOTAL PURCHASES | F32: =SUM(F29:F30) -> 219.2360909 | G32: =SUM(G29:G30) -> 69768.39271
C35: WOOL PRICE (cents/kg) | F35: =TEXT(m_year-3,"0000")&" Average (Clean)" -> 2015 Average (Clean) | G35: =TEXT(m_year-2,"0000")&" Average (Clean)" -> 2016 Average (Clean) | H35: =TEXT(m_year-1,"0000")&" Average (Clean)" -> 2017 Average (Clean) | I35: Budget Base (Clean) | J35: Budget Base (Greasy)
E36: Wool- High Rainfall 28 mic 70% yield | F36: 867 | G36: 774 | H36: 756 | I36: 750 | J36: 525
C37: Allow 90% to account for lower value of bellies, skirtings etc. | J37: =J36*0.9 -> 472.5
C41: WOOL SALES - SHEARING | F41: Wool Cut
E42: Number | F42: kg/hd | G42: Price | H42: Total
C43: Ewes | E43: ='Prime Lambs'!E226 -> 970 | F43: 4.5 | G43: =J37/100 -> 4.725 | H43: =E43*F43*G43 -> 20624.625
C44: Crossbred Rams | E44: ='Prime Lambs'!E227 -> 19.4 | F44: 3 | G44: =GM_INFO!F98*0.9/100 -> 3.6 | H44: =E44*F44*G44 -> 209.52
C46: TOTAL | E46: =SUM(E43:E45) -> 989.4 | F46: =(E43*F43)+(E44*F44) -> 4423.2 | H46: =SUM(H43:H45) -> 20834.145
C49: STOCK HEALTH REQUIREMENTS
G50: Number of times
E51: Number | F51: Drench | G51: Vacc. | H51: Blowfly
C52: Ewes | E52: ='Prime Lambs'!E219 -> 1000 | F52: 2 | G52: 1 | H52: 1
C53: Rams | E53: ='Prime Lambs'!E220 -> 20 | F53: 2 | G53: 1 | H53: 0
C54: Lambs | E54: ='Prime Lambs'!E221 -> 1150 | F54: 1 | G54: 2 | H54: 0
C56: TOTAL | E56: =SUM(E52:E54) -> 2170 | F56: =SUMPRODUCT($E$52:$E$54,F52:F54) -> 3190 | G56: =SUMPRODUCT($E$52:$E$54,G52:G54) -> 3320 | H56: 1000
C59: FEEDING
C60: HAY | F60: Hay | G60: Kgs Fed | H60: No Weeks | I60: Total
E61: Number | F61: Cost ($/T) | G61: per Week | H61: of Feeding | I61: Cost ($)
C62: Ewes | E62: ='Prime Lambs'!E219 -> 1000 | F62: 180 | G62: 2.5 | H62: 8 | I62: =(H62*G62*E62)/1000*F62 -> 3600
C63: Rams | E63: ='Prime Lambs'!E220 -> 20 | F63: 180 | G63: 2.5 | H63: 8 | I63: 72
C64: Lambs | E64: ='Prime Lambs'!E221 -> 1150 | F64: 200 | I64: 0
C66: GRAIN | F66: Grain | G66: Kgs Fed | H66: No weeks | I66: Total
E67: Number | F67: Cost ($/T) | G67: per week | H67: of Feeding | I67: Cost ($)
C68: Ewes | E68: ='Prime Lambs'!E219 -> 1000 | F68: 225 | G68: 3 | H68: 8 | I68: =(H68*G68*E68)/1000*F68 -> 5400
C69: Rams | E69: ='Prime Lambs'!E220 -> 20 | F69: 225 | G69: 3 | H69: 10 | I69: 135
C70: Lambs | E70: ='Prime Lambs'!E221 -> 1150 | I70: 0
H72: Total Feed Cost | I72: =SUM(I62:I64,I68:I70) -> 9207

Sheet Prime Lambs (hidden)
C1: Prime Lambs (1st cross ewes)
C2: =UPPER(Var_Animal)&" GROSS MARGIN - "&TEXT(m_year,"0000") -> PRIME LAMBS (1ST CROSS EWES) GROSS MARGIN - 2018
C4: ASSUMPTIONS
C6: Ave Breeding Ewe Fibre Diameter | E6: 28 | O6: Total DSE's | Q6: =E197 -> 1840
C7: No. of breeding ewes (1st Cross) | E7: ='Prime Lambs Input'!$E$7 -> 1000
C8: 1st cross ewe - Terminal meat sire
C32: INCOME | Q32: $
C34: Wool (kg greasy) | E34: =G234 -> 4423.2 | G34: kg | I34: av price | K34: =K234*100/G234 -> 471.0197368 | M34: c/kg | Q34: =K234 -> 20834.145
C35: Sales | E35: =E212 -> 1338 | G35: animals | I35: av price | K35: =G212 -> 135.5156951 | M35: /head | Q35: =E212*G212 -> 181320
C37: Gross Income | Q37: =SUM(Q34:Q35) -> 202154.145
AA45: STOCK VALUE AND D.S.E REQUIREMENT | AG45: Non lamb related expenses | AM45: Lamb Costs | AN45: No: | AO45: per head | AS45: SHEEP GROSS MARGIN
C46: VARIABLE COSTS | AC46: Value | AD46: Ave Live | AE46: DSE | AS46: PRIME LAMB -
C47: Shearing | K47: Rate | AB47: Number | AC47: $/head | AD47: Wt (Kgs) | AE47: rating | AG47: Shearing | AJ47: =SUM(Q48:Q58) -> 8428.756134 | AM47: Marking | AN47: =$E$121 -> 1150 | AO47: =K76+K77 -> 1.55 | AP47: =AN47*AO47 -> 1782.5
C48: Shearing | E48: =E226 -> 970 | G48: sheep | I48: Reset Rate> | J48: =GM_INFO!C30 | K48: =GM_INFO!C30 -> 301.96 | M48: /100 | Q48: =K48/100*ROUND(E48,0) -> 2929.012 | AA48: ewes | AB48: ='Prime Lambs Input'!$E$7 -> 1000 | AC48: =(G209+G214)/2 -> 195 | AD48: 60 | AE48: =IF(AND(AD48>=55,AD48<60),1.7,IF(AND(AD48>=60,AD48<65),1.8,IF(AND(AD48>=65,AD48<70),1.9,IF(AND(AD48>=70,AD48<75),2,IF(AND(AD48>=75,AD48<80),2.1,IF(AND(AD48>=80,AD48<85),2.2,IF(AND(AD48>=85,AD48<90),2.3,IF(AD48>=90,2.4,0)))))))) -> 1.8 | AG48: Animal health | AJ48: =(E219*G219+E220*G220)*K90+(E219*I219+E220*I220)*K91+(E219*K219)*K92 -> 2517.88 | AM48: Animal health | AN48: 1150 | AO48: =G220*K91+I220*K90 -> 1.092 | AP48: =AN48*AO48 -> 1255.8
C49: (Federal awards) | E49: =E227 -> 19.4 | G49: rams | I49: Reset Rate> | J49: =GM_INFO!C31 | K49: =GM_INFO!C31 -> 603.92 | M49: /100 | Q49: 114.7448 | AA49: rams | AB49: ='Prime Lambs Input'!E11*'Prime Lambs'!AB48 -> 20 | AC49: =(G210+G215)/2 -> 775 | AD49: 100 | AE49: 2 | AG49: Stock Purchase | AJ49: =SUM(Q105:Q105) -> 69860 | AM49: Freight | AN49: 1150 | AO49: =K121 -> 4 | AP49: =AN49*AO49 -> 4600
C50: Shed labour | E50: 5 | G50: days | I50: Reset Rate> | J50: =GM_INFO!C32 | K50: =GM_INFO!C32 -> 227.68 | M50: /day | Q50: =K50*ROUND(E50,0) -> 1138.4 | AA50: lambs | AB50: =AC227 -> 1150 | AC50: =G211/2 -> 70 | AD50: 35 | AE50: 0 | AG50: Freight | AH50: sheep | AJ50: =SUM(Q119:Q120) -> 1600 | AM50: Yard Fees | AN50: 1150 | AO50: =K125 -> 0.85 | AP50: =AN50*AO50 -> 977.5
C51: Woolclasser | E51: 2.5 | G51: days | I51: Reset Rate> | J51: =GM_INFO!C33 | K51: =GM_INFO!C33 -> 287.71 | M51: /day | Q51: =K51*E51 -> 719.275 | AA51: TOTAL | AB51: =SUM(AB48:AB50) -> 2170 | AC51: =AB48*AC48+AB49*AC49+AB50*AC50/2 -> 250750 | AH51: Wool | AJ51: =Q122 -> 442 | AM51: Levies | AN51: 1150 | AO51: =K127+K128 -> 2.05 | AP51: =AN51*AO51 -> 2357.5 | AS51: Ewes mated | AU51: ='Prime Lambs Input'!$E$7 -> 1000 | AX51: Ram % | AY51: =E200 -> 0.02
C52: Superannuation (on ord wages only) | I52: Reset Rate> | J52: =GM_INFO!C34 | K52: =GM_INFO!C34 -> 0.095 | M52: wages | Q52: =(Q48+Q49+Q50+Q51)*K52 -> 465.636021 | AG52: Commission on livestock sales | AJ52: =(K209+K210)*K124 -> 1219.2 | AO52: =SUM(AO47:AO51) -> 9.542 | AQ52: =AO52*AD50 -> 333.97 | AS52: Age ewes purchased | AU52: =E201 -> 1.5 | AX52: Price of rams | AY52: =AL68 -> 0
C53: W/Cover (incl. super + otime etc) | I53: Reset Rate> | J53: =GM_INFO!C35 | K53: =GM_INFO!C35 -> 0.04 | M53: total | Q53: =(Q48+Q49+Q50+Q51+Q52)*K53 -> 214.6827128 | AG53: Yard fees | AJ53: =E119*K125 -> 159.8 | AM53: Commission | AN53: =$E$121 -> 1150 | AO53: =G212 -> 135.5156951 | AP53: =K124 -> 0.06 | AQ53: =AD50*AO53*AP53 -> 284.5829596 | AS53: Age ewes sold | AU53: =E202 -> 6.5 | AX53: Years rams kept | AY53: =E203 -> 3
C54: Wool packs | E54: =E122 -> 26.01882353 | G54: packs | I54: Reset Rate> | J54: =GM_INFO!C28 | K54: =GM_INFO!C28 -> 11.2 | M54: /pack | Q54: =K54*ROUND(E54,0) -> 291.2 | AG54: Levies | AJ54: =E126*(K126+K128) -> 141 | AS54: Av Weaning % | AU54: ='Prime Lambs Input'!E10 -> 1.15 | AX54: Age wethers sold | AY54: 0.5
C55: Shed sundries | E55: =E48+E49 -> 989.4 | G55: sheep | I55: Reset Rate> | J55: =GM_INFO!C36 | K55: =GM_INFO!C36 -> 0.15 | M55: /head | Q55: 148.35 | AG55: Wool Selling Charges | AJ55: =Q130+Q131 -> 1610.9469 | AQ55: =SUM(AQ43:AQ53) -> 618.5529596 | AS55: dse/ewe | AU55: =AE48 -> 1.8 | AX55: Flock death rate | AY55: =E204 -> 0.03
C56: Lice control | E56: =E48+E49 -> 989.4 | G56: sheep | I56: Reset Rate> | J56: =GM_INFO!C19 | K56: =GM_INFO!C19 -> 1.524 | M56: /head | Q56: 1507.236 | AG56: Feed & other costs | AJ56: =SUM(Q144:Q149) -> 15596.5
C57: Crutch & Wig | E57: 990 | G57: ewes | I57: Reset Rate> | J57: =GM_INFO!C38 | K57: =GM_INFO!C38 -> 87.57 | M57: /100 | Q57: =K57/100*ROUND(E57,0) -> 866.943 | AK57: =SUM(AJ47:AJ56) -> 101576.083
E58: =E49 -> 19.4 | G58: rams | I58: Reset Rate> | J58: =GM_INFO!C39 | K58: =GM_INFO!C39 -> 175.14 | M58: /100 | Q58: 33.2766
AS60: EWES | AT60: OPENING | AU60: NATURAL | AV60: PURCHASES | AW60: DEATHS | AX60: % sold | AY60: SALES | AZ60: CLOSING
AS61: AGE | AT61: NUMBERS | AU61: INCREASE | AX61: culled | AZ61: NUMBERS
AS63: 0.5-1.5yr | AV63: =IF($N$78=1.5,AT64,AT63-AW63) -> 0 | AY63: =AT63-AW63 -> 0 | AZ63: =AT63+AU63+AV63-AW63-AY63 -> 0
AS64: 1.5-2.5yr | AT64: =IF(AU52=1.5,AU51/(1+(1-AY55)*(1-AX64)*(1+(1-AY55)*(1-AX65)*(1+(1-AY55)*(1-AX66)*(1+(1-AY55)*(1-AX67))))),0) -> 212.3653636 | AV64: =IF(AU52=2.5,AT65-AY64,0) -> 0 | AW64: =AT64*$R$81 -> 0 | AY64: =(AT64-AW64)*AX64 -> 0 | AZ64: 212.3653636
AS65: 2.5-3.5yr | AT65: =IF(AU52=2.5,AU51/(1+(1-AY55)*(1-AX65)*(1+(1-AY55)*(1-AX66)*(1+(1-AY55)*(1-AX67)))),AZ64) -> 212.3653636 | AV65: =IF(AU52=3.5,AT66-AY65,0) -> 0 | AW65: =AT65*$R$81 -> 0 | AY65: =(AT65-AW65)*AX65 -> 0 | AZ65: 212.3653636
AS66: 3.5-4.5yr | AT66: =IF(AU52=3.5,AU51/(1+(1-AY55)*(1-AX66)*(1+(1-AY55)*(1-AX67))),AZ65) -> 212.3653636 | AV66: =IF(AU52=4.5,AT67-AY66,0) -> 0 | AW66: =AT66*$R$81 -> 0 | AY66: =(AT66-AW66)*AX66 -> 0 | AZ66: 212.3653636
AS67: 4.5-5.5yr | AT67: =IF(AU52=4.5,AU51/(1+(1-AY55)*(1-AX67)),AZ66) -> 212.3653636 | AW67: =AT67*$R$81 -> 0 | AX67: =IF(AU53=5.5,1,0) -> 0 | AY67: =(AT67-AW67)*AX67 -> 0 | AZ67: 212.3653636
AS68: 5.5-6.5yr | AT68: =AZ67 -> 212.3653636 | AW68: =AT68*$R$81 -> 0 | AX68: =IF(AU53=6.5,1,0) -> 1 | AY68: =(AT68-AW68)*AX68 -> 212.3653636 | AZ68: 0
AS69: Ewes | AT69: =SUM(AT64:AT68) -> 1061.826818 | AV69: =AV63+AV64+AV65+AV66 -> 0 | AW69: =SUM(AW63:AW68) -> 0 | AY69: =SUM(AY64:AY68) -> 212.3653636 | AZ69: =SUM(AZ63:AZ67) -> 849.4614545
AS70: d.s.e's | AT70: =AT63+AT69*AU55 -> 1911.288273
AS73: LAMBS | AT73: OPENING | AU73: NATURAL | AV73: PURCHASES | AW73: DEATHS | AX73: % sold | AY73: SALES | AZ73: CLOSING
AS74: AGE | AT74: NUMBERS | AU74: INCREASE | AX74: culled | AZ74: NUMBERS
C75: Marking
C76: Lamb marking | E76: =AC227 -> 1150 | G76: lambs | I76: Reset Rate> | J76: =GM_INFO!C42 | K76: =GM_INFO!C42 -> 1.15 | M76: /head | Q76: =K76*ROUND(E76,0) -> 1322.5 | AS76: 0-0.5yr | AU76: =AU51*AU54 -> 1150 | AX76: 1 | AY76: =AU76*AX76 -> 1150 | AZ76: =AT76+AU76+AV76-AW76-AY76 -> 0
C77: Ear tags | E77: =AC227 -> 1150 | G77: lambs | I77: Reset Rate> | J77: =GM_INFO!C43 | K77: =GM_INFO!C43 -> 0.4 | M77: /head | Q77: 460
AS79: RAMS | AT79: OPENING | AU79: NATURAL | AV79: PURCHASES | AW79: DEATHS | AX79: % sold | AY79: SALES | AZ79: CLOSING
AS80: AGE | AT80: NUMBERS | AU80: INCREASE | AX80: culled | AZ80: NUMBERS
AS82: 0.5-1.5yr | AV82: =AT83/(1-AX82) -> 6.870727266 | AW82: =AT82*$R$81 -> 0 | AZ82: =AT82+AU82+AV82-AW82-AY82 -> 6.870727266
AS83: 1.5-2.5yr | AT83: =IF(AY53=3,(AU51*AY51)/(1+(1-AY55)*(1-AX83)*(1+(1-AY55)*(1-AX84)*(1+(1-AY55)*(1-AX85)))),IF(AY53=4,(AU51*AY51)/(1+(1-AY55)*(1-AX83)*(1+(1-AY55)*(1-AX84)*(1+(1-AY55)*(1-AX85)*(1+(1-AY55)*(1-AX86))))),0)) -> 6.870727266 | AW83: =AT83*$R$81 -> 0 | AZ83: =AT83+AU83+AV83-AW83-AY83 -> 6.870727266
AS84: 2.5-3.5yr | AT84: =AZ83 -> 6.870727266 | AW84: =AT84*$R$81 -> 0 | AZ84: =AT84+AU84+AV84-AW84-AY84 -> 6.870727266
AS85: 3.5-4.5yr | AT85: =AZ84 -> 6.870727266 | AW85: =AT85*$R$81 -> 0 | AX85: =IF(AY53=3,100%,0) -> 1 | AY85: =(AT85-AW85)*AX85 -> 6.870727266 | AZ85: =AT85+AU85+AV85-AW85-AY85 -> 0
AS86: 4.5-5.5yr | AT86: =AZ85 -> 0 | AW86: =AT86*$R$81 -> 0 | AX86: =IF(AY53=4,100%,0) -> 0 | AY86: =AT86-AW86 -> 0 | AZ86: =AT86+AU86+AV86-AW86-AY86 -> 0
AT87: =AT82+AT83+AT84+AT85+AT86 -> 20.6121818 | AV87: =AV82+AV83+AV84+AV85+AV86 -> 6.870727266 | AW87: =AW82+AW83+AW84+AW85+AW86 -> 0 | AY87: =AY82+AY83+AY84+AY85+AY86 -> 6.870727266 | AZ87: =AZ82+AZ83+AZ84+AZ85+AZ86 -> 20.6121818
AS88: d.s.e's | AT88: =AT87*AE49 -> 41.2243636
C89: Animal Health
C90: Drench | E90: =G222 -> 3190 | G90: sheep | I90: Reset Rate> | J90: =GM_INFO!C21 | K90: =GM_INFO!C21 -> 0.432 | M90: /head | Q90: =K90*ROUND(E90,0) -> 1378.08
C91: Vaccinate | E91: =I222 -> 3320 | G91: sheep | I91: Reset Rate> | J91: =GM_INFO!C25 | K91: =GM_INFO!C25 -> 0.33 | M91: /head | Q91: 1095.6
C92: Blowfly control | E92: =K222 -> 1000 | G92: sheep | I92: Reset Rate> | J92: =GM_INFO!C27 | K92: =GM_INFO!C27 -> 1.3 | M92: /head | Q92: 1300
C104: Stock purchases
C105: Purchases | Q105: =K214+K215 -> 69860
C117: Sale Costs
C118: Freight
C119: Livestock | E119: =SUM(E209:E210) -> 188 | G119: culls | I119: Reset Rate> | J119: =GM_INFO!B111 | K119: =GM_INFO!B111 -> 4 | M119: /head | Q119: =K119*ROUND(E119,0) -> 752
E120: =E214 -> 212 | G120: ewes | I120: Reset Rate> | J120: =GM_INFO!B112 | K120: =GM_INFO!B112 -> 4 | M120: /head | Q120: =K120*E120 -> 848
E121: =E211 -> 1150 | G121: prime lambs | I121: Reset Rate> | J121: =GM_INFO!B113 | K121: =GM_INFO!B113 -> 4 | M121: /head | Q121: 4600
C122: Wool | E122: =G234/170 -> 26.01882353 | G122: bales | I122: Reset Rate> | J122: =GM_INFO!B114 | K122: =GM_INFO!B114 -> 17 | M122: /bale | Q122: 442
C123: Stock selling charges
C124: Commission/insurance | I124: Reset Rate> | J124: =GM_INFO!C48 | K124: =GM_INFO!C48 -> 0.06 | M124: gross $ | Q124: =K124*Q35 -> 10879.2
C125: Yard fees | E125: =E212 -> 1338 | G125: head | I125: Reset Rate> | J125: =GM_INFO!C49 | K125: =GM_INFO!C49 -> 0.85 | M125: /head | Q125: =K125*ROUND(E125,0) -> 1137.3
C126: Levy-sheep | E126: =E119 -> 188 | G126: head | I126: Reset Rate> | J126: =GM_INFO!C50 | K126: =GM_INFO!C50 -> 0.2 | M126: /head | Q126: 37.6
C127: Levy-lambs | E127: =E211 -> 1150 | G127: head | I127: Reset Rate> | J127: =GM_INFO!C51 | K127: =GM_INFO!C51 -> 1.5 | M127: /head | Q127: 1725
C128: SA sheep industry levy | E128: =E212 -> 1338 | G128: head | I128: Reset Rate> | J128: =GM_INFO!C52 | K128: =GM_INFO!C52 -> 0.55 | M128: /head | Q128: 735.9
C129: Wool selling charges
C130: Brokerage/testing/insurance | I130: Reset Rate> | J130: =GM_INFO!C53 | K130: =GM_INFO!C53 -> 0.27 | M130: /kg | Q130: =K130*E34 -> 1194.264
C131: Wool levy | I131: Reset Rate> | J131: =GM_INFO!C54 | K131: =GM_INFO!C54 -> 0.02 | M131: gross | Q131: =K131*Q34 -> 416.6829
C143: Feed and Other Costs
C144: Hay | Q144: =SUM('Prime Lambs Input'!I62:I64) -> 3672
C145: Grain | Q145: =SUM('Prime Lambs Input'!I68:I70) -> 5535
C146: Insurance | E146: =AC51 -> 250750 | G146: value | I146: Reset Rate> | J146: =GM_INFO!B107 | K146: =GM_INFO!B107 -> 2 | M146: /$'000 | Q146: =K146/1000*E146 -> 501.5
C147: Water | E147: =$Q$6 -> 1840 | G147: DSE's | I147: Reset Rate> | J147: =GM_INFO!D79 | K147: =GM_INFO!D79 -> 1.5 | M147: /DSE's | Q147: =K147*E147 -> 2760
C148: Veh Fuel, R&M | E148: 1840 | G148: DSE's | I148: Reset Rate> | J148: =GM_INFO!D80 | K148: =GM_INFO!D80 -> 1.2 | M148: /DSE's | Q148: 2208
C149: Other | E149: 1840 | G149: DSE's | I149: Reset Rate> | J149: =GM_INFO!D81 | K149: =GM_INFO!D81 -> 0.5 | M149: /DSE's | Q149: 920
C170: TOTAL VARIABLE COSTS | Q170: =SUM(Q48:Q166) -> 122209.383
C172: GROSS MARGIN TOTAL | Q172: =Q37-Q170 -> 79944.76197
C174: GROSS MARGIN/DSE | Q174: =Q172/Q6 -> 43.4482402
C194: PRODUCTION DATA
C196: Stocking rate (DSE/Ha) | E196: 6 | K196: Culling Rate (% from each group) | AA196: SHEEP GROSS MARGIN
C197: Total DSE's | E197: =SUMPRODUCT(AB48:AB50,AE48:AE50) -> 1840 | K197: Age Group | M197: Ewes | O197: Wethers | AA197: PRIME LAMB -
C198: SHEEP GRAZING AREA | E198: =E197/E196 -> 306.6666667 | K198: 0.5 | M198: =AF214 -> 0
C199: Number of ewes mated | E199: ='Prime Lambs Input'!E7 -> 1000 | K199: 1.5 | M199: 0
C200: Ram percentage | E200: ='Prime Lambs Input'!E11 -> 0.02 | K200: 2.5 | M200: 0
C201: Age ewes bought (yrs) | E201: ='Prime Lambs Input'!E8 -> 1.5 | K201: 3.5 | M201: 0
C202: Age ewes culled | E202: ='Prime Lambs Input'!E9 -> 6.5 | K202: 4.5 | M202: 0 | AA202: Ewes mated | AC202: ='Prime Lambs Input'!E7 -> 1000 | AF202: Ram % | AG202: =E200 -> 0.02
B203: =VLOOKUP(r[0]c3&"No Ops",CHOOSE({1,2},tbl_ops[Name]&tbl_ops[Category],INDIRECT("tbl_ops["&var_crop&"]")),2,0) | C203: Years rams kept | E203: ='Prime Lambs Input'!E12 -> 3 | K203: 5.5 | M203: 1 | AA203: Age ewes purchased | AC203: =E201 -> 1.5 | AF203: Price of rams | AG203: =G215 -> 1500
B204: =VLOOKUP(r[0]c3&"No Ops",CHOOSE({1,2},tbl_ops[Name]&tbl_ops[Category],INDIRECT("tbl_ops["&var_crop&"]")),2,0) | C204: Flock death rate | E204: ='Prime Lambs Input'!E13 -> 0.03 | K204: 6.5 | M204: 0 | AA204: Age ewes sold | AC204: =E202 -> 6.5 | AF204: Years rams kept | AG204: =E203 -> 3
B205: =VLOOKUP(r[0]c3&"No Ops",CHOOSE({1,2},tbl_ops[Name]&tbl_ops[Category],INDIRECT("tbl_ops["&var_crop&"]")),2,0) | C205: Average weaning rate | E205: =AC205 -> 1.15 | AA205: Av Weaning % | AC205: ='Prime Lambs Input'!E10 -> 1.15 | AF205: Age wethers sold | AG205: 0.5
B206: =VLOOKUP(r[0]c3&"No Ops",CHOOSE({1,2},tbl_ops[Name]&tbl_ops[Category],INDIRECT("tbl_ops["&var_crop&"]")),2,0) | C206: % Lambs carried over | E206: 0 | AA206: dse/ewe | AC206: =AE48 -> 1.8 | AF206: Flock death rate | AG206: =E204 -> 0.03
B207: =VLOOKUP(r[0]c3&var_rain,CHOOSE({1,2},tbl_ops[Name]&tbl_ops[Rainfall],INDIRECT("tbl_ops["&var_crop&"]")),2,0)
B208: =VLOOKUP(r[0]c3&var_rain,CHOOSE({1,2},tbl_ops[Name]&tbl_ops[Rainfall],INDIRECT("tbl_ops["&var_crop&"]")),2,0) | C208: SALES | E208: Number | G208: Price/hd | I208: Age | K208: Total
B209: =VLOOKUP(r[0]c3&var_rain,CHOOSE({1,2},tbl_ops[Name]&tbl_ops[Rainfall],INDIRECT("tbl_ops["&var_crop&"]")),2,0) | C209: c.f.a ewes | E209: =ROUND(AG220,0) -> 182 | G209: ='Prime Lambs Input'!E18 -> 110 | I209: =E202 -> 6.5 | K209: =ROUND(E209,0)*G209 -> 20020
B210: =VLOOKUP(r[0]c3&var_rain,CHOOSE({1,2},tbl_ops[Name]&tbl_ops[Rainfall],INDIRECT("tbl_ops["&var_crop&"]")),2,0) | C210: c.f.a rams | E210: =ROUND(AG238,0) -> 6 | G210: ='Prime Lambs Input'!E19 -> 50 | I210: =E203+1.5 -> 4.5 | K210: 300
C211: Lambs | E211: =ROUND(AG227,0) -> 1150 | G211: ='Prime Lambs Input'!E20 -> 140 | I211: 20 Weeks | K211: 161000 | AA211: EWES | AB211: OPENING | AC211: NATURAL | AD211: PURCHASES | AE211: DEATHS | AF211: % sold | AG211: SALES | AH211: CLOSING
C212: TOTAL | E212: =SUM(E209:E211) -> 1338 | G212: =K212/E212 -> 135.5156951 | K212: =SUM(K209:K211) -> 181320 | AA212: AGE | AB212: NUMBERS | AC212: INCREASE | AF212: culled | AH212: NUMBERS
C213: PURCHASES | E213: Number | G213: Price/hd | I213: Age | K213: Total
C214: Ewes | E214: =ROUND(AD220,0) -> 212 | G214: ='Prime Lambs Input'!E29 -> 280 | I214: =E201 -> 1.5 | K214: =E214*G214 -> 59360 | AA214: 0.5-1.5yr | AD214: =IF(AC203=1.5,AB215,AB214-AE214) -> 212.3653636 | AG214: =AB214-AE214 -> 0 | AH214: =AB214+AC214+AD214-AE214-AG214 -> 212.3653636
C215: Rams | E215: =ROUND(AD238,0) -> 7 | G215: ='Prime Lambs Input'!E30 -> 1500 | I215: 1.5 | K215: =E215*G215 -> 10500 | AA215: 1.5-2.5yr | AB215: =IF(AC203=1.5,AC202/(1+(1-AG206)*(1-AF215)*(1+(1-AG206)*(1-AF216)*(1+(1-AG206)*(1-AF217)*(1+(1-AG206)*(1-AF218))))),0) -> 212.3653636 | AD215: =IF(AC203=2.5,AB216-AG215,0) -> 0 | AE215: =AB215*$AG$206 -> 6.370960909 | AG215: =(AB215-AE215)*AF215 -> 0 | AH215: 205.9944027
AA216: 2.5-3.5yr | AB216: =IF(AC203=2.5,AC202/(1+(1-AG206)*(1-AF216)*(1+(1-AG206)*(1-AF217)*(1+(1-AG206)*(1-AF218)))),AH215) -> 205.9944027 | AD216: =IF(AC203=3.5,AB217-AG216,0) -> 0 | AE216: 6.179832081 | AG216: =(AB216-AE216)*AF216 -> 0 | AH216: 199.8145706
E217: Number of Times | AA217: 3.5-4.5yr | AB217: =IF(AC203=3.5,AC202/(1+(1-AG206)*(1-AF217)*(1+(1-AG206)*(1-AF218))),AH216) -> 199.8145706 | AD217: =IF(AC203=4.5,AB218-AG217,0) -> 0 | AE217: 5.994437119 | AG217: =(AB217-AE217)*AF217 -> 0 | AH217: 193.8201335
C218: STOCK HEALTH REQUIREMENTS | E218: Number | G218: Drench | I218: Vacc. | K218: Blowfly | M218: DSE | AA218: 4.5-5.5yr | AB218: =IF(AC203=4.5,AC202/(1+(1-AG206)*(1-AF218)),AH217) -> 193.8201335 | AE218: 5.814604005 | AF218: =IF(AC204=5.5,1,0) -> 0 | AG218: =(AB218-AE218)*AF218 -> 0 | AH218: 188.0055295
C219: Ewes | E219: ='Prime Lambs Input'!E7 -> 1000 | G219: ='Prime Lambs Input'!F52 -> 2 | I219: ='Prime Lambs Input'!G52 -> 1 | K219: ='Prime Lambs Input'!H52 -> 1 | M219: 1.8 | AA219: 5.5-6.5yr | AB219: =AH218 -> 188.0055295 | AE219: 5.640165885 | AF219: =IF(AC204=6.5,1,0) -> 1 | AG219: =(AB219-AE219)*AF219 -> 182.3653636 | AH219: 0
C220: Rams | E220: =AB49 -> 20 | G220: ='Prime Lambs Input'!F53 -> 2 | I220: ='Prime Lambs Input'!G53 -> 1 | K220: ='Prime Lambs Input'!H53 -> 0 | M220: 2 | AA220: Ewes | AB220: =SUM(AB215:AB219) -> 1000 | AD220: =AD214+AD215+AD216+AD217 -> 212.3653636 | AE220: =SUM(AE214:AE219) -> 30 | AG220: =SUM(AG215:AG219) -> 182.3653636 | AH220: =SUM(AH214:AH218) -> 1000
C221: Lambs | E221: =AC227 -> 1150 | G221: ='Prime Lambs Input'!F54 -> 1 | I221: ='Prime Lambs Input'!G54 -> 2 | K221: ='Prime Lambs Input'!H54 -> 0 | AA221: d.s.e's | AB221: =AB214+AB220*AC206 -> 1800
C222: TOTAL | E222: =SUM(E219:E221) -> 2170 | G222: =SUMPRODUCT($E$219:$E$221,G219:G221) -> 3190 | I222: =SUMPRODUCT($E$219:$E$221,I219:I221) -> 3320 | K222: =SUMPRODUCT($E$219:$E$221,K219:K221) -> 1000 | M222: =SUMPRODUCT($E$219:$E$221,M219:M221) -> 1840
G224: Wool Cut kg/hd | AA224: LAMBS | AB224: OPENING | AC224: NATURAL | AD224: PURCHASES | AE224: DEATHS | AF224: % sold | AG224: SALES | AH224: CLOSING
C225: SHEARING | E225: Number | I225: Price | K225: Total | AA225: AGE | AB225: NUMBERS | AC225: INCREASE | AF225: culled | AH225: NUMBERS
C226: Ewes | E226: =AB220-AE220 -> 970 | G226: ='Prime Lambs Input'!F43 -> 4.5 | I226: ='Prime Lambs Input'!G43 -> 4.725 | K226: =I226*G226*E226 -> 20624.625
C227: Crossbred rams | E227: =AB238-AE238 -> 19.4 | G227: ='Prime Lambs Input'!F44 -> 3 | I227: ='Prime Lambs Input'!G44 -> 3.6 | K227: =I227*G227*E227 -> 209.52 | AA227: 0-0.5yr | AC227: =AC202*AC205 -> 1150 | AF227: 1 | AG227: =AC227*AF227 -> 1150 | AH227: =AB227+AC227+AD227-AE227-AG227 -> 0
AA230: RAMS | AB230: OPENING | AC230: NATURAL | AD230: PURCHASES | AE230: DEATHS | AF230: % sold | AG230: SALES | AH230: CLOSING
AA231: AGE | AB231: NUMBERS | AC231: INCREASE | AF231: culled | AH231: NUMBERS
AA233: 0.5-1.5yr | AD233: =AB234/(1-AF233) -> 6.870727266 | AE233: =AB233*$AG$206 -> 0 | AH233: =AB233+AC233+AD233-AE233-AG233 -> 6.870727266
C234: TOTAL | E234: =SUM(E226:E233) -> 989.4 | G234: =SUMPRODUCT(E226:E233,G226:G233) -> 4423.2 | K234: =SUM(K226:K233) -> 20834.145 | AA234: 1.5-2.5yr | AB234: =IF(AG204=3,(AC202*AG202)/(1+(1-AG206)*(1-AF234)*(1+(1-AG206)*(1-AF235)*(1+(1-AG206)*(1-AF236)))),IF(AG204=4,(AC202*AG202)/(1+(1-AG206)*(1-AF234)*(1+(1-AG206)*(1-AF235)*(1+(1-AG206)*(1-AF236)*(1+(1-AG206)*(1-AF237))))),0)) -> 6.870727266 | AE234: 0.206121818 | AH234: =AB234+AC234+AD234-AE234-AG234 -> 6.664605448
AA235: 2.5-3.5yr | AB235: =AH234 -> 6.664605448 | AE235: 0.1999381635 | AH235: =AB235+AC235+AD235-AE235-AG235 -> 6.464667285
AA236: 3.5-4.5yr | AB236: =AH235 -> 6.464667285 | AE236: 0.1939400186 | AF236: =IF(AG204=3,100%,0) -> 1 | AG236: =(AB236-AE236)*AF236 -> 6.270727266 | AH236: =AB236+AC236+AD236-AE236-AG236 -> 0
G237: Hay Cost ($/T) | I237: Kg Fed per Week | K237: No of Weeks Feeding | M237: Total Cost ($) | AA237: 4.5-5.5yr | AB237: =AH236 -> 0 | AE237: 0 | AF237: =IF(AG204=4,100%,0) -> 0 | AG237: =AB237-AE237 -> 0 | AH237: =AB237+AC237+AD237-AE237-AG237 -> 0
C238: FEEDING | E238: Number | AB238: =AB233+AB234+AB235+AB236+AB237 -> 20 | AD238: =AD233+AD234+AD235+AD236+AD237 -> 6.870727266 | AE238: =AE233+AE234+AE235+AE236+AE237 -> 0.6 | AG238: =AG233+AG234+AG235+AG236+AG237 -> 6.270727266 | AH238: =AH233+AH234+AH235+AH236+AH237 -> 20
C239: Ewes | E239: ='Prime Lambs Input'!E62 -> 1000 | G239: ='Prime Lambs Input'!F62 -> 180 | I239: ='Prime Lambs Input'!G62 -> 2.5 | K239: ='Prime Lambs Input'!H62 -> 8 | M239: =(E239*G239*I239*K239)/1000 -> 3600 | AA239: d.s.e's | AB239: =AB238*AE142 -> 0
C240: Rams | E240: ='Prime Lambs Input'!E63 -> 20 | G240: ='Prime Lambs Input'!F63 -> 180 | I240: ='Prime Lambs Input'!G63 -> 2.5 | K240: ='Prime Lambs Input'!H63 -> 8 | M240: 72
C241: Lambs | E241: ='Prime Lambs Input'!E64 -> 1150 | G241: ='Prime Lambs Input'!F64 -> 200 | I241: ='Prime Lambs Input'!G64 -> 0 | K241: ='Prime Lambs Input'!H64 -> 0 | M241: 0
G242: Grain Cost ($/T) | I242: Kg Fed per Week | K242: No of Weeks Feeding | M242: Total Cost ($)
E243: Number
C244: Ewes | E244: ='Prime Lambs Input'!E68 -> 1000 | G244: ='Prime Lambs Input'!F68 -> 225 | I244: ='Prime Lambs Input'!G68 -> 3 | K244: ='Prime Lambs Input'!H68 -> 8 | M244: =(E244*G244*I244*K244)/1000 -> 5400
C245: Rams | E245: ='Prime Lambs Input'!E69 -> 20 | G245: ='Prime Lambs Input'!F69 -> 225 | I245: ='Prime Lambs Input'!G69 -> 3 | K245: ='Prime Lambs Input'!H69 -> 10 | M245: 135
C246: Lambs | E246: ='Prime Lambs Input'!E70 -> 1150 | G246: ='Prime Lambs Input'!F70 -> 0 | I246: ='Prime Lambs Input'!G70 -> 0 | K246: ='Prime Lambs Input'!H70 -> 0 | M246: 0
C247: TOTAL FEED COST | M247: =SUM(M239:M241,M244:M246) -> 9207
C250: GM SENSITIVITY
C251: Gross Margin/DSE | E251: Average Weaning Rate
G252: 0.95 | I252: 1.05 | K252: 1.15 | M252: 1.25 | O252: 1.35 | Q252: 1.45
E253: 115 | G253: =($E$199*G$252*$E253*(1-$K$124)+SUM($K$209:$K$210)+$K$234-$AK$57-$E$199*G$252*$AO$52)/$E$197 -> 18.04791411 | I253: =($E$199*I$252*$E253*(1-$K$124)+SUM($K$209:$K$210)+$K$234-$AK$57-$E$199*I$252*$AO$52)/$E$197 -> 23.40432716 | K253: =($E$199*K$252*$E253*(1-$K$124)+SUM($K$209:$K$210)+$K$234-$AK$57-$E$199*K$252*$AO$52)/$E$197 -> 28.7607402 | M253: =($E$199*M$252*$E253*(1-$K$124)+SUM($K$209:$K$210)+$K$234-$AK$57-$E$199*M$252*$AO$52)/$E$197 -> 34.11715324 | O253: =($E$199*O$252*$E253*(1-$K$124)+SUM($K$209:$K$210)+$K$234-$AK$57-$E$199*O$252*$AO$52)/$E$197 -> 39.47356629 | Q253: =($E$199*Q$252*$E253*(1-$K$124)+SUM($K$209:$K$210)+$K$234-$AK$57-$E$199*Q$252*$AO$52)/$E$197 -> 44.82997933
E254: 120 | G254: 20.47454455 | I254: 26.08639237 | K254: 31.6982402 | M254: 37.31008803 | O254: 42.92193585 | Q254: 48.53378368
C255: Average Lamb Sale Price($/hd) | E255: 125 | G255: 22.90117498 | I255: 28.76845759 | K255: 34.6357402 | M255: 40.50302281 | O255: 46.37030542 | Q255: 52.23758803
E256: 130 | G256: 25.32780542 | I256: 31.45052281 | K256: 37.5732402 | M256: 43.69595759 | O256: 49.81867498 | Q256: 55.94139237
E257: 135 | G257: 27.75443585 | I257: 34.13258803 | K257: 40.5107402 | M257: 46.88889237 | O257: 53.26704455 | Q257: 59.64519672
E258: 140 | G258: 30.18106629 | I258: 36.81465324 | K258: 43.4482402 | M258: 50.08182716 | O258: 56.71541411 | Q258: 63.34900107
E259: 145 | G259: 32.60769672 | I259: 39.49671846 | K259: 46.3857402 | M259: 53.27476194 | O259: 60.16378368 | Q259: 67.05280542
E260: 150 | G260: 35.03432716 | I260: 42.17878368 | K260: 49.3232402 | M260: 56.46769672 | O260: 63.61215324 | Q260: 70.75660976
E261: 155 | G261: 37.46095759 | I261: 44.86084889 | K261: 52.2607402 | M261: 59.6606315 | O261: 67.06052281 | Q261: 74.46041411
E262: 160 | G262: 39.88758803 | I262: 47.54291411 | K262: 55.1982402 | M262: 62.85356629 | O262: 70.50889237 | Q262: 78.16421846
E263: 165 | G263: 42.31421846 | I263: 50.22497933 | K263: 58.1357402 | M263: 66.04650107 | O263: 73.95726194 | Q263: 81.86802281

Sheet Prime Lambs Merino Ewes Input (hidden)
C1: Prime Lambs Merino Ewes
C2: =UPPER(var_animal)&" GROSS MARGIN - "&TEXT(m_year,"0000") -> PRIME LAMBS MERINO EWES GROSS MARGIN - 2018
C4: GENERAL INFORMATION
C5: This represents a Merino Ewe enterprise mated to a terminal sire. All ewe replacements are purchased, but age of replacements can be varied from 1.5 years to 4.5 years. NB. Can be bought from own self-replacing merino enterprise. Following are the various assumptions used in the calculation of the Gross Margin. Cells with yellow highlight can be changed.
C7: Ewes mated | E7: 1000
C8: Age ewes purchased | E8: 1.5
C9: Age ewes sold | E9: 5.5
C10: Av Weaning % | E10: 0.95
C11: Ram percentage | E11: 0.025
C12: Years Rams Kept | E12: 3
C13: Flock death Rate | E13: 0.03
C14: % Lambs carried over | E14: 0
C17: LIVESTOCK SALES | E17: Price/Hd | F17: Number | G17: Total
C18: c.f.a Ewes | E18: 105 | F18: =ROUND('Prime Lambs Merino Ewes'!AG220,1) -> 231.5 | G18: =E18*F18 -> 24307.5
C19: c.f.a Rams | E19: 50 | F19: =ROUND('Prime Lambs Merino Ewes'!AG238,0) -> 8 | G19: =E19*F19 -> 400
C20: Lambs | E20: 140 | F20: =ROUND('Prime Lambs Merino Ewes'!AG227,0) -> 950 | G20: =E20*F20 -> 133000
C25: TOTAL SALES | F25: =SUM(F18:F23) -> 1189.5 | G25: =SUM(G18:G23) -> 157707.5
C28: LIVESTOCK PURCHASES | E28: Price/Hd | F28: Number | G28: Total
C29: Ewes | E29: 220 | F29: ='Prime Lambs Merino Ewes'!AD220 -> 261.53548 | G29: =E29*F29 -> 57537.80561 | H29: Change Ewe price depending on
C30: Rams | E30: 1500 | F30: ='Prime Lambs Merino Ewes'!AD238 -> 8.588409083 | G30: =E30*F30 -> 12882.61362 | H30: age purchased.
C32: TOTAL PURCHASES | F32: =SUM(F29:F30) -> 270.1238891 | G32: =SUM(G29:G30) -> 70420.41923
C35: WOOL PRICE (cents/kg) | F35: =TEXT(m_year-3,"0000")&" Average (Clean)" -> 2015 Average (Clean) | G35: =TEXT(m_year-2,"0000")&" Average (Clean)" -> 2016 Average (Clean) | H35: =TEXT(m_year-1,"0000")&" Average (Clean)" -> 2017 Average (Clean) | I35: Budget Base (Clean) | J35: Budget Base (Greasy)
E36: Wool- High Rainfall 21 mic 68% yield | F36: 1278 | G36: 1397 | H36: 1533 | I36: 1530 | J36: 1040
C37: Allow 90% to account for lower value of bellies, skirtings etc. | J37: =J36*0.9 -> 936
C41: WOOL SALES - SHEARING | F41: Wool Cut
E42: Number | F42: kg/hd | G42: Price | H42: Total
C43: Ewes | E43: ='Prime Lambs Merino Ewes'!E226 -> 970 | F43: 6.5 | G43: =J37/100 -> 9.36 | H43: =E43*F43*G43 -> 59014.8
C44: Crossbred Rams | E44: ='Prime Lambs Merino Ewes'!E227 -> 24.25 | F44: 3 | G44: =GM_INFO!F98*0.9/100 -> 3.6 | H44: =E44*F44*G44 -> 261.9
C46: TOTAL | E46: =SUM(E43:E45) -> 994.25 | F46: =(E43*F43)+(E44*F44) -> 6377.75 | H46: =SUM(H43:H45) -> 59276.7
C49: STOCK HEALTH REQUIREMENTS
G50: Number of times
E51: Number | F51: Drench | G51: Vacc. | H51: Blowfly
C52: Ewes | E52: ='Prime Lambs Merino Ewes'!E219 -> 1000 | F52: 1 | G52: 1 | H52: 1
C53: Rams | E53: ='Prime Lambs Merino Ewes'!E220 -> 25 | F53: 2 | G53: 1 | H53: 0
C54: Lambs | E54: ='Prime Lambs Merino Ewes'!E221 -> 950 | F54: 1 | G54: 2 | H54: 0
C56: TOTAL | E56: =SUM(E52:E54) -> 1975 | F56: =SUMPRODUCT($E$52:$E$54,F52:F54) -> 2000 | G56: =SUMPRODUCT($E$52:$E$54,G52:G54) -> 2925 | H56: 1000
C59: FEEDING
C60: HAY | F60: Hay | G60: Kgs Fed | H60: No Weeks | I60: Total
E61: Number | F61: Cost ($/T) | G61: per Week | H61: of Feeding | I61: Cost ($)
C62: Ewes | E62: ='Prime Lambs Merino Ewes'!E219 -> 1000 | F62: 180 | G62: 2.5 | H62: 8 | I62: =(H62*G62*E62)/1000*F62 -> 3600
C63: Rams | E63: ='Prime Lambs Merino Ewes'!E220 -> 25 | F63: 180 | G63: 2.5 | H63: 8 | I63: 90
C64: Lambs | E64: ='Prime Lambs Merino Ewes'!E221 -> 950 | F64: 200 | I64: 0
C66: GRAIN | F66: Grain | G66: Kgs Fed | H66: No weeks | I66: Total
E67: Number | F67: Cost ($/T) | G67: per week | H67: of Feeding | I67: Cost ($)
C68: Ewes | E68: ='Prime Lambs Merino Ewes'!E219 -> 1000 | F68: 225 | G68: 3 | H68: 8 | I68: =(H68*G68*E68)/1000*F68 -> 5400
C69: Rams | E69: ='Prime Lambs Merino Ewes'!E220 -> 25 | F69: 225 | G69: 3 | H69: 10 | I69: 168.75
C70: Lambs | E70: ='Prime Lambs Merino Ewes'!E221 -> 950 | I70: 0
H72: Total Feed Cost | I72: =SUM(I62:I64,I68:I70) -> 9258.75

Sheet Prime Lambs Merino Ewes (hidden)
C1: Prime Lambs Merino Ewes
C2: =UPPER(Var_Animal)&" GROSS MARGIN - "&TEXT(m_year,"0000") -> PRIME LAMBS MERINO EWES GROSS MARGIN - 2018
C4: ASSUMPTIONS
C6: Ave Breeding Ewe Fibre Diameter | E6: 21 | O6: Total DSE's | Q6: =E197 -> 1850
C7: No. of breeding ewes (1st Cross) | E7: ='Prime Lambs Merino Ewes Input'!$E$7 -> 1000
C8: 1st cross ewe - Terminal meat sire
C32: INCOME | Q32: $
C34: Wool (kg greasy) | E34: =G234 -> 6377.75 | G34: kg | I34: av price | K34: =K234*100/G234 -> 929.4296578 | M34: c/kg | Q34: =K234 -> 59276.7
C35: Sales | E35: =E212 -> 1190 | G35: animals | I35: av price | K35: =G212 -> 132.5714286 | M35: /head | Q35: =E212*G212 -> 157760
C37: Gross Income | Q37: =SUM(Q34:Q35) -> 217036.7
AA45: STOCK VALUE AND D.S.E REQUIREMENT | AG45: Non lamb related expenses | AM45: Lamb Costs | AN45: No: | AO45: per head | AS45: SHEEP GROSS MARGIN
C46: VARIABLE COSTS | AC46: Value | AD46: Ave Live | AE46: DSE | AS46: PRIME LAMB -
C47: Shearing | K47: Rate | AB47: Number | AC47: $/head | AD47: Wt (Kgs) | AE47: rating | AG47: Shearing | AJ47: =SUM(Q48:Q58) -> 9460.596539 | AM47: Marking | AN47: =$E$121 -> 950 | AO47: =K76+K77 -> 1.55 | AP47: =AN47*AO47 -> 1472.5
C48: Shearing | E48: =E226 -> 970 | G48: sheep | I48: Reset Rate> | J48: =GM_INFO!C30 | K48: =GM_INFO!C30 -> 301.96 | M48: /100 | Q48: =K48/100*ROUND(E48,0) -> 2929.012 | AA48: ewes | AB48: ='Prime Lambs Merino Ewes Input'!$E$7 -> 1000 | AC48: =(G209+G214)/2 -> 162.5 | AD48: 55 | AE48: =IF(AND(AD48>=55,AD48<60),1.8,IF(AND(AD48>=60,AD48<65),2.5,IF(AND(AD48>=65,AD48<70),1.9,IF(AND(AD48>=70,AD48<75),2,IF(AND(AD48>=75,AD48<80),2.1,IF(AND(AD48>=80,AD48<85),2.2,IF(AND(AD48>=85,AD48<90),2.3,IF(AD48>=90,2.4,0)))))))) -> 1.8 | AG48: Animal health | AJ48: =(E219*G219+E220*G220)*K90+(E219*I219+E220*I220)*K91+(E219*K219)*K92 -> 2091.85 | AM48: Animal health | AN48: 950 | AO48: =G220*K91+I220*K90 -> 1.092 | AP48: =AN48*AO48 -> 1037.4
C49: (Federal awards) | E49: =E227 -> 24.25 | G49: rams | I49: Reset Rate> | J49: =GM_INFO!C31 | K49: =GM_INFO!C31 -> 603.92 | M49: /100 | Q49: 144.9408 | AA49: rams | AB49: ='Prime Lambs Merino Ewes Input'!E11*'Prime Lambs Merino Ewes'!AB48 -> 25 | AC49: =(G210+G215)/2 -> 775 | AD49: 100 | AE49: 2 | AG49: Stock Purchase | AJ49: =SUM(Q105:Q105) -> 71140 | AM49: Freight | AN49: 950 | AO49: =K121 -> 4 | AP49: =AN49*AO49 -> 3800
C50: Shed labour | E50: 5 | G50: days | I50: Reset Rate> | J50: =GM_INFO!C32 | K50: =GM_INFO!C32 -> 227.68 | M50: /day | Q50: =K50*ROUND(E50,0) -> 1138.4 | AA50: lambs | AB50: =AC227 -> 950 | AC50: =G211/2 -> 70 | AD50: 35 | AE50: 0 | AG50: Freight | AH50: sheep | AJ50: =SUM(Q119:Q120) -> 2008 | AM50: Yard Fees | AN50: 950 | AO50: =K125 -> 0.85 | AP50: =AN50*AO50 -> 807.5
C51: Woolclasser | E51: 2.5 | G51: days | I51: Reset Rate> | J51: =GM_INFO!C33 | K51: =GM_INFO!C33 -> 287.71 | M51: /day | Q51: =K51*E51 -> 719.275 | AA51: TOTAL | AB51: =SUM(AB48:AB50) -> 1975 | AC51: =AB48*AC48+AB49*AC49+AB50*AC50/2 -> 215125 | AH51: Wool | AJ51: =Q122 -> 646 | AM51: Levies | AN51: 950 | AO51: =K127+K128 -> 2.05 | AP51: =AN51*AO51 -> 1947.5 | AS51: Ewes mated | AU51: ='Prime Lambs Merino Ewes Input'!$E$7 -> 1000 | AX51: Ram % | AY51: =E200 -> 0.025
C52: Superannuation (on ord wages only) | I52: Reset Rate> | J52: =GM_INFO!C34 | K52: =GM_INFO!C34 -> 0.095 | M52: wages | Q52: =(Q48+Q49+Q50+Q51)*K52 -> 468.504641 | AG52: Commission on livestock sales | AJ52: =(K209+K210)*K124 -> 1485.6 | AO52: =SUM(AO47:AO51) -> 9.542 | AQ52: =AO52*AD50 -> 333.97 | AS52: Age ewes purchased | AU52: =E201 -> 1.5 | AX52: Price of rams | AY52: =AL68 -> 0
C53: W/Cover (incl. super + otime etc) | I53: Reset Rate> | J53: =GM_INFO!C35 | K53: =GM_INFO!C35 -> 0.04 | M53: total | Q53: =(Q48+Q49+Q50+Q51+Q52)*K53 -> 216.0052976 | AG53: Yard fees | AJ53: =E119*K125 -> 204 | AM53: Commission | AN53: =$E$121 -> 950 | AO53: =G212 -> 132.5714286 | AP53: =K124 -> 0.06 | AQ53: =AD50*AO53*AP53 -> 278.4 | AS53: Age ewes sold | AU53: =E202 -> 5.5 | AX53: Years rams kept | AY53: =E203 -> 3
C54: Wool packs | E54: =E122 -> 37.51617647 | G54: packs | I54: Reset Rate> | J54: =GM_INFO!C28 | K54: =GM_INFO!C28 -> 11.2 | M54: /pack | Q54: =K54*ROUND(E54,0) -> 425.6 | AG54: Levies | AJ54: =E126*(K126+K128) -> 180 | AS54: Av Weaning % | AU54: ='Prime Lambs Merino Ewes Input'!E10 -> 0.95 | AX54: Age wethers sold | AY54: 0.5
C55: Shed sundries | E55: =E48+E49 -> 994.25 | G55: sheep | I55: Reset Rate> | J55: =GM_INFO!C36 | K55: =GM_INFO!C36 -> 0.15 | M55: /head | Q55: 149.1 | AG55: Wool Selling Charges | AJ55: =Q130+Q131 -> 2907.5265 | AQ55: =SUM(AQ43:AQ53) -> 612.37 | AS55: dse/ewe | AU55: =AE48 -> 1.8 | AX55: Flock death rate | AY55: =E204 -> 0.03
C56: Lice control | E56: =E48+E49 -> 994.25 | G56: sheep | I56: Reset Rate> | J56: =GM_INFO!C19 | K56: =GM_INFO!C19 -> 1.524 | M56: /head | Q56: 1514.856 | AG56: Feed & other costs | AJ56: =SUM(Q144:Q149) -> 15609
C57: Crutch & Wig | E57: =E48+2*E49 -> 1018.5 | G57: ewes | I57: Reset Rate> | J57: =GM_INFO!C38 | K57: =GM_INFO!C38 -> 87.57 | M57: /100 | Q57: =K57/100*ROUND(E57,0) -> 892.3383 | AK57: =SUM(AJ47:AJ56) -> 105732.573
E58: 985 | G58: lambs | I58: Reset Rate> | J58: =GM_INFO!C38 | K58: =GM_INFO!C38 -> 87.57 | M58: /100 | Q58: 862.5645
AS60: EWES | AT60: OPENING | AU60: NATURAL | AV60: PURCHASES | AW60: DEATHS | AX60: % sold | AY60: SALES | AZ60: CLOSING
AS61: AGE | AT61: NUMBERS | AU61: INCREASE | AX61: culled | AZ61: NUMBERS
AS63: 0.5-1.5yr | AV63: =IF($N$78=1.5,AT64,AT63-AW63) -> 0 | AY63: =AT63-AW63 -> 0 | AZ63: =AT63+AU63+AV63-AW63-AY63 -> 0
AS64: 1.5-2.5yr | AT64: =IF(AU52=1.5,AU51/(1+(1-AY55)*(1-AX64)*(1+(1-AY55)*(1-AX65)*(1+(1-AY55)*(1-AX66)*(1+(1-AY55)*(1-AX67))))),0) -> 261.53548 | AV64: =IF(AU52=2.5,AT65-AY64,0) -> 0 | AW64: =AT64*$R$81 -> 0 | AY64: =(AT64-AW64)*AX64 -> 0 | AZ64: 261.53548
AS65: 2.5-3.5yr | AT65: =IF(AU52=2.5,AU51/(1+(1-AY55)*(1-AX65)*(1+(1-AY55)*(1-AX66)*(1+(1-AY55)*(1-AX67)))),AZ64) -> 261.53548 | AV65: =IF(AU52=3.5,AT66-AY65,0) -> 0 | AW65: =AT65*$R$81 -> 0 | AY65: =(AT65-AW65)*AX65 -> 0 | AZ65: 261.53548
AS66: 3.5-4.5yr | AT66: =IF(AU52=3.5,AU51/(1+(1-AY55)*(1-AX66)*(1+(1-AY55)*(1-AX67))),AZ65) -> 261.53548 | AV66: =IF(AU52=4.5,AT67-AY66,0) -> 0 | AW66: =AT66*$R$81 -> 0 | AY66: =(AT66-AW66)*AX66 -> 0 | AZ66: 261.53548
AS67: 4.5-5.5yr | AT67: =IF(AU52=4.5,AU51/(1+(1-AY55)*(1-AX67)),AZ66) -> 261.53548 | AW67: =AT67*$R$81 -> 0 | AX67: =IF(AU53=5.5,1,0) -> 1 | AY67: =(AT67-AW67)*AX67 -> 261.53548 | AZ67: 0
AS68: 5.5-6.5yr | AT68: =AZ67 -> 0 | AW68: =AT68*$R$81 -> 0 | AX68: =IF(AU53=6.5,1,0) -> 0 | AY68: =(AT68-AW68)*AX68 -> 0 | AZ68: 0
AS69: Ewes | AT69: =SUM(AT64:AT68) -> 1046.14192 | AV69: =AV63+AV64+AV65+AV66 -> 0 | AW69: =SUM(AW63:AW68) -> 0 | AY69: =SUM(AY64:AY68) -> 261.53548 | AZ69: =SUM(AZ63:AZ67) -> 784.6064401
AS70: d.s.e's | AT70: =AT63+AT69*AU55 -> 1883.055456
AS73: LAMBS | AT73: OPENING | AU73: NATURAL | AV73: PURCHASES | AW73: DEATHS | AX73: % sold | AY73: SALES | AZ73: CLOSING
AS74: AGE | AT74: NUMBERS | AU74: INCREASE | AX74: culled | AZ74: NUMBERS
C75: Marking
C76: Lamb marking | E76: =AC227 -> 950 | G76: lambs | I76: Reset Rate> | J76: =GM_INFO!C42 | K76: =GM_INFO!C42 -> 1.15 | M76: /head | Q76: =K76*ROUND(E76,0) -> 1092.5 | AS76: 0-0.5yr | AU76: =AU51*AU54 -> 950 | AX76: 1 | AY76: =AU76*AX76 -> 950 | AZ76: =AT76+AU76+AV76-AW76-AY76 -> 0
C77: Ear tags | E77: =AC227 -> 950 | G77: lambs | I77: Reset Rate> | J77: =GM_INFO!C43 | K77: =GM_INFO!C43 -> 0.4 | M77: /head | Q77: 380
AS79: RAMS | AT79: OPENING | AU79: NATURAL | AV79: PURCHASES | AW79: DEATHS | AX79: % sold | AY79: SALES | AZ79: CLOSING
AS80: AGE | AT80: NUMBERS | AU80: INCREASE | AX80: culled | AZ80: NUMBERS
AS82: 0.5-1.5yr | AV82: =AT83/(1-AX82) -> 8.588409083 | AW82: =AT82*$R$81 -> 0 | AZ82: =AT82+AU82+AV82-AW82-AY82 -> 8.588409083
AS83: 1.5-2.5yr | AT83: =IF(AY53=3,(AU51*AY51)/(1+(1-AY55)*(1-AX83)*(1+(1-AY55)*(1-AX84)*(1+(1-AY55)*(1-AX85)))),IF(AY53=4,(AU51*AY51)/(1+(1-AY55)*(1-AX83)*(1+(1-AY55)*(1-AX84)*(1+(1-AY55)*(1-AX85)*(1+(1-AY55)*(1-AX86))))),0)) -> 8.588409083 | AW83: =AT83*$R$81 -> 0 | AZ83: =AT83+AU83+AV83-AW83-AY83 -> 8.588409083
AS84: 2.5-3.5yr | AT84: =AZ83 -> 8.588409083 | AW84: =AT84*$R$81 -> 0 | AZ84: =AT84+AU84+AV84-AW84-AY84 -> 8.588409083
AS85: 3.5-4.5yr | AT85: =AZ84 -> 8.588409083 | AW85: =AT85*$R$81 -> 0 | AX85: =IF(AY53=3,100%,0) -> 1 | AY85: =(AT85-AW85)*AX85 -> 8.588409083 | AZ85: =AT85+AU85+AV85-AW85-AY85 -> 0
AS86: 4.5-5.5yr | AT86: =AZ85 -> 0 | AW86: =AT86*$R$81 -> 0 | AX86: =IF(AY53=4,100%,0) -> 0 | AY86: =AT86-AW86 -> 0 | AZ86: =AT86+AU86+AV86-AW86-AY86 -> 0
AT87: =AT82+AT83+AT84+AT85+AT86 -> 25.76522725 | AV87: =AV82+AV83+AV84+AV85+AV86 -> 8.588409083 | AW87: =AW82+AW83+AW84+AW85+AW86 -> 0 | AY87: =AY82+AY83+AY84+AY85+AY86 -> 8.588409083 | AZ87: =AZ82+AZ83+AZ84+AZ85+AZ86 -> 25.76522725
AS88: d.s.e's | AT88: =AT87*AE49 -> 51.5304545
C89: Animal Health
C90: Drench | E90: =G222 -> 2000 | G90: sheep | I90: Reset Rate> | J90: =GM_INFO!C21 | K90: =GM_INFO!C21 -> 0.432 | M90: /head | Q90: =K90*ROUND(E90,0) -> 864
C91: Vaccinate | E91: =I222 -> 2925 | G91: sheep | I91: Reset Rate> | J91: =GM_INFO!C25 | K91: =GM_INFO!C25 -> 0.33 | M91: /head | Q91: 965.25
C92: Blowfly control | E92: =K222 -> 1000 | G92: sheep | I92: Reset Rate> | J92: =GM_INFO!C27 | K92: =GM_INFO!C27 -> 1.3 | M92: /head | Q92: 1300
C104: Stock purchases
C105: Purchases | Q105: =K214+K215 -> 71140
C117: Sale Costs
C118: Freight
C119: Livestock | E119: =SUM(E209:E210) -> 240 | G119: culls | I119: Reset Rate> | J119: =GM_INFO!B111 | K119: =GM_INFO!B111 -> 4 | M119: /head | Q119: =K119*ROUND(E119,0) -> 960
E120: =E214 -> 262 | G120: ewes | I120: Reset Rate> | J120: =GM_INFO!B112 | K120: =GM_INFO!B112 -> 4 | M120: /head | Q120: =K120*E120 -> 1048
E121: =E211 -> 950 | G121: prime lambs | I121: Reset Rate> | J121: =GM_INFO!B113 | K121: =GM_INFO!B113 -> 4 | M121: /head | Q121: 3800
C122: Wool | E122: =G234/170 -> 37.51617647 | G122: bales | I122: Reset Rate> | J122: =GM_INFO!B114 | K122: =GM_INFO!B114 -> 17 | M122: /bale | Q122: 646
C123: Stock selling charges
C124: Commission/insurance | I124: Reset Rate> | J124: =GM_INFO!C48 | K124: =GM_INFO!C48 -> 0.06 | M124: gross $ | Q124: =K124*Q35 -> 9465.6
C125: Yard fees | E125: =E212 -> 1190 | G125: head | I125: Reset Rate> | J125: =GM_INFO!C49 | K125: =GM_INFO!C49 -> 0.85 | M125: /head | Q125: =K125*ROUND(E125,0) -> 1011.5
C126: Levy-sheep | E126: =E119 -> 240 | G126: head | I126: Reset Rate> | J126: =GM_INFO!C50 | K126: =GM_INFO!C50 -> 0.2 | M126: /head | Q126: 48
C127: Levy-lambs | E127: =E211 -> 950 | G127: head | I127: Reset Rate> | J127: =GM_INFO!C51 | K127: =GM_INFO!C51 -> 1.5 | M127: /head | Q127: 1425
C128: SA sheep industry levy | E128: =E212 -> 1190 | G128: head | I128: Reset Rate> | J128: =GM_INFO!C52 | K128: =GM_INFO!C52 -> 0.55 | M128: /head | Q128: 654.5
C129: Wool selling charges
C130: Brokerage/testing/insurance | I130: Reset Rate> | J130: =GM_INFO!C53 | K130: =GM_INFO!C53 -> 0.27 | M130: /kg | Q130: =K130*E34 -> 1721.9925
C131: Wool levy | I131: Reset Rate> | J131: =GM_INFO!C54 | K131: =GM_INFO!C54 -> 0.02 | M131: gross | Q131: =K131*Q34 -> 1185.534
C143: Feed and Other Costs
C144: Hay | Q144: =SUM('Prime Lambs Merino Ewes Input'!I62:I64) -> 3690
C145: Grain | Q145: =SUM('Prime Lambs Merino Ewes Input'!I68:I70) -> 5568.75
C146: Insurance | E146: =AC51 -> 215125 | G146: value | I146: Reset Rate> | J146: =GM_INFO!B107 | K146: =GM_INFO!B107 -> 2 | M146: /$'000 | Q146: =K146/1000*E146 -> 430.25
C147: Water | E147: =$Q$6 -> 1850 | G147: DSE's | I147: Reset Rate> | J147: =GM_INFO!D79 | K147: =GM_INFO!D79 -> 1.5 | M147: /DSE's | Q147: =K147*E147 -> 2775
C148: Veh Fuel, R&M | E148: 1850 | G148: DSE's | I148: Reset Rate> | J148: =GM_INFO!D80 | K148: =GM_INFO!D80 -> 1.2 | M148: /DSE's | Q148: 2220
C149: Other | E149: 1850 | G149: DSE's | I149: Reset Rate> | J149: =GM_INFO!D81 | K149: =GM_INFO!D81 -> 0.5 | M149: /DSE's | Q149: 925
C170: TOTAL VARIABLE COSTS | Q170: =SUM(Q48:Q166) -> 122777.473
C172: GROSS MARGIN TOTAL | Q172: =Q37-Q170 -> 94259.22696
C174: GROSS MARGIN/DSE | Q174: =Q172/Q6 -> 50.95093349
C194: PRODUCTION DATA
C196: Stocking rate (DSE/Ha) | E196: 6 | K196: Culling Rate (% from each group) | AA196: SHEEP GROSS MARGIN
C197: Total DSE's | E197: =SUMPRODUCT(AB48:AB50,AE48:AE50) -> 1850 | K197: Age Group | M197: Ewes | O197: Wethers | AA197: PRIME LAMB -
C198: SHEEP GRAZING AREA | E198: =E197/E196 -> 308.3333333 | K198: 0.5 | M198: =AF214 -> 0
C199: Number of ewes mated | E199: ='Prime Lambs Merino Ewes Input'!E7 -> 1000 | K199: 1.5 | M199: 0
C200: Ram percentage | E200: ='Prime Lambs Merino Ewes Input'!E11 -> 0.025 | K200: 2.5 | M200: 0
C201: Age ewes bought (yrs) | E201: ='Prime Lambs Merino Ewes Input'!E8 -> 1.5 | K201: 3.5 | M201: 0
C202: Age ewes culled | E202: ='Prime Lambs Merino Ewes Input'!E9 -> 5.5 | K202: 4.5 | M202: 1 | AA202: Ewes mated | AC202: ='Prime Lambs Merino Ewes Input'!E7 -> 1000 | AF202: Ram % | AG202: =E200 -> 0.025
B203: =VLOOKUP(r[0]c3&"No Ops",CHOOSE({1,2},tbl_ops[Name]&tbl_ops[Category],INDIRECT("tbl_ops["&var_crop&"]")),2,0) | C203: Years rams kept | E203: ='Prime Lambs Merino Ewes Input'!E12 -> 3 | K203: 5.5 | M203: 0 | AA203: Age ewes purchased | AC203: =E201 -> 1.5 | AF203: Price of rams | AG203: =G215 -> 1500
B204: =VLOOKUP(r[0]c3&"No Ops",CHOOSE({1,2},tbl_ops[Name]&tbl_ops[Category],INDIRECT("tbl_ops["&var_crop&"]")),2,0) | C204: Flock death rate | E204: ='Prime Lambs Merino Ewes Input'!E13 -> 0.03 | K204: 6.5 | M204: 0 | AA204: Age ewes sold | AC204: =E202 -> 5.5 | AF204: Years rams kept | AG204: =E203 -> 3
B205: =VLOOKUP(r[0]c3&"No Ops",CHOOSE({1,2},tbl_ops[Name]&tbl_ops[Category],INDIRECT("tbl_ops["&var_crop&"]")),2,0) | C205: Average weaning rate | E205: =AC205 -> 0.95 | AA205: Av Weaning % | AC205: ='Prime Lambs Merino Ewes Input'!E10 -> 0.95 | AF205: Age wethers sold | AG205: 0.5
B206: =VLOOKUP(r[0]c3&"No Ops",CHOOSE({1,2},tbl_ops[Name]&tbl_ops[Category],INDIRECT("tbl_ops["&var_crop&"]")),2,0) | C206: % Lambs carried over | E206: 0 | AA206: dse/ewe | AC206: =AE48 -> 1.8 | AF206: Flock death rate | AG206: =E204 -> 0.03
B207: =VLOOKUP(r[0]c3&var_rain,CHOOSE({1,2},tbl_ops[Name]&tbl_ops[Rainfall],INDIRECT("tbl_ops["&var_crop&"]")),2,0)
B208: =VLOOKUP(r[0]c3&var_rain,CHOOSE({1,2},tbl_ops[Name]&tbl_ops[Rainfall],INDIRECT("tbl_ops["&var_crop&"]")),2,0) | C208: SALES | E208: Number | G208: Price/hd | I208: Age | K208: Total
B209: =VLOOKUP(r[0]c3&var_rain,CHOOSE({1,2},tbl_ops[Name]&tbl_ops[Rainfall],INDIRECT("tbl_ops["&var_crop&"]")),2,0) | C209: c.f.a ewes | E209: =ROUND(AG220,0) -> 232 | G209: ='Prime Lambs Merino Ewes Input'!E18 -> 105 | I209: =E202 -> 5.5 | K209: =ROUND(E209,0)*G209 -> 24360
B210: =VLOOKUP(r[0]c3&var_rain,CHOOSE({1,2},tbl_ops[Name]&tbl_ops[Rainfall],INDIRECT("tbl_ops["&var_crop&"]")),2,0) | C210: c.f.a rams | E210: =ROUND(AG238,0) -> 8 | G210: ='Prime Lambs Merino Ewes Input'!E19 -> 50 | I210: =E203+1.5 -> 4.5 | K210: 400
C211: Lambs | E211: =ROUND(AG227,0) -> 950 | G211: ='Prime Lambs Merino Ewes Input'!E20 -> 140 | I211: 20 Weeks | K211: 133000 | AA211: EWES | AB211: OPENING | AC211: NATURAL | AD211: PURCHASES | AE211: DEATHS | AF211: % sold | AG211: SALES | AH211: CLOSING
C212: TOTAL | E212: =SUM(E209:E211) -> 1190 | G212: =K212/E212 -> 132.5714286 | K212: =SUM(K209:K211) -> 157760 | AA212: AGE | AB212: NUMBERS | AC212: INCREASE | AF212: culled | AH212: NUMBERS
C213: PURCHASES | E213: Number | G213: Price/hd | I213: Age | K213: Total
C214: Ewes | E214: =ROUND(AD220,0) -> 262 | G214: ='Prime Lambs Merino Ewes Input'!E29 -> 220 | I214: =E201 -> 1.5 | K214: =E214*G214 -> 57640 | AA214: 0.5-1.5yr | AD214: =IF(AC203=1.5,AB215,AB214-AE214) -> 261.53548 | AG214: =AB214-AE214 -> 0 | AH214: =AB214+AC214+AD214-AE214-AG214 -> 261.53548
C215: Rams | E215: =ROUND(AD238,0) -> 9 | G215: ='Prime Lambs Merino Ewes Input'!E30 -> 1500 | I215: 1.5 | K215: =E215*G215 -> 13500 | AA215: 1.5-2.5yr | AB215: =IF(AC203=1.5,AC202/(1+(1-AG206)*(1-AF215)*(1+(1-AG206)*(1-AF216)*(1+(1-AG206)*(1-AF217)*(1+(1-AG206)*(1-AF218))))),0) -> 261.53548 | AD215: =IF(AC203=2.5,AB216-AG215,0) -> 0 | AE215: =AB215*$AG$206 -> 7.846064401 | AG215: =(AB215-AE215)*AF215 -> 0 | AH215: 253.6894156
AA216: 2.5-3.5yr | AB216: =IF(AC203=2.5,AC202/(1+(1-AG206)*(1-AF216)*(1+(1-AG206)*(1-AF217)*(1+(1-AG206)*(1-AF218)))),AH215) -> 253.6894156 | AD216: =IF(AC203=3.5,AB217-AG216,0) -> 0 | AE216: 7.610682469 | AG216: =(AB216-AE216)*AF216 -> 0 | AH216: 246.0787332
E217: Number of Times | AA217: 3.5-4.5yr | AB217: =IF(AC203=3.5,AC202/(1+(1-AG206)*(1-AF217)*(1+(1-AG206)*(1-AF218))),AH216) -> 246.0787332 | AD217: =IF(AC203=4.5,AB218-AG217,0) -> 0 | AE217: 7.382361995 | AG217: =(AB217-AE217)*AF217 -> 0 | AH217: 238.6963712
C218: STOCK HEALTH REQUIREMENTS | E218: Number | G218: Drench | I218: Vacc. | K218: Blowfly | M218: DSE | AA218: 4.5-5.5yr | AB218: =IF(AC203=4.5,AC202/(1+(1-AG206)*(1-AF218)),AH217) -> 238.6963712 | AE218: 7.160891135 | AF218: =IF(AC204=5.5,1,0) -> 1 | AG218: =(AB218-AE218)*AF218 -> 231.53548 | AH218: 0
C219: Ewes | E219: ='Prime Lambs Merino Ewes Input'!E7 -> 1000 | G219: ='Prime Lambs Merino Ewes Input'!F52 -> 1 | I219: ='Prime Lambs Merino Ewes Input'!G52 -> 1 | K219: ='Prime Lambs Merino Ewes Input'!H52 -> 1 | M219: 1.8 | AA219: 5.5-6.5yr | AB219: =AH218 -> 0 | AE219: 0 | AF219: =IF(AC204=6.5,1,0) -> 0 | AG219: =(AB219-AE219)*AF219 -> 0 | AH219: 0
C220: Rams | E220: =AB49 -> 25 | G220: ='Prime Lambs Merino Ewes Input'!F53 -> 2 | I220: ='Prime Lambs Merino Ewes Input'!G53 -> 1 | K220: ='Prime Lambs Merino Ewes Input'!H53 -> 0 | M220: 2 | AA220: Ewes | AB220: =SUM(AB215:AB219) -> 1000 | AD220: =AD214+AD215+AD216+AD217 -> 261.53548 | AE220: =SUM(AE214:AE219) -> 30 | AG220: =SUM(AG215:AG219) -> 231.53548 | AH220: =SUM(AH214:AH218) -> 1000
C221: Lambs | E221: =AC227 -> 950 | G221: ='Prime Lambs Merino Ewes Input'!F54 -> 1 | I221: ='Prime Lambs Merino Ewes Input'!G54 -> 2 | K221: ='Prime Lambs Merino Ewes Input'!H54 -> 0 | AA221: d.s.e's | AB221: =AB214+AB220*AC206 -> 1800
C222: TOTAL | E222: =SUM(E219:E221) -> 1975 | G222: =SUMPRODUCT($E$219:$E$221,G219:G221) -> 2000 | I222: =SUMPRODUCT($E$219:$E$221,I219:I221) -> 2925 | K222: =SUMPRODUCT($E$219:$E$221,K219:K221) -> 1000 | M222: =SUMPRODUCT($E$219:$E$221,M219:M221) -> 1850
G224: Wool Cut kg/hd | AA224: LAMBS | AB224: OPENING | AC224: NATURAL | AD224: PURCHASES | AE224: DEATHS | AF224: % sold | AG224: SALES | AH224: CLOSING
C225: SHEARING | E225: Number | I225: Price | K225: Total | AA225: AGE | AB225: NUMBERS | AC225: INCREASE | AF225: culled | AH225: NUMBERS
C226: Ewes | E226: =AB220-AE220 -> 970 | G226: ='Prime Lambs Merino Ewes Input'!F43 -> 6.5 | I226: ='Prime Lambs Merino Ewes Input'!G43 -> 9.36 | K226: =I226*G226*E226 -> 59014.8
C227: Crossbred rams | E227: =AB238-AE238 -> 24.25 | G227: ='Prime Lambs Merino Ewes Input'!F44 -> 3 | I227: ='Prime Lambs Merino Ewes Input'!G44 -> 3.6 | K227: =I227*G227*E227 -> 261.9 | AA227: 0-0.5yr | AC227: =AC202*AC205 -> 950 | AF227: 1 | AG227: =AC227*AF227 -> 950 | AH227: =AB227+AC227+AD227-AE227-AG227 -> 0
AA230: RAMS | AB230: OPENING | AC230: NATURAL | AD230: PURCHASES | AE230: DEATHS | AF230: % sold | AG230: SALES | AH230: CLOSING
AA231: AGE | AB231: NUMBERS | AC231: INCREASE | AF231: culled | AH231: NUMBERS
AA233: 0.5-1.5yr | AD233: =AB234/(1-AF233) -> 8.588409083 | AE233: =AB233*$AG$206 -> 0 | AH233: =AB233+AC233+AD233-AE233-AG233 -> 8.588409083
C234: TOTAL | E234: =SUM(E226:E233) -> 994.25 | G234: =SUMPRODUCT(E226:E233,G226:G233) -> 6377.75 | K234: =SUM(K226:K233) -> 59276.7 | AA234: 1.5-2.5yr | AB234: =IF(AG204=3,(AC202*AG202)/(1+(1-AG206)*(1-AF234)*(1+(1-AG206)*(1-AF235)*(1+(1-AG206)*(1-AF236)))),IF(AG204=4,(AC202*AG202)/(1+(1-AG206)*(1-AF234)*(1+(1-AG206)*(1-AF235)*(1+(1-AG206)*(1-AF236)*(1+(1-AG206)*(1-AF237))))),0)) -> 8.588409083 | AE234: 0.2576522725 | AH234: =AB234+AC234+AD234-AE234-AG234 -> 8.330756811
AA235: 2.5-3.5yr | AB235: =AH234 -> 8.330756811 | AE235: 0.2499227043 | AH235: =AB235+AC235+AD235-AE235-AG235 -> 8.080834106
AA236: 3.5-4.5yr | AB236: =AH235 -> 8.080834106 | AE236: 0.2424250232 | AF236: =IF(AG204=3,100%,0) -> 1 | AG236: =(AB236-AE236)*AF236 -> 7.838409083 | AH236: =AB236+AC236+AD236-AE236-AG236 -> 0
G237: Hay Cost ($/T) | I237: Kg Fed per Week | K237: No of Weeks Feeding | M237: Total Cost ($) | AA237: 4.5-5.5yr | AB237: =AH236 -> 0 | AE237: 0 | AF237: =IF(AG204=4,100%,0) -> 0 | AG237: =AB237-AE237 -> 0 | AH237: =AB237+AC237+AD237-AE237-AG237 -> 0
C238: FEEDING | E238: Number | AB238: =AB233+AB234+AB235+AB236+AB237 -> 25 | AD238: =AD233+AD234+AD235+AD236+AD237 -> 8.588409083 | AE238: =AE233+AE234+AE235+AE236+AE237 -> 0.75 | AG238: =AG233+AG234+AG235+AG236+AG237 -> 7.838409083 | AH238: =AH233+AH234+AH235+AH236+AH237 -> 25
C239: Ewes | E239: ='Prime Lambs Merino Ewes Input'!E62 -> 1000 | G239: ='Prime Lambs Merino Ewes Input'!F62 -> 180 | I239: ='Prime Lambs Merino Ewes Input'!G62 -> 2.5 | K239: ='Prime Lambs Merino Ewes Input'!H62 -> 8 | M239: =(E239*G239*I239*K239)/1000 -> 3600 | AA239: d.s.e's | AB239: =AB238*AE142 -> 0
C240: Rams | E240: ='Prime Lambs Merino Ewes Input'!E63 -> 25 | G240: ='Prime Lambs Merino Ewes Input'!F63 -> 180 | I240: ='Prime Lambs Merino Ewes Input'!G63 -> 2.5 | K240: ='Prime Lambs Merino Ewes Input'!H63 -> 8 | M240: 90
C241: Lambs | E241: ='Prime Lambs Merino Ewes Input'!E64 -> 950 | G241: ='Prime Lambs Merino Ewes Input'!F64 -> 200 | I241: ='Prime Lambs Merino Ewes Input'!G64 -> 0 | K241: ='Prime Lambs Merino Ewes Input'!H64 -> 0 | M241: 0
G242: Grain Cost ($/T) | I242: Kg Fed per Week | K242: No of Weeks Feeding | M242: Total Cost ($)
E243: Number
C244: Ewes | E244: ='Prime Lambs Merino Ewes Input'!E68 -> 1000 | G244: ='Prime Lambs Merino Ewes Input'!F68 -> 225 | I244: ='Prime Lambs Merino Ewes Input'!G68 -> 3 | K244: ='Prime Lambs Merino Ewes Input'!H68 -> 8 | M244: =(E244*G244*I244*K244)/1000 -> 5400
C245: Rams | E245: ='Prime Lambs Merino Ewes Input'!E69 -> 25 | G245: ='Prime Lambs Merino Ewes Input'!F69 -> 225 | I245: ='Prime Lambs Merino Ewes Input'!G69 -> 3 | K245: ='Prime Lambs Merino Ewes Input'!H69 -> 10 | M245: 168.75
C246: Lambs | E246: ='Prime Lambs Merino Ewes Input'!E70 -> 950 | G246: ='Prime Lambs Merino Ewes Input'!F70 -> 0 | I246: ='Prime Lambs Merino Ewes Input'!G70 -> 0 | K246: ='Prime Lambs Merino Ewes Input'!H70 -> 0 | M246: 0
C247: TOTAL FEED COST | M247: =SUM(M239:M241,M244:M246) -> 9258.75
C250: GM SENSITIVITY
C251: Gross Margin/DSE | E251: Average Weaning Rate
G252: 0.75 | I252: 0.85 | K252: 0.95 | M252: 1.05 | O252: 1.15 | Q252: 1.25
E253: 115 | G253: =($E$199*G$252*$E253*(1-$K$124)+SUM($K$209:$K$210)+$K$234-$AK$57-$E$199*G$252*$AO$52)/$E$197 -> 28.22844701 | I253: =($E$199*I$252*$E253*(1-$K$124)+SUM($K$209:$K$210)+$K$234-$AK$57-$E$199*I$252*$AO$52)/$E$197 -> 33.55590647 | K253: =($E$199*K$252*$E253*(1-$K$124)+SUM($K$209:$K$210)+$K$234-$AK$57-$E$199*K$252*$AO$52)/$E$197 -> 38.88336593 | M253: =($E$199*M$252*$E253*(1-$K$124)+SUM($K$209:$K$210)+$K$234-$AK$57-$E$199*M$252*$AO$52)/$E$197 -> 44.21082538 | O253: =($E$199*O$252*$E253*(1-$K$124)+SUM($K$209:$K$210)+$K$234-$AK$57-$E$199*O$252*$AO$52)/$E$197 -> 49.53828484 | Q253: =($E$199*Q$252*$E253*(1-$K$124)+SUM($K$209:$K$210)+$K$234-$AK$57-$E$199*Q$252*$AO$52)/$E$197 -> 54.8657443
E254: 120 | G254: 30.13385241 | I254: 35.71536593 | K254: 41.29687944 | M254: 46.87839295 | O254: 52.45990647 | Q254: 58.04141998
C255: Average Lamb Sale Price($/hd) | E255: 125 | G255: 32.03925782 | I255: 37.87482538 | K255: 43.71039295 | M255: 49.54596052 | O255: 55.38152809 | Q255: 61.21709565
E256: 130 | G256: 33.94466322 | I256: 40.03428484 | K256: 46.12390647 | M256: 52.21352809 | O256: 58.30314971 | Q256: 64.39277133
E257: 135 | G257: 35.85006863 | I257: 42.1937443 | K257: 48.53741998 | M257: 54.88109565 | O257: 61.22477133 | Q257: 67.56844701
E258: 140 | G258: 37.75547403 | I258: 44.35320376 | K258: 50.95093349 | M258: 57.54866322 | O258: 64.14639295 | Q258: 70.74412268
E259: 145 | G259: 39.66087944 | I259: 46.51266322 | K259: 53.36444701 | M259: 60.21623079 | O259: 67.06801457 | Q259: 73.91979836
E260: 150 | G260: 41.56628484 | I260: 48.67212268 | K260: 55.77796052 | M260: 62.88379836 | O260: 69.9896362 | Q260: 77.09547403
E261: 155 | G261: 43.47169025 | I261: 50.83158214 | K261: 58.19147403 | M261: 65.55136593 | O261: 72.91125782 | Q261: 80.27114971
E262: 160 | G262: 45.37709565 | I262: 52.9910416 | K262: 60.60498755 | M262: 68.21893349 | O262: 75.83287944 | Q262: 83.44682538
E263: 165 | G263: 47.28250106 | I263: 55.15050106 | K263: 63.01850106 | M263: 70.88650106 | O263: 78.75450106 | Q263: 86.62250106

Sheet Merino SR Input (hidden)
C2: ="MERINO SR GROSS MARGIN - "&TEXT(m_year,"0000") -> MERINO SR GROSS MARGIN - 2018
C4: GENERAL INFORMATION
C5: This represents a self-replacing merino ewe flock, producing 21 micron wool. Adjust wool price if different micron wool is produced. Following are the various assumptions used in the calculation of the Gross Margin. Cells with yellow highlight can be changed.
C7: Ewes mated | E7: 1000
C8: Age ewes 1st mating | E8: 1.5
C9: Age ewes sold | E9: 6.5
C10: Av Weaning % | E10: 0.95
C11: Ram percentage | E11: 0.025
C12: Years Rams Kept | E12: 4
C13: Flock death Rate | E13: 0.03
C14: % Lambs carried over | E14: 0
C17: LIVESTOCK SALES | E17: Price/Hd | F17: Number | G17: Total
C18: c.f.a Ewes | E18: 105 | F18: ='Merino SR'!AG220 -> 203.9596235 | G18: =E18*ROUND(F18,0) -> 21420
C19: c.f.a Merino Rams | E19: 50 | F19: ='Merino SR'!AG244 -> 5.788387001 | G19: 300
C20: ewe hoggets | E20: 220 | F20: ='Merino SR'!AG222 -> 226.7903765 | G20: 49940
C21: wether lambs | E21: 115 | F21: ='Merino SR'!AG230 -> 475 | G21: 54625
G22: 0
G23: 0
C25: TOTAL SALES | F25: =SUM(F18:F23) -> 911.538387 | G25: =SUM(G18:G23) -> 126285
C28: LIVESTOCK PURCHASES | E28: Price/Hd | F28: Number | G28: Total
C29: Ewes | E29: 250 | F29: ='Merino SR'!AD220 -> 0 | G29: =E29*F29 -> 0
C30: Rams | E30: 2000 | F30: ='Merino SR'!AD244 -> 6.538387001 | G30: =E30*F30 -> 13076.774
C32: TOTAL PURCHASES | F32: =SUM(F29:F30) -> 6.538387001 | G32: =SUM(G29:G30) -> 13076.774
C35: WOOL PRICE (cents/kg) | F35: =TEXT(m_year-3,"0000")&" Average (Clean)" -> 2015 Average (Clean) | G35: =TEXT(m_year-2,"0000")&" Average (Clean)" -> 2016 Average (Clean) | H35: =TEXT(m_year-1,"0000")&" Average (Clean)" -> 2017 Average (Clean) | I35: Budget Base (Clean) | J35: Budget Base (Greasy)
E36: Cereal Zone 21 mic 68% yield | F36: 1278 | G36: 1397 | H36: 1533 | I36: 1530 | J36: 1040
C37: Allow 90% to account for lower value of bellies, skirtings etc. | J37: =J36*0.9 -> 936
C41: WOOL SALES - SHEARING | F41: Wool Cut | G41: Wool Price
E42: Number | F42: kg/hd | G42: cents/kg
C43: Ewes | E43: =ROUND('Merino SR'!E233,0) -> 980 | F43: 6.5 | G43: =$J$37 -> 936
C44: Ewe hoggets | E44: =ROUND('Merino SR'!E234,0) -> 468 | F44: 5.5 | G44: 936
C45: Wether weaners | E45: =ROUND('Merino SR'!E235,0) -> 0 | F45: 5 | G45: 936
C46: Lambs | E46: =ROUND('Merino SR'!E236,0) -> 950 | F46: 2 | G46: 936
C47: Merino rams | E47: =ROUND('Merino SR'!E237,0) -> 25 | F47: 9.5 | G47: 936
C51: TOTAL | E51: =SUM(E43:E50) -> 2423 | F51: =SUMPRODUCT(E43:E49,F43:F49) -> 11081.5
C54: STOCK HEALTH REQUIREMENTS
G55: Number of times
E56: Number | F56: Drench | G56: Vacc. | H56: Blowfly
C57: Ewes | E57: ='Merino SR'!E220 -> 1000 | F57: 1 | G57: 1 | H57: 1
C58: Ewe hoggets | E58: ='Merino SR'!E221 -> 475 | F58: 1 | G58: 1 | H58: 1
C59: Wether weaners | E59: ='Merino SR'!E222 -> 0 | F59: 1 | G59: 1 | H59: 1
C60: Merino lambs | E60: ='Merino SR'!E223 -> 950 | F60: 1 | G60: 2 | H60: 0
C61: Merino rams | E61: ='Merino SR'!E224 -> 25 | F61: 2 | G61: 1 | H61: 1
C63: TOTAL | E63: =SUM(E57:E61) -> 2450 | F63: =SUMPRODUCT($E$57:$E$61,F57:F61) -> 2475 | G63: =SUMPRODUCT($E$57:$E$61,G57:G61) -> 3400 | H63: =SUMPRODUCT($E$57:$E$61,H57:H61) -> 1500
C66: FEEDING
C67: HAY | F67: Hay | G67: Kgs Fed | H67: No Weeks | I67: Total
E68: Number | F68: Cost ($/T) | G68: per Week | H68: of Feeding | I68: Cost ($)
C69: Ewes | E69: ='Merino SR'!E220 -> 1000 | F69: 180 | G69: 2 | H69: 10 | I69: =(H69*G69*E69)/1000*F69 -> 3600
C70: Weaner | I70: 0
C71: Ewe hoggets | I71: 0
C72: Merino lambs | I72: 0
C73: Merino rams | I73: 0
C75: GRAIN | F75: Grain | G75: Kgs Fed | H75: No Weeks | I75: Total
E76: Number | F76: Cost ($/T) | G76: per Week | H76: of Feeding | I76: Cost ($)
C77: Ewes | E77: ='Merino SR'!E220 -> 1000 | F77: 200 | G77: 2.4 | H77: 10 | I77: =(H77*G77*E77)/1000*F77 -> 4800
C78: Weaner | E78: ='Merino SR'!E221 -> 475 | F78: 300 | G78: 1 | H78: 10 | I78: 1425
C79: Ewe hoggets | I79: 0
C80: Merino lambs | I80: 0
C81: Merino rams | I81: 0
H83: Total Feed Cost | I83: =SUM(I69:I73,I77:I81) -> 9825

Sheet Merino SR (hidden)
C1: MERINO SR
C2: =UPPER(Var_Animal)&" GROSS MARGIN - "&TEXT(m_year,"0000") -> MERINO SR GROSS MARGIN - 2018
C4: ASSUMPTIONS
C6: Ave Breeding Ewe Fibre Diameter | E6: 21 | O6: Total DSE's | Q6: =E197 -> 2420
C7: No. of breeding ewes | E7: ='Merino SR Input'!$E$7 -> 1000 | O7: Stocking Rate (DSE/Ha) | Q7: =E196 -> 6
C32: INCOME | Q32: $
C34: Wool (kg greasy) | E34: =I241 -> 11081.5 | G34: kg | I34: av price | K34: ='Merino SR Input'!J37 -> 936 | M34: c/kg | Q34: =M241 -> 103722.84
C35: Sales | E35: =E214 -> 912 | G35: animals | I35: av price | K35: =G214 -> 138.4703947 | M35: /head | Q35: =I214 -> 126285
C37: Gross Income | Q37: =SUM(Q34:Q35) -> 230007.84
AA45: STOCK VALUE AND D.S.E REQUIREMENT
C46: VARIABLE COSTS
C47: Shearing | K47: Rate
C48: Shearing | E48: =E241-E237 -> 2398 | G48: sheep | I48: Reset Rate> | J48: =GM_INFO!C30 | K48: =GM_INFO!C30 -> 301.96 | M48: /100 | Q48: =K48/100*ROUND(E48,0) -> 7241.0008
C49: (Federal awards) | E49: =E224 -> 25 | G49: rams | I49: Reset Rate> | J49: =GM_INFO!C31 | K49: =GM_INFO!C31 -> 603.92 | M49: /100 | Q49: 150.98
C50: Shed labour | E50: 8 | G50: days | I50: Reset Rate> | J50: =GM_INFO!C32 | K50: =GM_INFO!C32 -> 227.68 | M50: /day | Q50: =K50*ROUND(E50,0) -> 1821.44
C51: Woolclasser | E51: 4 | G51: days | I51: Reset Rate> | J51: =GM_INFO!C33 | K51: =GM_INFO!C33 -> 287.71 | M51: /day | Q51: =K51*E51 -> 1150.84
C52: Superannuation (on ord wages only) | I52: Reset Rate> | J52: =GM_INFO!C34 | K52: =GM_INFO!C34 -> 0.095 | M52: wages | Q52: =(Q48+Q49+Q50+Q51)*K52 -> 984.604776
C53: W/Cover (incl. super + otime etc) | I53: Reset Rate> | J53: =GM_INFO!C35 | K53: =GM_INFO!C35 -> 0.04 | M53: total | Q53: =(Q48+Q49+Q50+Q51+Q52)*K53 -> 453.954623
C54: Wool packs | E54: =E122 -> 65.18529412 | G54: packs | I54: Reset Rate> | J54: =GM_INFO!C28 | K54: =GM_INFO!C28 -> 11.2 | M54: /pack | Q54: =K54*ROUND(E54,0) -> 728
C55: Shed sundries | E55: =E48+E49 -> 2423 | G55: sheep | I55: Reset Rate> | J55: =GM_INFO!C36 | K55: =GM_INFO!C36 -> 0.15 | M55: /head | Q55: 363.45
C56: Lice control | E56: =E48+E49 -> 2423 | G56: sheep | I56: Reset Rate> | J56: =GM_INFO!C19 | K56: =GM_INFO!C19 -> 1.524 | M56: /head | Q56: 3692.652
C57: Crutch & Wig | E57: =SUM(E233:E235) -> 1448 | G57: ewes | I57: Reset Rate> | J57: =GM_INFO!C38 | K57: =GM_INFO!C38 -> 87.57 | M57: /100 | Q57: =K57/100*ROUND(E57,0) -> 1268.0136
E58: =E49 -> 25 | G58: rams | I58: Reset Rate> | J58: =GM_INFO!C39 | K58: =GM_INFO!C39 -> 175.14 | M58: /100 | Q58: 43.785
C75: Marking
C76: Lamb marking | E76: =E199*E205 -> 950 | G76: lambs | I76: Reset Rate> | J76: =GM_INFO!C41 | K76: =GM_INFO!C41 -> 1.4 | M76: /head | Q76: =K76*ROUND(E76,0) -> 1330
C77: Ear tags | E77: =E76 -> 950 | G77: lambs | I77: Reset Rate> | J77: =GM_INFO!C43 | K77: =GM_INFO!C43 -> 0.4 | M77: /head | Q77: 380
C78: Pain relief | E78: =E76 -> 950 | G78: lambs | I78: Reset Rate> | J78: =GM_INFO!C44 | K78: =GM_INFO!C44 -> 0.45 | M78: /head | Q78: =K78*ROUND(E78,0) -> 427.5
AS79: RAMS | AT79: OPENING | AU79: NATURAL | AV79: PURCHASES | AW79: DEATHS | AX79: % sold | AY79: SALES | AZ79: CLOSING
AS80: AGE | AT80: NUMBERS | AU80: INCREASE | AX80: culled | AZ80: NUMBERS
AS82: 0.5-1.5yr | AV82: =AT83/(1-AX82) -> 0 | AW82: =AT82*$R$81 -> 0 | AZ82: =AT82+AU82+AV82-AW82-AY82 -> 0
AS83: 1.5-2.5yr | AT83: =IF(AY53=3,(AU51*AY51)/(1+(1-AY55)*(1-AX83)*(1+(1-AY55)*(1-AX84)*(1+(1-AY55)*(1-AX85)))),IF(AY53=4,(AU51*AY51)/(1+(1-AY55)*(1-AX83)*(1+(1-AY55)*(1-AX84)*(1+(1-AY55)*(1-AX85)*(1+(1-AY55)*(1-AX86))))),0)) -> 0 | AW83: =AT83*$R$81 -> 0 | AZ83: =AT83+AU83+AV83-AW83-AY83 -> 0
AS84: 2.5-3.5yr | AT84: =AZ83 -> 0 | AW84: =AT84*$R$81 -> 0 | AZ84: =AT84+AU84+AV84-AW84-AY84 -> 0
AS85: 3.5-4.5yr | AT85: =AZ84 -> 0 | AW85: =AT85*$R$81 -> 0 | AX85: =IF(AY53=3,100%,0) -> 0 | AY85: =(AT85-AW85)*AX85 -> 0 | AZ85: =AT85+AU85+AV85-AW85-AY85 -> 0
AS86: 4.5-5.5yr | AT86: =AZ85 -> 0 | AW86: =AT86*$R$81 -> 0 | AX86: =IF(AY53=4,100%,0) -> 0 | AY86: =AT86-AW86 -> 0 | AZ86: =AT86+AU86+AV86-AW86-AY86 -> 0
AT87: =AT82+AT83+AT84+AT85+AT86 -> 0 | AV87: =AV82+AV83+AV84+AV85+AV86 -> 0 | AW87: =AW82+AW83+AW84+AW85+AW86 -> 0 | AY87: =AY82+AY83+AY84+AY85+AY86 -> 0 | AZ87: =AZ82+AZ83+AZ84+AZ85+AZ86 -> 0
AS88: d.s.e's | AT88: =AT87*AE49 -> 0
C89: Animal Health
C90: Drench | E90: =G228 -> 2475 | G90: sheep | I90: Reset Rate> | J90: =GM_INFO!C21 | K90: =GM_INFO!C21 -> 0.432 | M90: /head | Q90: =K90*ROUND(E90,0) -> 1069.2
C91: Vaccinate | E91: =I228 -> 3400 | G91: sheep | I91: Reset Rate> | J91: =GM_INFO!C23 | K91: =GM_INFO!C23 -> 0.264 | M91: /head | Q91: 897.6
C92: Blowfly control | E92: =K228 -> 1500 | G92: sheep | I92: Reset Rate> | J92: =GM_INFO!C27 | K92: =GM_INFO!C27 -> 1.3 | M92: /head | Q92: 1950
C104: Stock purchases
C105: Purchases | E105: =ROUND(AD244,0) -> 7 | G105: rams | I105: Reset Rate> | J105: ='Merino SR Input'!E30 | K105: ='Merino SR Input'!E30 -> 2000 | M105: /head | Q105: =K105*E105 -> 14000
C117: Sale Costs
C118: Freight
C119: Livestock | E119: =E214 -> 912 | G119: sheep | I119: Reset Rate> | J119: =GM_INFO!B111 | K119: =GM_INFO!B111 -> 4 | M119: /head | Q119: =K119*ROUND(E119,0) -> 3648
I120: Reset Rate> | M120: /head
I121: Reset Rate> | M121: /head
C122: Wool | E122: =I241/170 -> 65.18529412 | G122: bales | I122: Reset Rate> | J122: =GM_INFO!B114 | K122: =GM_INFO!B114 -> 17 | M122: /bale | Q122: 1105
C123: Stock selling charges
C124: Commission/insurance | I124: Reset Rate> | J124: =GM_INFO!C48 | K124: =GM_INFO!C48 -> 0.06 | M124: gross $ | Q124: =K124*Q35 -> 7577.1
C125: Yard fees | E125: =E214 -> 912 | G125: head | I125: Reset Rate> | J125: =GM_INFO!C49 | K125: =GM_INFO!C49 -> 0.85 | M125: /head | Q125: =K125*ROUND(E125,0) -> 775.2
C126: Levy trans-sheep | E126: =SUM(E210:E212) -> 437 | G126: head | I126: Reset Rate> | J126: =GM_INFO!C50 | K126: =GM_INFO!C50 -> 0.2 | M126: /head | Q126: 87.4
C127: Levy trans-lambs | E127: =E213 -> 475 | G127: head | I127: Reset Rate> | J127: =GM_INFO!C51 | K127: =GM_INFO!C51 -> 1.5 | M127: /head | Q127: 712.5
C128: SA sheep industry levy | E128: =E214 -> 912 | G128: head | I128: Reset Rate> | J128: =GM_INFO!C52 | K128: =GM_INFO!C52 -> 0.55 | M128: /head | Q128: 501.6
C129: Wool selling charges
C130: Brokerage/testing/insurance | I130: Reset Rate> | J130: =GM_INFO!C53 | K130: =GM_INFO!C53 -> 0.27 | M130: /kg | Q130: =K130*E34 -> 2992.005
C131: Wool levy | I131: Reset Rate> | J131: =GM_INFO!C54 | K131: =GM_INFO!C54 -> 0.02 | M131: gross | Q131: =K131*Q34 -> 2074.4568
C143: Feed and Other Costs
C144: Hand Feeding | Q144: ='Merino SR Input'!I83 -> 9825
C146: Insurance | E146: =E229 -> 339252.4671 | G146: value | I146: Reset Rate> | J146: =GM_INFO!B107 | K146: =GM_INFO!B107 -> 2 | M146: /$'000 | Q146: =K146/1000*E146 -> 678.5049342
C147: Water | E147: =$E$197 -> 2420 | G147: DSE's | I147: Reset Rate> | J147: =GM_INFO!D79 | K147: =GM_INFO!E79 -> 2.5 | M147: /DSE's | Q147: =K147*E147 -> 6050
C148: Veh Fuel, R&M | E148: 2420 | G148: DSE's | I148: Reset Rate> | J148: =GM_INFO!D80 | K148: =GM_INFO!E80 -> 1.2 | M148: /DSE's | Q148: 2904
C149: Other | E149: 2420 | G149: DSE's | I149: Reset Rate> | J149: =GM_INFO!D81 | K149: =GM_INFO!E81 -> 0.5 | M149: /DSE's | Q149: 1210
C170: TOTAL VARIABLE COSTS | Q170: =SUM(Q48:Q166) -> 78093.78753
C172: GROSS MARGIN TOTAL | Q172: =Q37-Q170 -> 151914.0525
C174: GROSS MARGIN/DSE | Q174: =Q172/Q6 -> 62.77440185
C194: PRODUCTION DATA
C196: Stocking rate (DSE/Ha) | E196: 6 | K196: Culling Rate (% from each group) | AA196: SHEEP GROSS MARGIN
C197: Total DSE's | E197: =M228 -> 2420 | K197: Age Group | M197: Ewes | O197: Wethers | AA197: PRIME LAMB -
C198: SHEEP GRAZING AREA | E198: 285 | K198: 0.5 | M198: =AF213 -> 0
C199: Number of ewes mated | E199: ='Merino SR Input'!E7 -> 1000 | K199: 1.5 | M199: 0.492220025
C200: Ram percentage | E200: ='Merino SR Input'!E11 -> 0.025 | K200: 2.5 | M200: 0.05
C201: Age ewes 1st mating | E201: ='Merino SR Input'!E8 -> 1.5 | K201: 3.5 | M201: 0.05
C202: Age ewes culled | E202: ='Merino SR Input'!E9 -> 6.5 | K202: 4.5 | M202: 0.05 | AA202: Ewes mated | AC202: ='Merino SR Input'!E7 -> 1000 | AF202: Ram % | AG202: =E200 -> 0.025
B203: =VLOOKUP(r[0]c3&"No Ops",CHOOSE({1,2},tbl_ops[Name]&tbl_ops[Category],INDIRECT("tbl_ops["&var_crop&"]")),2,0) | C203: Years rams kept | E203: ='Merino SR Input'!E12 -> 4 | K203: 5.5 | M203: 0.05 | AA203: Age at 1st mating | AC203: =E201 -> 1.5 | AF203: Price of rams | AG203: ='Merino SR Input'!E30 -> 2000
B204: =VLOOKUP(r[0]c3&"No Ops",CHOOSE({1,2},tbl_ops[Name]&tbl_ops[Category],INDIRECT("tbl_ops["&var_crop&"]")),2,0) | C204: Flock death rate | E204: ='Merino SR Input'!E13 -> 0.03 | K204: 6.5 | M204: 1 | AA204: Age ewes sold | AC204: =E202 -> 6.5 | AF204: Years rams kept | AG204: =E203 -> 4
B205: =VLOOKUP(r[0]c3&"No Ops",CHOOSE({1,2},tbl_ops[Name]&tbl_ops[Category],INDIRECT("tbl_ops["&var_crop&"]")),2,0) | C205: Average weaning rate | E205: =AC205 -> 0.95 | AA205: Av Weaning % | AC205: ='Merino SR Input'!E10 -> 0.95 | AF205: Age wethers sold | AG205: 0.5
B206: =VLOOKUP(r[0]c3&"No Ops",CHOOSE({1,2},tbl_ops[Name]&tbl_ops[Category],INDIRECT("tbl_ops["&var_crop&"]")),2,0) | C206: % Lambs carried over | E206: 0 | AA206: dse/ewe | AC206: 1.6 | AF206: Flock death rate | AG206: =E204 -> 0.03
C207: Age wethers sold | E207: =AG205 -> 0.5
B208: =VLOOKUP(r[0]c3&var_rain,CHOOSE({1,2},tbl_ops[Name]&tbl_ops[Rainfall],INDIRECT("tbl_ops["&var_crop&"]")),2,0)
B209: =VLOOKUP(r[0]c3&var_rain,CHOOSE({1,2},tbl_ops[Name]&tbl_ops[Rainfall],INDIRECT("tbl_ops["&var_crop&"]")),2,0) | C209: SALES | E209: Number | G209: Price/hd | I209: Total
B210: =VLOOKUP(r[0]c3&var_rain,CHOOSE({1,2},tbl_ops[Name]&tbl_ops[Rainfall],INDIRECT("tbl_ops["&var_crop&"]")),2,0) | C210: c.f.a ewes | E210: =ROUND(AG220,0) -> 204 | G210: ='Merino SR Input'!E18 -> 105 | I210: =ROUND(E210,0)*G210 -> 21420
B211: =VLOOKUP(r[0]c3&var_rain,CHOOSE({1,2},tbl_ops[Name]&tbl_ops[Rainfall],INDIRECT("tbl_ops["&var_crop&"]")),2,0) | C211: c.f.a merino rams | E211: =ROUND(AG244,0) -> 6 | G211: ='Merino SR Input'!E19 -> 50 | I211: 300 | AA211: EWES | AB211: OPENING | AC211: NATURAL | AD211: PURCHASES | AE211: DEATHS | AF211: % sold | AG211: SALES | AH211: CLOSING
C212: Ewe hoggets | E212: =ROUND(AG222,0) -> 227 | G212: ='Merino SR Input'!E20 -> 220 | I212: 49940 | AA212: AGE | AB212: NUMBERS | AC212: INCREASE | AF212: culled | AH212: NUMBERS
C213: Wether lambs | E213: =ROUND(AG230,0) -> 475 | G213: ='Merino SR Input'!E21 -> 115 | I213: 54625 | AA213: 0-0.5yr | AC213: =AC202*AC205/2 -> 475 | AE213: =AB213*$AG$206 -> 0 | AF213: 0 | AG213: =AC213*AF213 -> 0 | AH213: =AB213+AC213+AD213-AE213-AG213 -> 475
C214: TOTAL | E214: =SUM(E210:E213) -> 912 | G214: =I214/E214 -> 138.4703947 | I214: =SUM(I210:I213) -> 126285 | AA214: 0.5-1.5yr | AB214: =AH213 -> 475 | AE214: 14.25 | AF214: =(AB214*(1-AG206)-AB215)/(AB214-AE214) -> 0.492220025 | AG214: =AB214-AE214-AB215 -> 226.7903765 | AH214: 233.9596235
AA215: 1.5-2.5yr | AB215: =AC202/(1+(1-AG206)*(1-AF215)*(1+(1-AG206)*(1-AF216)*(1+(1-AG206)*(1-AF217)*(1+(1-AG206)*(1-AF218))))) -> 233.9596235 | AE215: 7.018788705 | AF215: 0.05 | AG215: =(AB215-AE215)*AF215 -> 11.34704174 | AH215: 215.5937931
AA216: 2.5-3.5yr | AB216: =AH215 -> 215.5937931 | AE216: 6.467813792 | AF216: 0.05 | AG216: =(AB216-AE216)*AF216 -> 10.45629896 | AH216: 198.6696803
AA217: 3.5-4.5yr | AB217: =AH216 -> 198.6696803 | AE217: 5.960090409 | AF217: 0.05 | AG217: =(AB217-AE217)*AF217 -> 9.635479495 | AH217: 183.0741104
E218: Number of Times | AA218: 4.5-5.5yr | AB218: =AH217 -> 183.0741104 | AE218: 5.492223312 | AF218: =IF(AC204=5.5,1,5%) -> 0.05 | AG218: =(AB218-AE218)*AF218 -> 8.879094354 | AH218: =AB218+AC218+AD218-AE218-AG218 -> 168.7027927
C219: STOCK HEALTH REQUIREMENTS | E219: Number | G219: Drench | I219: Vacc. | K219: Blowfly | M219: DSE | AA219: 5.5-6.5yr | AB219: =AH218 -> 168.7027927 | AE219: 5.061083782 | AF219: =IF(AC204=6.5,100%,0) -> 1 | AG219: =(AB219-AE219)*AF219 -> 163.641709 | AH219: 0
C220: Ewes | E220: ='Merino SR Input'!E7 -> 1000 | G220: ='Merino SR Input'!F57 -> 1 | I220: ='Merino SR Input'!G57 -> 1 | K220: ='Merino SR Input'!H57 -> 1 | M220: 1.8 | AA220: Ewes | AB220: =SUM(AB215:AB219) -> 1000 | AC220: =SUM(AC213:AC217) -> 475 | AD220: =SUM(AD213:AD219) -> 0 | AE220: =SUM(AE213:AE218) -> 39.18891622 | AG220: =SUM(AG215:AG219) -> 203.9596235 | AH220: =SUM(AH214:AH218) -> 1000
C221: Ewe hoggets | E221: =AB222 -> 475 | G221: ='Merino SR Input'!F58 -> 1 | I221: ='Merino SR Input'!G58 -> 1 | K221: ='Merino SR Input'!H58 -> 1 | M221: 1.2 | AA221: d.s.e's | AB221: =AB214+AC206*(AB215+AB216+AB217+AB218) -> 1805.075532
C222: Wether weaners | E222: =AB228 -> 0 | G222: ='Merino SR Input'!F59 -> 1 | I222: ='Merino SR Input'!G59 -> 1 | K222: ='Merino SR Input'!H59 -> 1 | M222: 0.8 | AA222: Ewe Hoggets | AB222: =AB214 -> 475 | AG222: =AG214 -> 226.7903765 | AH222: =AH213 -> 475
C223: Merino lambs | E223: =AC213+AC227 -> 950 | G223: ='Merino SR Input'!F60 -> 1 | I223: ='Merino SR Input'!G60 -> 2 | K223: ='Merino SR Input'!H60 -> 0 | M223: 0
C224: Merino rams | E224: =AB244 -> 25 | G224: ='Merino SR Input'!F61 -> 2 | I224: ='Merino SR Input'!G61 -> 1 | K224: ='Merino SR Input'!H61 -> 1 | M224: 2 | AA224: WETHERS | AB224: OPENING | AC224: NATURAL | AD224: PURCHASES | AE224: DEATHS | AF224: % sold | AG224: SALES | AH224: CLOSING
AA225: AGE | AB225: NUMBERS | AC225: INCREASE | AF225: culled | AH225: NUMBERS
AA227: 0-0.5yr | AC227: =AC205*AC202/2 -> 475 | AE227: =AB227*$AG$206 -> 0 | AF227: =IF(AG205=0.5,100%,0) -> 1 | AG227: =AC227*AF227 -> 475 | AH227: =AB227+AC227+AD227-AE227-AG227 -> 0
C228: TOTAL | E228: =SUM(E220:E227) -> 2450 | G228: =SUMPRODUCT($E$220:$E$227,G220:G227) -> 2475 | I228: =SUMPRODUCT($E$220:$E$227,I220:I227) -> 3400 | K228: =SUMPRODUCT($E$220:$E$227,K220:K227) -> 1500 | M228: =SUMPRODUCT($E$220:$E$227,M220:M227) -> 2420 | AA228: 0.5-1.5yr | AB228: =AH227 -> 0 | AE228: 0 | AF228: =IF(AG205=1.5,100%,0) -> 0 | AG228: =(AB228-AE228)*AF228 -> 0 | AH228: =AB228+AC228+AD228-AE228-AG228 -> 0
C229: TOTAL VALUE | E229: =E228*G214 -> 339252.4671 | AA229: 1.5-2.5 | AB229: 0 | AE229: 0 | AF229: =IF(AG205=2.5,100%,0) -> 0 | AG229: =(AB229-AE229)*AF229 -> 0
AA230: Wth lambs | AB230: =AB227 -> 0 | AC230: =AC227 -> 475 | AD230: 0 | AE230: =AE227 -> 0 | AG230: =AG227 -> 475 | AH230: 0
G231: Wool Cut kg/hd | I231: Total | K231: Wool Price | M231: Total | AA231: Wth hgts | AB231: 0 | AC231: 0 | AD231: 0 | AE231: =AE228 -> 0 | AG231: 0 | AH231: 0
C232: SHEARING | E232: Number | I232: Greasy kg | K232: cents/kg | AA232: Wethers | AB232: 0 | AC232: 0 | AD232: 0 | AE232: =AE229 -> 0 | AG232: 0 | AH232: 0
C233: Ewes | E233: =ROUND(AB220-0.5*AE220,0) -> 980 | G233: ='Merino SR Input'!F43 -> 6.5 | I233: =G233*E233 -> 6370 | K233: ='Merino SR Input'!G43 -> 936 | M233: =K233*G233*E233/100 -> 59623.2 | AA233: d.s.e's | AB233: =AB231+AB232 -> 0
C234: Ewe hoggets | E234: =ROUND(AB214-0.5*AE214,0) -> 468 | G234: ='Merino SR Input'!F44 -> 5.5 | I234: 2574 | K234: ='Merino SR Input'!G44 -> 936 | M234: 24092.64
C235: Wether weaners | E235: =ROUND(AB228-0.5*AE228,0) -> 0 | G235: ='Merino SR Input'!F45 -> 5 | I235: 0 | K235: ='Merino SR Input'!G45 -> 936 | M235: 0
C236: Lambs | E236: =ROUND(AC213+AC227,0) -> 950 | G236: ='Merino SR Input'!F46 -> 2 | I236: 1900 | K236: ='Merino SR Input'!G46 -> 936 | M236: 17784 | AA236: RAMS | AB236: OPENING | AC236: NATURAL | AD236: PURCHASES | AE236: DEATHS | AF236: % sold | AG236: SALES | AH236: CLOSING
C237: Merino rams | E237: =ROUND(AB244-0.5*AE244,0) -> 25 | G237: ='Merino SR Input'!F47 -> 9.5 | I237: 237.5 | K237: ='Merino SR Input'!G47 -> 936 | M237: 2223 | AA237: AGE | AB237: NUMBERS | AC237: INCREASE | AF237: culled | AH237: NUMBERS
AA239: 0.5-1.5yr | AD239: =AB240/(1-AF239) -> 6.538387001 | AH239: =AB239+AC239+AD239-AE239-AG239 -> 6.538387001
AA240: 1.5-2.5yr | AB240: =IF(AG204=3,(AC202*AG202)/(1+(1-AG206)*(1-AF240)*(1+(1-AG206)*(1-AF241)*(1+(1-AG206)*(1-AF242)))),IF(AG204=4,(AC202*AG202)/(1+(1-AG206)*(1-AF240)*(1+(1-AG206)*(1-AF241)*(1+(1-AG206)*(1-AF242)*(1+(1-AG206)*(1-AF243))))),0)) -> 6.538387001 | AE240: =AB240*$AG$206 -> 0.19615161 | AF240: 0 | AG240: =(SUM(AB240:AD240)-AE240)*AF240 -> 0 | AH240: =AB240+AC240+AD240-AE240-AG240 -> 6.342235391
C241: TOTAL | E241: =SUM(E233:E239) -> 2423 | G241: =SUMPRODUCT(E233:E234,G233:G234) -> 8944 | I241: =SUM(I233:I239) -> 11081.5 | M241: =SUM(M233:M239) -> 103722.84 | AA241: 2.5-3.5yr | AB241: =AH240 -> 6.342235391 | AE241: 0.1902670617 | AF241: 0 | AG241: =(SUM(AB241:AD241)-AE241)*AF241 -> 0 | AH241: =AB241+AC241+AD241-AE241-AG241 -> 6.151968329
AA242: 3.5-4.5yr | AB242: =AH241 -> 6.151968329 | AE242: 0.1845590499 | AF242: =IF(AG204=3,100%,0) -> 0 | AG242: =(SUM(AB242:AD242)-AE242)*AF242 -> 0 | AH242: =AB242+AC242+AD242-AE242-AG242 -> 5.967409279
AA243: 4.5-5.5yr | AB243: =AH242 -> 5.967409279 | AE243: 0.1790222784 | AF243: =IF(AG204=4,100%,0) -> 1 | AG243: =AB243-AE243 -> 5.788387001 | AH243: =AB243+AC243+AD243-AE243-AG243 -> 0
G244: Hay Cost ($/T) | I244: Kg Fed per Week | K244: No of Weeks Feeding | M244: Total Cost ($) | AB244: =AB239+AB240+AB241+AB242+AB243 -> 25 | AD244: =AD239+AD240+AD241+AD242+AD243 -> 6.538387001 | AE244: =AE239+AE240+AE241+AE242+AE243 -> 0.75 | AG244: =AG239+AG240+AG241+AG242+AG243 -> 5.788387001 | AH244: =AH239+AH240+AH241+AH242+AH243 -> 25
C245: FEEDING | E245: Number | AA245: d.s.e's | AB245: =AB244*2 -> 50
C246: Ewes | E246: ='Merino SR Input'!E69 -> 1000 | G246: ='Merino SR Input'!F69 -> 180 | I246: ='Merino SR Input'!G69 -> 2 | K246: ='Merino SR Input'!H69 -> 10 | M246: =(E246*G246*I246*K246)/1000 -> 3600
C247: Weaner | E247: ='Merino SR Input'!E70 -> 0 | G247: ='Merino SR Input'!F70 -> 0 | I247: ='Merino SR Input'!G70 -> 0 | K247: ='Merino SR Input'!H70 -> 0 | M247: =(E247*G247*I247*K247)/1000 -> 0
C248: Ewe hoggets | E248: ='Merino SR Input'!E71 -> 0 | G248: ='Merino SR Input'!F71 -> 0 | I248: ='Merino SR Input'!G71 -> 0 | K248: ='Merino SR Input'!H71 -> 0 | M248: 0
C249: Merino lambs | E249: ='Merino SR Input'!E72 -> 0 | G249: ='Merino SR Input'!F72 -> 0 | I249: ='Merino SR Input'!G72 -> 0 | K249: ='Merino SR Input'!H72 -> 0 | M249: 0
C250: Merino rams | E250: ='Merino SR Input'!E73 -> 0 | G250: ='Merino SR Input'!F73 -> 0 | I250: ='Merino SR Input'!G73 -> 0 | K250: ='Merino SR Input'!H73 -> 0 | M250: 0
G251: Grain Cost ($/T) | I251: Kg Fed per Week | K251: No of Weeks Feeding | M251: Total Cost ($)
E252: Number
C253: Ewes | E253: ='Merino SR Input'!E77 -> 1000 | G253: ='Merino SR Input'!F77 -> 200 | I253: ='Merino SR Input'!G77 -> 2.4 | K253: ='Merino SR Input'!H77 -> 10 | M253: =(E253*G253*I253*K253)/1000 -> 4800
C254: Weaner | E254: ='Merino SR Input'!E78 -> 475 | G254: ='Merino SR Input'!F78 -> 300 | I254: ='Merino SR Input'!G78 -> 1 | K254: ='Merino SR Input'!H78 -> 10 | M254: =(E254*G254*I254*K254)/1000 -> 1425
C255: Ewe hoggets | E255: ='Merino SR Input'!E79 -> 0 | G255: ='Merino SR Input'!F79 -> 0 | I255: ='Merino SR Input'!G79 -> 0 | K255: ='Merino SR Input'!H79 -> 0 | M255: 0
C256: Merino lambs | E256: ='Merino SR Input'!E80 -> 0 | G256: ='Merino SR Input'!F80 -> 0 | I256: ='Merino SR Input'!G80 -> 0 | K256: ='Merino SR Input'!H80 -> 0 | M256: 0
C257: Merino rams | E257: ='Merino SR Input'!E81 -> 0 | G257: ='Merino SR Input'!F81 -> 0 | I257: ='Merino SR Input'!G81 -> 0 | K257: ='Merino SR Input'!H81 -> 0 | M257: 0
C258: TOTAL FEED COST | M258: =SUM(M246:M250,M253:M257) -> 9825
C263: GM SENSITIVITY
C264: Gross Margin/DSE | E264: Average Greasy Wool Price (c/Kg)
G265: 800 | I265: 900 | K265: 936 | M265: 1000 | O265: 1100 | Q265: 1200
E266: 110 | G266: =(G$265*$E$34*(1-$K$131)/100+$E266*$E$35*(1-$K$124)-($Q$170-$Q$124-$Q$131))/$Q$6 -> 46.5857559 | I266: =(I$265*$E$34*(1-$K$131)/100+$E266*$E$35*(1-$K$124)-($Q$170-$Q$124-$Q$131))/$Q$6 -> 51.07330548 | K266: =(K$265*$E$34*(1-$K$131)/100+$E266*$E$35*(1-$K$124)-($Q$170-$Q$124-$Q$131))/$Q$6 -> 52.68882333 | M266: =(M$265*$E$34*(1-$K$131)/100+$E266*$E$35*(1-$K$124)-($Q$170-$Q$124-$Q$131))/$Q$6 -> 55.56085507 | O266: =(O$265*$E$34*(1-$K$131)/100+$E266*$E$35*(1-$K$124)-($Q$170-$Q$124-$Q$131))/$Q$6 -> 60.04840466 | Q266: =(Q$265*$E$34*(1-$K$131)/100+$E266*$E$35*(1-$K$124)-($Q$170-$Q$124-$Q$131))/$Q$6 -> 64.53595424
E267: 115 | G267: 48.35699556 | I267: 52.84454515 | K267: 54.460063 | M267: 57.33209474 | O267: 61.81964433 | Q267: 66.30719391
C268: Average Sheep Sale Price($/hd) | E268: 120 | G268: 50.12823523 | I268: 54.61578482 | K268: 56.23130267 | M268: 59.10333441 | O268: 63.59088399 | Q268: 68.07843358
E269: 125 | G269: 51.8994749 | I269: 56.38702449 | K269: 58.00254234 | M269: 60.87457408 | O269: 65.36212366 | Q269: 69.84967325
E270: 130 | G270: 53.67071457 | I270: 58.15826416 | K270: 59.77378201 | M270: 62.64581375 | O270: 67.13336333 | Q270: 71.62091292
E271: 135 | G271: 55.44195424 | I271: 59.92950383 | K271: 61.54502168 | M271: 64.41705342 | O271: 68.904603 | Q271: 73.39215259
E272: 139 | G272: 56.85894598 | I272: 61.34649556 | K272: 62.96201342 | M272: 65.83404515 | O272: 70.32159474 | Q272: 74.80914433
E273: 145 | G273: 58.98443358 | I273: 63.47198317 | K273: 65.08750102 | M273: 67.95953275 | O273: 72.44708234 | Q273: 76.93463193
E274: 150 | G274: 60.75567325 | I274: 65.24322284 | K274: 66.85874069 | M274: 69.73077242 | O274: 74.21832201 | Q274: 78.7058716
E275: 155 | G275: 62.52691292 | I275: 67.01446251 | K275: 68.62998036 | M275: 71.50201209 | O275: 75.98956168 | Q275: 80.47711127
E276: 160 | G276: 64.29815259 | I276: 68.78570218 | K276: 70.40122003 | M276: 73.27325176 | O276: 77.76080135 | Q276: 82.24835094
C279: FLOCK STRUCTURE | E279: This table shows the number of merino sheep in each age group at mating
E280: Age Group
C281: Class of Sheep | E281: 0.5 y.o. | G281: 1.5 y.o. | I281: 2.5 y.o. | K281: 3.5 y.o. | M281: 4.5 y.o. | O281: 5.5 y.o. | Q281: 6.5 y.o.
C282: Ewes | E282: =$AB214 -> 475 | G282: =$AB215 -> 233.9596235 | I282: =$AB216 -> 215.5937931 | K282: =$AB217 -> 198.6696803 | M282: =$AB218 -> 183.0741104 | O282: =$AB219 -> 168.7027927 | Q282: 0
C283: Wethers | E283: =$AB228 -> 0 | G283: =$AB229 -> 0 | I283: 0 | K283: 0 | M283: 0 | O283: 0 | Q283: 0
C284: Rams | G284: =$AB240 -> 6.538387001 | I284: =$AB241 -> 6.342235391 | K284: =$AB242 -> 6.151968329 | M284: =$AB243 -> 5.967409279 | O284: 0 | Q284: 0

Sheet Wethers Input (hidden)
C2: ="WETHERS GROSS MARGIN - "&TEXT(m_year,"0000") -> WETHERS GROSS MARGIN - 2018
C4: GENERAL INFORMATION
C5: This represents a merino wether flock, producing 21 micron wool. Adjust wool price if different micron wool is produced. Following are the various assumptions used in the calculation of the Gross Margin. Cells with yellow highlight can be changed.
C7: No of Wethers | E7: 1000
C9: Age Wethers sold | E9: 5.5
C10: Age Wethers bought | E10: 0.5
C13: Flock death Rate | E13: 0.03
C14: DSE rating/wether | E14: 1.2
C17: LIVESTOCK SALES | E17: Price/Hd | F17: Number | G17: Total
C18: Wethers | E18: 125 | F18: =ROUND(Wethers!AG220,0) -> 182 | G18: =E18*F18 -> 22750
C25: TOTAL SALES | F25: =SUM(F18:F23) -> 182 | G25: =SUM(G18:G23) -> 22750
C28: LIVESTOCK PURCHASES | E28: Price/Hd | F28: Number | G28: Total
C29: Wethers | E29: 115 | F29: =ROUND(Wethers!AD220,0) -> 212 | G29: =E29*F29 -> 24380
C32: TOTAL PURCHASES | F32: =SUM(F29:F30) -> 212 | G32: =SUM(G29:G30) -> 24380
C35: WOOL PRICE (cents/kg) | F35: =TEXT(m_year-3,"0000")&" Average (Clean)" -> 2015 Average (Clean) | G35: =TEXT(m_year-2,"0000")&" Average (Clean)" -> 2016 Average (Clean) | H35: =TEXT(m_year-1,"0000")&" Average (Clean)" -> 2017 Average (Clean) | I35: Budget Base (Clean) | J35: Budget Base (Greasy)
E36: Cereal Zone 21 mic 68% yield | F36: 1160 | G36: 1274 | H36: 1397 | I36: 1400 | J36: 952
C37: Allow 90% to account for lower value of bellies, skirtings etc. | J37: =J36*0.9 -> 856.8
C41: WOOL SALES - SHEARING | F41: Wool Cut | G41: Wool Price
E42: Number | F42: kg/hd | G42: cents/kg
C43: Wethers | E43: =Wethers!E233 -> 970 | F43: 7.5 | G43: =J37 -> 856.8
C51: TOTAL | E51: =SUM(E43:E50) -> 970 | F51: =SUMPRODUCT(E43:E49,F43:F49) -> 7275
C54: STOCK HEALTH REQUIREMENTS
G55: Number of times
E56: Number | F56: Drench | G56: Vacc. | H56: Blowfly
C57: Wethers | E57: =Wethers!E220 -> 1000 | F57: 1 | G57: 1 | H57: 1
C63: TOTAL | E63: =SUM(E57:E61) -> 1000 | F63: =SUMPRODUCT($E$57:$E$61,F57:F61) -> 1000 | G63: =SUMPRODUCT($E$57:$E$61,G57:G61) -> 1000 | H63: =SUMPRODUCT($E$57:$E$61,H57:H61) -> 1000
C66: FEEDING
C67: HAY | F67: Hay | G67: Kgs Fed | H67: No Weeks | I67: Total
E68: Number | F68: Cost ($/T) | G68: per Week | H68: of Feeding | I68: Cost ($)
C69: Wethers | E69: =Wethers!E220 -> 1000 | F69: 180 | G69: 1.5 | H69: 10 | I69: =(H69*G69*E69)/1000*F69 -> 2700
I70: 0
I71: 0
C73: GRAIN | F73: Grain | G73: Kgs Fed | H73: No Weeks | I73: Total
E74: Number | F74: Cost ($/T) | G74: per Week | H74: of Feeding | I74: Cost ($)
C75: Wethers | E75: =Wethers!E220 -> 1000 | F75: 200 | I75: =(H75*G75*E75)/1000*F75 -> 0
I76: 0
I77: 0
H79: Total Feed Cost | I79: =SUM(I69:I71,I75:I77) -> 2700

Sheet Wethers (hidden)
C1: WHETHERS
C2: ="WETHERS GROSS MARGIN - "&TEXT(m_year,"0000") -> WETHERS GROSS MARGIN - 2018
C4: ASSUMPTIONS
C6: Ave Wether Fibre Diameter | E6: 21 | O6: Gross Margin per Ha | Q6: =Q172/E198 -> 145.3670698
C7: Number of Wethers | E7: ='Wethers Input'!$E$7 -> 1000 | O7: Gross Margin per DSE | Q7: =Q174 -> 34.52467909
C8: Stocking Rate (DSE/Ha) | E8: =E196 -> 6 | O8: Gross Margin/Wether | Q8: =Q172/E199 -> 41.4296149
C32: INCOME | Q32: $
C34: Wool (kg greasy) | E34: =I234 -> 7275 | G34: kg | I34: av price | K34: =GM_INFO!F96*0.9 -> 936 | M34: c/kg | Q34: =E34*K34/100 -> 68094
C35: Sales | E35: =E211 -> 182 | G35: animals | I35: av price | K35: =G210 -> 125 | M35: /head | Q35: =K35*E35 -> 22750
C37: Gross Income | Q37: =SUM(Q34:Q35) -> 90844
AA45: STOCK VALUE AND D.S.E REQUIREMENT
C46: VARIABLE COSTS
C47: Shearing | K47: Rate
C48: Shearing | E48: =E234 -> 970 | G48: sheep | I48: Reset Rate> | J48: =GM_INFO!C30 | K48: =GM_INFO!C30 -> 301.96 | M48: /100 | Q48: =K48/100*ROUND(E48,0) -> 2929.012
C50: Shed labour | E50: 4 | G50: days | I50: Reset Rate> | J50: =GM_INFO!C32 | K50: =GM_INFO!C32 -> 227.68 | M50: /day | Q50: =K50*ROUND(E50,0) -> 910.72
C51: Woolclasser | E51: 2 | G51: days | I51: Reset Rate> | J51: =GM_INFO!C33 | K51: =GM_INFO!C33 -> 287.71 | M51: /day | Q51: =K51*E51 -> 575.42
C52: Superannuation (on ord wages only) | I52: Reset Rate> | J52: =GM_INFO!C34 | K52: =GM_INFO!C34 -> 0.095 | M52: wages | Q52: =(Q48+Q50+Q51)*K52 -> 419.43944
C53: W/Cover (incl. super + otime etc) | I53: Reset Rate> | J53: =GM_INFO!C35 | K53: =GM_INFO!C35 -> 0.04 | M53: total | Q53: =(Q48+Q49+Q50+Q51+Q52)*K53 -> 193.3836576
C54: Wool packs | E54: =E122 -> 42.79411765 | G54: packs | I54: Reset Rate> | J54: =GM_INFO!C28 | K54: =GM_INFO!C28 -> 11.2 | M54: /pack | Q54: =K54*ROUND(E54,0) -> 481.6
C55: Shed sundries | E55: =E48 -> 970 | G55: sheep | I55: Reset Rate> | J55: =GM_INFO!C36 | K55: =GM_INFO!C36 -> 0.15 | M55: /head | Q55: 145.5
C56: Lice control | E56: =E48 -> 970 | G56: sheep | I56: Reset Rate> | J56: =GM_INFO!C19 | K56: =GM_INFO!C19 -> 1.524 | M56: /head | Q56: 1478.28
C57: Crutching | E57: =E228 -> 1000 | G57: sheep | I57: Reset Rate> | J57: =GM_INFO!C38 | K57: =GM_INFO!C38 -> 87.57 | M57: /100 | Q57: =K57/100*ROUND(E57,0) -> 875.7
AS79: RAMS | AT79: OPENING | AU79: NATURAL | AV79: PURCHASES | AW79: DEATHS | AX79: % sold | AY79: SALES | AZ79: CLOSING
AS80: AGE | AT80: NUMBERS | AU80: INCREASE | AX80: culled | AZ80: NUMBERS
AS82: 0.5-1.5yr | AV82: =AT83/(1-AX82) -> 0 | AW82: =AT82*$R$81 -> 0 | AZ82: =AT82+AU82+AV82-AW82-AY82 -> 0
AS83: 1.5-2.5yr | AT83: =IF(AY53=3,(AU51*AY51)/(1+(1-AY55)*(1-AX83)*(1+(1-AY55)*(1-AX84)*(1+(1-AY55)*(1-AX85)))),IF(AY53=4,(AU51*AY51)/(1+(1-AY55)*(1-AX83)*(1+(1-AY55)*(1-AX84)*(1+(1-AY55)*(1-AX85)*(1+(1-AY55)*(1-AX86))))),0)) -> 0 | AW83: =AT83*$R$81 -> 0 | AZ83: =AT83+AU83+AV83-AW83-AY83 -> 0
AS84: 2.5-3.5yr | AT84: =AZ83 -> 0 | AW84: =AT84*$R$81 -> 0 | AZ84: =AT84+AU84+AV84-AW84-AY84 -> 0
AS85: 3.5-4.5yr | AT85: =AZ84 -> 0 | AW85: =AT85*$R$81 -> 0 | AX85: =IF(AY53=3,100%,0) -> 0 | AY85: =(AT85-AW85)*AX85 -> 0 | AZ85: =AT85+AU85+AV85-AW85-AY85 -> 0
AS86: 4.5-5.5yr | AT86: =AZ85 -> 0 | AW86: =AT86*$R$81 -> 0 | AX86: =IF(AY53=4,100%,0) -> 0 | AY86: =AT86-AW86 -> 0 | AZ86: =AT86+AU86+AV86-AW86-AY86 -> 0
AT87: =AT82+AT83+AT84+AT85+AT86 -> 0 | AV87: =AV82+AV83+AV84+AV85+AV86 -> 0 | AW87: =AW82+AW83+AW84+AW85+AW86 -> 0 | AY87: =AY82+AY83+AY84+AY85+AY86 -> 0 | AZ87: =AZ82+AZ83+AZ84+AZ85+AZ86 -> 0
AS88: d.s.e's | AT88: =AT87*AE49 -> 0
C89: Animal Health
C90: Drench | E90: =G228 -> 1000 | G90: sheep | I90: Reset Rate> | J90: =GM_INFO!C21 | K90: =GM_INFO!C21 -> 0.432 | M90: /head | Q90: =K90*ROUND(E90,0) -> 432
C91: Vaccinate | E91: =I228 -> 1000 | G91: sheep | I91: Reset Rate> | J91: =GM_INFO!C23 | K91: =GM_INFO!C23 -> 0.264 | M91: /head | Q91: 264
C92: Blowfly control | E92: =K228 -> 1000 | G92: sheep | I92: Reset Rate> | J92: =GM_INFO!C27 | K92: =GM_INFO!C27 -> 1.3 | M92: /head | Q92: 1300
C93: Other expenses | G93: sheep | I93: Reset Rate> | M93: /head | Q93: =K93*ROUND(E93,0) -> 0
C104: Stock purchases
C105: Purchases | E105: =ROUND(E213,0) -> 212 | G105: wethers | I105: Reset Rate> | J105: ='WETHERS INPUT'!E29 | K105: ='Wethers Input'!E29 -> 115 | M105: /head | Q105: =K105*E105 -> 24380
C117: Sale Costs
C118: Freight
C119: Livestock | E119: =E211+E213 -> 394.3653636 | G119: sheep | I119: Reset Rate> | J119: =GM_INFO!B111 | K119: =GM_INFO!B111 -> 4 | M119: /head | Q119: =K119*ROUND(E119,0) -> 1576
I120: Reset Rate> | M120: /head
I121: Reset Rate> | M121: /head
C122: Wool | E122: =I234/170 -> 42.79411765 | G122: bales | I122: Reset Rate> | J122: =GM_INFO!B114 | K122: =GM_INFO!B114 -> 17 | M122: /bale | Q122: 731
C123: Stock selling charges
C124: Commission/insurance | I124: Reset Rate> | J124: =GM_INFO!C48 | K124: =GM_INFO!C48 -> 0.06 | M124: gross $ | Q124: =K124*Q35 -> 1365
C125: Yard fees | E125: =E211 -> 182 | G125: head | I125: Reset Rate> | J125: =GM_INFO!C49 | K125: =GM_INFO!C49 -> 0.85 | M125: /head | Q125: =K125*ROUND(E125,0) -> 154.7
C126: Levy trans-sheep | E126: =E211 -> 182 | G126: head | I126: Reset Rate> | J126: =GM_INFO!C50 | K126: =GM_INFO!C50 -> 0.2 | M126: /head | Q126: 36.4
C128: SA sheep industry levy | E128: =E211 -> 182 | G128: head | I128: Reset Rate> | J128: =GM_INFO!C52 | K128: =GM_INFO!C52 -> 0.55 | M128: /head | Q128: 100.1
C129: Wool selling charges
C130: Brokerage/testing/insurance | I130: Reset Rate> | J130: =GM_INFO!C53 | K130: =GM_INFO!C53 -> 0.27 | M130: /kg | Q130: =K130*E34 -> 1964.25
C131: Wool levy | I131: Reset Rate> | J131: =GM_INFO!C54 | K131: =GM_INFO!C54 -> 0.02 | M131: gross | Q131: =K131*Q34 -> 1361.88
C143: Feed and Other Costs
C144: Hand Feeding | Q144: ='Wethers Input'!I79 -> 2700
C146: Insurance | E146: =E239*G239 -> 120000 | G146: value | I146: Reset Rate> | J146: =GM_INFO!B107 | K146: =GM_INFO!B107 -> 2 | M146: /$'000 | Q146: =K146/1000*E146 -> 240
C147: Water | E147: =$E$197 -> 1200 | G147: DSE's | I147: Reset Rate> | J147: =GM_INFO!G79 | K147: =GM_INFO!G79 -> 2.5 | M147: /DSE's | Q147: =K147*E147 -> 3000
C148: Veh Fuel, R&M | E148: 1200 | G148: DSE's | I148: Reset Rate> | J148: =GM_INFO!G80 | K148: =GM_INFO!G80 -> 1 | M148: /DSE's | Q148: 1200
C149: Other | E149: 1200 | G149: DSE's | I149: Reset Rate> | J149: =GM_INFO!G81 | K149: =GM_INFO!G81 -> 0.5 | M149: /DSE's | Q149: 600
C170: TOTAL VARIABLE COSTS | Q170: =SUM(Q48:Q166) -> 49414.3851
C172: GROSS MARGIN TOTAL | Q172: =Q37-Q170 -> 41429.6149
C174: GROSS MARGIN/DSE | Q174: =Q172/E197 -> 34.52467909
C194: PRODUCTION DATA
C196: Stocking rate (DSE/Ha) | E196: 6 | K196: Culling Rate (% from each group) | Q196: Stock | AA196: SHEEP GROSS MARGIN
C197: Total DSE's | E197: ='Wethers Input'!E7*'Wethers Input'!E14 -> 1200 | K197: Age Group | M197: Ewes | O197: Wethers | Q197: No's
C198: SHEEP GRAZING AREA | E198: 285 | K198: 0.5 | O198: =AF214 -> 0 | Q198: =AH214 -> 212.3653636
C199: Number of wethers | E199: ='Wethers Input'!E7 -> 1000 | K199: 1.5 | O199: 0 | Q199: 205.9944027
C200: Flock death rate | E200: ='Wethers Input'!E13 -> 0.03 | K200: 2.5 | O200: 0 | Q200: 199.8145706
C201: Age wethers bought | E201: ='Wethers Input'!E10 -> 0.5 | K201: 3.5 | O201: 0 | Q201: 193.8201335
C202: Age wethers culled | E202: ='Wethers Input'!E9 -> 5.5 | K202: 4.5 | O202: 0 | Q202: 188.0055295 | AA202: No of wethers | AC202: ='Wethers Input'!E7 -> 1000
B203: =VLOOKUP(r[0]c3&"No Ops",CHOOSE({1,2},tbl_ops[Name]&tbl_ops[Category],INDIRECT("tbl_ops["&var_crop&"]")),2,0) | K203: 5.5 | O203: 1 | Q203: 0 | AA203: Age wethers purchased | AC203: =E201 -> 0.5
B204: =VLOOKUP(r[0]c3&"No Ops",CHOOSE({1,2},tbl_ops[Name]&tbl_ops[Category],INDIRECT("tbl_ops["&var_crop&"]")),2,0) | AA204: Age wethers sold | AC204: =E202 -> 5.5
B205: =VLOOKUP(r[0]c3&"No Ops",CHOOSE({1,2},tbl_ops[Name]&tbl_ops[Category],INDIRECT("tbl_ops["&var_crop&"]")),2,0) | AA205: Flock death rate | AC205: =E200 -> 0.03
B206: =VLOOKUP(r[0]c3&"No Ops",CHOOSE({1,2},tbl_ops[Name]&tbl_ops[Category],INDIRECT("tbl_ops["&var_crop&"]")),2,0) | AA206: dse/wether | AC206: ='Wethers Input'!E14 -> 1.2
B208: =VLOOKUP(r[0]c3&var_rain,CHOOSE({1,2},tbl_ops[Name]&tbl_ops[Rainfall],INDIRECT("tbl_ops["&var_crop&"]")),2,0)
B209: =VLOOKUP(r[0]c3&var_rain,CHOOSE({1,2},tbl_ops[Name]&tbl_ops[Rainfall],INDIRECT("tbl_ops["&var_crop&"]")),2,0) | C209: SALES | E209: Number | G209: Price/hd | I209: Age | K209: Total
B210: =VLOOKUP(r[0]c3&var_rain,CHOOSE({1,2},tbl_ops[Name]&tbl_ops[Rainfall],INDIRECT("tbl_ops["&var_crop&"]")),2,0) | C210: c.f.a wethers | E210: =ROUND(AG220,0) -> 182 | G210: ='Wethers Input'!E18 -> 125 | I210: =E202 -> 5.5 | K210: =ROUND(E210,0)*G210 -> 22750
B211: =VLOOKUP(r[0]c3&var_rain,CHOOSE({1,2},tbl_ops[Name]&tbl_ops[Rainfall],INDIRECT("tbl_ops["&var_crop&"]")),2,0) | C211: TOTAL | E211: =E210 -> 182 | K211: =K210 -> 22750 | AA211: WETHERS | AB211: OPENING | AC211: NATURAL | AD211: PURCHASES | AE211: DEATHS | AF211: % sold | AG211: SALES | AH211: CLOSING
C212: PURCHASES | E212: Number | G212: Price/hd | I212: Age | K212: Total | AA212: AGE | AB212: NUMBERS | AC212: INCREASE | AF212: culled | AH212: NUMBERS
C213: Wethers | E213: =AD220 -> 212.3653636 | G213: ='Wethers Input'!E29 -> 115 | I213: =E201 -> 0.5 | K213: =ROUND(E213,0)*G213 -> 24380
AA214: 0-0.5yr | AD214: =IF(AC203=0.5,AB215-AE214-AG214,0) -> 212.3653636 | AE214: =AB214*$AC$205 -> 0 | AF214: =IF(AC204=0.5,100%,0) -> 0 | AG214: =AC214*AF214 -> 0 | AH214: =AB214+AC214+AD214-AE214-AG214 -> 212.3653636
AA215: 0.5-1.5yr | AB215: =IF(AC203=0.5,AC202/(1+(1-AC205)*(1-AF215)*(1+(1-AC205)*(1-AF216)*(1+(1-AC205)*(1-AF217)*(1+(1-AC205)*(1-AF218))))),0) -> 212.3653636 | AD215: =IF(AC203=1.5,AB216-AE215-AG215,0) -> 0 | AE215: 6.370960909 | AF215: =IF(AC204=1.5,100%,0) -> 0 | AG215: =(AB215-AE215)*AF215 -> 0 | AH215: 205.9944027
AA216: 1.5-2.5yr | AB216: =IF(AC203=1.5,AC202/(1+(1-AC205)*(1-AF216)*(1+(1-AC205)*(1-AF217)*(1+(1-AC205)*(1-AF218)))),AH215) -> 205.9944027 | AE216: 6.179832081 | AF216: =IF(AC204=2.5,100%,0) -> 0 | AG216: =(AB216-AE216)*AF216 -> 0 | AH216: 199.8145706
AA217: 2.5-3.5yr | AB217: =AH216 -> 199.8145706 | AE217: 5.994437119 | AF217: =IF(AC204=3.5,100%,0) -> 0 | AG217: =(AB217-AE217)*AF217 -> 0 | AH217: 193.8201335
E218: Number of Times | AA218: 3.5-4.5yr | AB218: =AH217 -> 193.8201335 | AE218: 5.814604005 | AF218: =IF(AC204=4.5,100%,0) -> 0 | AG218: =(AB218-AE218)*AF218 -> 0 | AH218: 188.0055295
C219: STOCK HEALTH REQUIREMENTS | E219: Number | G219: Drench | I219: Vacc. | K219: Blowfly | AA219: 4.5-5.5yr | AB219: =AH218 -> 188.0055295 | AE219: 5.640165885 | AF219: =IF(AC204=5.5,100%,0) -> 1 | AG219: =(AB219-AE219)*AF219 -> 182.3653636 | AH219: 0
C220: Wethers | E220: =ROUND('Wethers Input'!E7,0) -> 1000 | G220: ='Wethers Input'!F57 -> 1 | I220: ='Wethers Input'!G57 -> 1 | K220: ='Wethers Input'!H57 -> 1 | AA220: Total | AB220: =SUM(AB215:AB219) -> 1000 | AD220: =SUM(AD214:AD219) -> 212.3653636 | AE220: =SUM(AE214:AE219) -> 30 | AG220: =SUM(AG214:AG219) -> 182.3653636 | AH220: =SUM(AH214:AH219) -> 1000
AA221: d.s.e's | AB221: =AB220*AC206 -> 1200
C228: TOTAL | E228: =SUM(E220:E227) -> 1000 | G228: =SUMPRODUCT($E$220:$E$227,G220:G227) -> 1000 | I228: =SUMPRODUCT($E$220:$E$227,I220:I227) -> 1000 | K228: =SUMPRODUCT($E$220:$E$227,K220:K227) -> 1000
G231: Wool Cut kg/hd | I231: Total | K231: Wool Price
C232: SHEARING | E232: Number | I232: Greasy kg | K232: cents/kg
C233: Wethers | E233: =AB220-AE220 -> 970 | G233: ='Wethers Input'!F43 -> 7.5 | I233: =G233*E233 -> 7275 | K233: ='Wethers Input'!G43 -> 856.8
C234: TOTAL | E234: =E233 -> 970 | I234: =I233 -> 7275
C237: STOCK VALUE | G237: Value
E238: Number | G238: $/head
C239: Wethers | E239: =E199 -> 1000 | G239: =(G213+G210)/2 -> 120
C240: TOTAL | E240: =E239 -> 1000
G244: Hay Cost ($/T) | I244: Kg Fed per Week | K244: No of Weeks Feeding | M244: Total Cost ($)
C245: FEEDING | E245: Number
C246: Wethers | E246: ='Wethers Input'!E69 -> 1000 | G246: ='Wethers Input'!F69 -> 180 | I246: ='Wethers Input'!G69 -> 1.5 | K246: ='Wethers Input'!H69 -> 10 | M246: =(E246*G246*I246*K246)/1000 -> 2700
E247: ='Wethers Input'!E70 -> 0 | G247: ='Wethers Input'!F70 -> 0 | I247: ='Wethers Input'!G70 -> 0 | K247: ='Wethers Input'!H70 -> 0 | M247: 0
E248: ='Wethers Input'!E71 -> 0 | G248: ='Wethers Input'!F71 -> 0 | I248: ='Wethers Input'!G71 -> 0 | K248: ='Wethers Input'!H71 -> 0 | M248: 0
G249: Grain Cost ($/T) | I249: Kg Fed per Week | K249: No of Weeks Feeding | M249: Total Cost ($)
E250: Number
C251: Wethers | E251: ='Wethers Input'!E75 -> 1000 | G251: ='Wethers Input'!F75 -> 200 | I251: ='Wethers Input'!G75 -> 0 | K251: ='Wethers Input'!H75 -> 0 | M251: =(E251*G251*I251*K251)/1000 -> 0
E252: ='Wethers Input'!E76 -> 0 | G252: ='Wethers Input'!F76 -> 0 | I252: ='Wethers Input'!G76 -> 0 | K252: ='Wethers Input'!H76 -> 0 | M252: 0
E253: ='Wethers Input'!E77 -> 0 | G253: ='Wethers Input'!F77 -> 0 | I253: ='Wethers Input'!G77 -> 0 | K253: ='Wethers Input'!H77 -> 0 | M253: 0
C254: TOTAL FEED COST | M254: =SUM(M246:M248,M251:M253) -> 2700
C259: GM SENSITIVITY
C260: Gross Margin/DSE | E260: Average Greasy Wool Price (c/Kg)
G261: 800 | I261: 900 | K261: 836 | M261: 1000 | O261: 1100 | Q261: 1200
E262: 100 | G262: =(G$261*$E$34*(1-$K$131)/100+$E262*$E$35*(1-$K$124)-($Q$170-$Q$124-$Q$131))/$E$197 -> 22.88041242 | I262: =(I$261*$E$34*(1-$K$131)/100+$E262*$E$35*(1-$K$124)-($Q$170-$Q$124-$Q$131))/$E$197 -> 28.82166242 | K262: =(K$261*$E$34*(1-$K$131)/100+$E262*$E$35*(1-$K$124)-($Q$170-$Q$124-$Q$131))/$E$197 -> 25.01926242 | M262: =(M$261*$E$34*(1-$K$131)/100+$E262*$E$35*(1-$K$124)-($Q$170-$Q$124-$Q$131))/$E$197 -> 34.76291242 | O262: =(O$261*$E$34*(1-$K$131)/100+$E262*$E$35*(1-$K$124)-($Q$170-$Q$124-$Q$131))/$E$197 -> 40.70416242 | Q262: =(Q$261*$E$34*(1-$K$131)/100+$E262*$E$35*(1-$K$124)-($Q$170-$Q$124-$Q$131))/$E$197 -> 46.64541242
E263: 105 | G263: 23.59324575 | I263: 29.53449575 | K263: 25.73209575 | M263: 35.47574575 | O263: 41.41699575 | Q263: 47.35824575
C264: Average Sheep Sale Price($/hd) | E264: 110 | G264: 24.30607909 | I264: 30.24732909 | K264: 26.44492909 | M264: 36.18857909 | O264: 42.12982909 | Q264: 48.07107909
E265: 115 | G265: 25.01891242 | I265: 30.96016242 | K265: 27.15776242 | M265: 36.90141242 | O265: 42.84266242 | Q265: 48.78391242
E266: 120 | G266: 25.73174575 | I266: 31.67299575 | K266: 27.87059575 | M266: 37.61424575 | O266: 43.55549575 | Q266: 49.49674575
E267: 125 | G267: 26.44457909 | I267: 32.38582909 | K267: 28.58342909 | M267: 38.32707909 | O267: 44.26832909 | Q267: 50.20957909
E268: 130 | G268: 27.15741242 | I268: 33.09866242 | K268: 29.29626242 | M268: 39.03991242 | O268: 44.98116242 | Q268: 50.92241242
E269: 135 | G269: 27.87024575 | I269: 33.81149575 | K269: 30.00909575 | M269: 39.75274575 | O269: 45.69399575 | Q269: 51.63524575
E270: 140 | G270: 28.58307909 | I270: 34.52432909 | K270: 30.72192909 | M270: 40.46557909 | O270: 46.40682909 | Q270: 52.34807909
E271: 145 | G271: 29.29591242 | I271: 35.23716242 | K271: 31.43476242 | M271: 41.17841242 | O271: 47.11966242 | Q271: 53.06091242
E272: 150 | G272: 30.00874575 | I272: 35.94999575 | K272: 32.14759575 | M272: 41.89124575 | O272: 47.83249575 | Q272: 53.77374575

Sheet Cleanskin Sheep Input (hidden)
C2: ="CLEANSKIN SHEEP GROSS MARGIN - "&TEXT(m_year,"0000") -> CLEANSKIN SHEEP GROSS MARGIN - 2018
C4: GENERAL INFORMATION
C5: This represents a fully wool shedding self-replacing flock, with no shearing, crutching or lice control. Assumes only one lambing each year. Following are the various assumptions used in the calculation of the Gross Margin. Cells with yellow highlight can be changed.
C7: Ewes mated | E7: 1000
C8: Age ewes 1st mating | E8: 1.5
C9: Age ewes sold | E9: 6.5
C10: Av Weaning % | E10: 1.5
C11: Ram percentage | E11: 0.025
C12: Years Rams Kept | E12: 4
C13: Flock death Rate | E13: 0.03
C17: LIVESTOCK SALES | E17: Price/Hd | F17: Number | G17: Total
C18: c.f.a Ewes | E18: 110 | F18: =ROUND('Cleanskin Sheep'!AG220,0) -> 204 | G18: =E18*ROUND(F18,0) -> 22440
C19: c.f.a Rams | E19: 50 | F19: =ROUND('Cleanskin Sheep'!AG244,0) -> 6 | G19: 300
C20: ewe hoggets | E20: 180 | F20: =ROUND('Cleanskin Sheep'!AG222,0) -> 494 | G20: 88920
C21: wether lambs | E21: 130 | F21: =ROUND('Cleanskin Sheep'!AG230,0) -> 750 | G21: 97500
C25: TOTAL SALES | F25: =SUM(F18:F23) -> 1454 | G25: =SUM(G18:G23) -> 209160
C28: LIVESTOCK PURCHASES | E28: Price/Hd | F28: Number | G28: Total
C30: Rams | E30: 1500 | F30: =ROUND('Cleanskin Sheep'!AD244,0) -> 7 | G30: =E30*F30 -> 10500
C32: TOTAL PURCHASES | F32: =SUM(F29:F30) -> 7 | G32: =SUM(G29:G30) -> 10500
C54: STOCK HEALTH REQUIREMENTS
G55: Number of times
E56: Number | F56: Drench | G56: Vacc. | H56: Blowfly | I56: Lice
C57: Ewes | E57: ='Cleanskin Sheep'!E220 -> 1000 | F57: 1 | G57: 1
C58: Ewe hoggets | E58: ='Cleanskin Sheep'!E221 -> 750 | F58: 1 | G58: 1
C59: Wether weaners | E59: ='Cleanskin Sheep'!E222 -> 0 | F59: 1 | G59: 1
C60: Lambs | E60: ='Cleanskin Sheep'!E223 -> 1500 | F60: 1 | G60: 2
C61: Rams | E61: ='Cleanskin Sheep'!E224 -> 26 | F61: 2 | G61: 1
C63: TOTAL | E63: =SUM(E57:E61) -> 3276 | F63: =SUMPRODUCT($E$57:$E$61,F57:F61) -> 3302 | G63: =SUMPRODUCT($E$57:$E$61,G57:G61) -> 4776 | H63: =SUMPRODUCT($E$57:$E$61,H57:H61) -> 0 | I63: =SUMPRODUCT($E$57:$E$61,I57:I61) -> 0
C66: FEEDING
C67: HAY | F67: Hay | G67: Kgs Fed | H67: No Weeks | I67: Total
E68: Number | F68: Cost ($/T) | G68: per Week | H68: of Feeding | I68: Cost ($)
C69: Ewes | E69: ='Cleanskin Sheep'!E220 -> 1000 | F69: 180 | G69: 2 | H69: 10 | I69: =(H69*G69*E69)/1000*F69 -> 3600
C70: Weaner | I70: 0
C71: Ewe hoggets | I71: 0
C72: Lambs | I72: 0
C73: Rams | I73: 0
I74: 0
C76: GRAIN | F76: Grain | G76: Kgs Fed | H76: No Weeks | I76: Total
E77: Number | F77: Cost ($/T) | G77: per Week | H77: of Feeding | I77: Cost ($)
C78: Ewes | E78: ='Cleanskin Sheep'!E220 -> 1000 | F78: 225 | G78: 2.4 | H78: 10 | I78: =(H78*G78*E78)/1000*F78 -> 5400
C79: Weaner | E79: ='Cleanskin Sheep'!E221 -> 750 | F79: 300 | G79: 1 | H79: 10 | I79: 2250
C80: Ewe hoggets | I80: 0
C81: Lambs | I81: 0
C82: Rams | I82: 0
H84: Total Feed Cost | I84: =SUM(I69:I74,I78:I82) -> 11250

Sheet Cleanskin Sheep (hidden)
C1: CLEANSKIN SHEEP
C2: =UPPER(Var_Animal)&" GROSS MARGIN - "&TEXT(m_year,"0000") -> CLEANSKIN SHEEP GROSS MARGIN - 2018
C4: ASSUMPTIONS
O6: Total DSE's | Q6: =E197 -> 2752
C7: No. of breeding ewes | E7: ='Cleanskin Sheep Input'!$E$7 -> 1000 | O7: Stocking Rate (DSE/Ha) | Q7: =E196 -> 6
C32: INCOME | Q32: $
C35: Sales | E35: =ROUND(E214,0) -> 1454 | G35: animals | I35: av price | K35: =G214 -> 143.8514443 | M35: /head | Q35: =I214 -> 209160
C37: Gross Income | Q37: =SUM(Q34:Q35) -> 209160
AA45: STOCK VALUE AND D.S.E REQUIREMENT
C46: VARIABLE COSTS
C75: Marking | K75: Rate
C76: Lamb marking | E76: =E199*E203 -> 1500 | G76: lambs | I76: Reset Rate> | J76: =GM_INFO!C42 | K76: =GM_INFO!C42 -> 1.15 | M76: /head | Q76: =K76*ROUND(E76,0) -> 1725
C77: Ear tags | E77: =E76 -> 1500 | G77: lambs | I77: Reset Rate> | J77: =GM_INFO!C43 | K77: =GM_INFO!C43 -> 0.4 | M77: /head | Q77: 600
AS79: RAMS | AT79: OPENING | AU79: NATURAL | AV79: PURCHASES | AW79: DEATHS | AX79: % sold | AY79: SALES | AZ79: CLOSING
AS80: AGE | AT80: NUMBERS | AU80: INCREASE | AX80: culled | AZ80: NUMBERS
AS82: 0.5-1.5yr | AV82: =AT83/(1-AX82) -> 0 | AW82: =AT82*$R$81 -> 0 | AZ82: =AT82+AU82+AV82-AW82-AY82 -> 0
AS83: 1.5-2.5yr | AT83: =IF(AY53=3,(AU51*AY51)/(1+(1-AY55)*(1-AX83)*(1+(1-AY55)*(1-AX84)*(1+(1-AY55)*(1-AX85)))),IF(AY53=4,(AU51*AY51)/(1+(1-AY55)*(1-AX83)*(1+(1-AY55)*(1-AX84)*(1+(1-AY55)*(1-AX85)*(1+(1-AY55)*(1-AX86))))),0)) -> 0 | AW83: =AT83*$R$81 -> 0 | AZ83: =AT83+AU83+AV83-AW83-AY83 -> 0
AS84: 2.5-3.5yr | AT84: =AZ83 -> 0 | AW84: =AT84*$R$81 -> 0 | AZ84: =AT84+AU84+AV84-AW84-AY84 -> 0
AS85: 3.5-4.5yr | AT85: =AZ84 -> 0 | AW85: =AT85*$R$81 -> 0 | AX85: =IF(AY53=3,100%,0) -> 0 | AY85: =(AT85-AW85)*AX85 -> 0 | AZ85: =AT85+AU85+AV85-AW85-AY85 -> 0
AS86: 4.5-5.5yr | AT86: =AZ85 -> 0 | AW86: =AT86*$R$81 -> 0 | AX86: =IF(AY53=4,100%,0) -> 0 | AY86: =AT86-AW86 -> 0 | AZ86: =AT86+AU86+AV86-AW86-AY86 -> 0
AT87: =AT82+AT83+AT84+AT85+AT86 -> 0 | AV87: =AV82+AV83+AV84+AV85+AV86 -> 0 | AW87: =AW82+AW83+AW84+AW85+AW86 -> 0 | AY87: =AY82+AY83+AY84+AY85+AY86 -> 0 | AZ87: =AZ82+AZ83+AZ84+AZ85+AZ86 -> 0
AS88: d.s.e's | AT88: =AT87*AE49 -> 0
C89: Animal Health
C90: Drench | E90: =G228 -> 3302 | G90: sheep | I90: Reset Rate> | J90: =GM_INFO!C21 | K90: =GM_INFO!C21 -> 0.432 | M90: /head | Q90: =K90*ROUND(E90,0) -> 1426.464
C91: Vaccinate | E91: =I228 -> 4776 | G91: sheep | I91: Reset Rate> | J91: =GM_INFO!C23 | K91: =GM_INFO!C23 -> 0.264 | M91: /head | Q91: 1260.864
C92: Blowfly control | E92: =K228 -> 0 | G92: sheep | I92: Reset Rate> | J92: =GM_INFO!C27 | K92: =GM_INFO!C27 -> 1.3 | M92: /head | Q92: 0
C93: Lice control | E93: =M228 -> 0 | G93: sheep | I93: Reset Rate> | J93: =GM_INFO!C19 | K93: =GM_INFO!C19 -> 1.524 | M93: /head | Q93: =K93*ROUND(E93,0) -> 0
C104: Stock purchases
C105: Purchases | E105: =ROUND(AD244,0) -> 7 | G105: rams | I105: Reset Rate> | J105: ='Cleanskin sheep input'!E30 | K105: ='Cleanskin Sheep Input'!E30 -> 1500 | M105: /head | Q105: =K105*E105 -> 10500
C117: Sale Costs
C118: Freight
C119: ewes | E119: =E210 -> 204 | G119: sheep | I119: Reset Rate> | J119: =GM_INFO!B111 | K119: =GM_INFO!B111 -> 4 | M119: /head | Q119: =K119*ROUND(E119,0) -> 816
C120: rams | E120: 6 | G120: sheep | I120: Reset Rate> | J120: =GM_INFO!B115 | K120: =GM_INFO!B115 -> 4 | M120: /head | Q120: 24
C121: hoggets | E121: 494 | G121: sheep | I121: Reset Rate> | J121: =GM_INFO!B116 | K121: =GM_INFO!B116 -> 4 | M121: /head | Q121: 1976
C122: lambs | E122: 750 | G122: sheep | I122: Reset Rate> | J122: =GM_INFO!B113 | K122: =GM_INFO!B113 -> 4 | M122: /head | Q122: =K122*ROUND(E122,0) -> 3000
C123: Stock selling charges
C124: Commission/insurance | I124: Reset Rate> | J124: =GM_INFO!C48 | K124: =GM_INFO!C48 -> 0.06 | M124: gross $ | Q124: =K124*Q35 -> 12549.6
C125: Yard fees | E125: =E214 -> 1454 | G125: head | I125: Reset Rate> | J125: =GM_INFO!C49 | K125: =GM_INFO!C49 -> 0.85 | M125: /head | Q125: =K125*ROUND(E125,0) -> 1235.9
C126: Levy trans-sheep | E126: =SUM(E210:E212) -> 704 | G126: head | I126: Reset Rate> | J126: =GM_INFO!C50 | K126: =GM_INFO!C50 -> 0.2 | M126: /head | Q126: 140.8
C127: Levy trans-lambs | E127: =E213 -> 750 | G127: head | I127: Reset Rate> | J127: =GM_INFO!C51 | K127: =GM_INFO!C51 -> 1.5 | M127: /head | Q127: 1125
C128: SA sheep industry levy | E128: =E214 -> 1454 | G128: head | I128: Reset Rate> | J128: =GM_INFO!C52 | K128: =GM_INFO!C52 -> 0.55 | M128: /head | Q128: 799.7
C143: Feed and Other Costs
C144: Hand Feeding | Q144: ='Cleanskin Sheep Input'!I84 -> 11250
C146: Insurance | E146: =E229 -> 471257.3315 | G146: value | I146: Reset Rate> | J146: =GM_INFO!B107 | K146: =GM_INFO!B107 -> 2 | M146: /$'000 | Q146: =K146/1000*E146 -> 942.514663
C147: Water | E147: =$E$197 -> 2752 | G147: DSE's | I147: Reset Rate> | J147: =GM_INFO!h79 | K147: =GM_INFO!H79 -> 2.5 | M147: /DSE's | Q147: =K147*E147 -> 6880
C148: Veh Fuel, R&M | E148: 2752 | G148: DSE's | I148: Reset Rate> | J148: =GM_INFO!h80 | K148: =GM_INFO!H80 -> 0.8 | M148: /DSE's | Q148: 2201.6
C149: Other | E149: 2752 | G149: DSE's | I149: Reset Rate> | J149: =GM_INFO!h81 | K149: =GM_INFO!H81 -> 0.5 | M149: /DSE's | Q149: 1376
C170: TOTAL VARIABLE COSTS | Q170: =SUM(Q48:Q166) -> 59829.44266
C172: GROSS MARGIN TOTAL | Q172: =Q37-Q170 -> 149330.5573
C174: GROSS MARGIN/DSE | Q174: =Q172/Q6 -> 54.26255717
C194: PRODUCTION DATA
C196: Stocking rate (DSE/Ha) | E196: 6 | K196: Culling Rate (% from each group) | AA196: SHEEP GROSS MARGIN
C197: Total DSE's | E197: =O228 -> 2752 | K197: Age Group | M197: Ewes | O197: Wethers | AA197: PRIME LAMB -
C198: SHEEP GRAZING AREA | E198: =E197/E196 -> 458.6666667 | K198: 0.5 | M198: =AF213 -> 0 | O198: =AF227 -> 1
C199: Number of ewes mated | E199: ='Cleanskin Sheep Input'!E7 -> 1000 | K199: 1.5 | M199: 0.6784060158 | O199: 0
C200: Ram percentage | E200: ='Cleanskin Sheep Input'!E11 -> 0.025 | K200: 2.5 | M200: 0.05 | O200: 0
C201: Years rams kept | E201: ='Cleanskin Sheep Input'!E12 -> 4 | K201: 3.5 | M201: 0.05 | O201: 0
C202: Flock death rate | E202: ='Cleanskin Sheep Input'!E13 -> 0.03 | K202: 4.5 | M202: 0.05 | O202: 0 | AA202: Ewes mated | AC202: ='Cleanskin Sheep Input'!E7 -> 1000 | AF202: Ram % | AG202: =E200 -> 0.025
B203: =VLOOKUP(r[0]c3&"No Ops",CHOOSE({1,2},tbl_ops[Name]&tbl_ops[Category],INDIRECT("tbl_ops["&var_crop&"]")),2,0) | C203: Average weaning rate | E203: =AC205 -> 1.5 | K203: 5.5 | M203: 0.05 | O203: 0 | AA203: Age at 1st mating | AC203: ='Cleanskin Sheep Input'!E8 -> 1.5 | AF203: Price of rams | AG203: ='Cleanskin Sheep Input'!E30 -> 1500
B204: =VLOOKUP(r[0]c3&"No Ops",CHOOSE({1,2},tbl_ops[Name]&tbl_ops[Category],INDIRECT("tbl_ops["&var_crop&"]")),2,0) | C204: Age wethers sold | E204: =AG205 -> 0.5 | K204: 6.5 | M204: 1 | O204: 0 | AA204: Age ewes sold | AC204: ='Cleanskin Sheep Input'!E9 -> 6.5 | AF204: Years rams kept | AG204: =E201 -> 4
B205: =VLOOKUP(r[0]c3&"No Ops",CHOOSE({1,2},tbl_ops[Name]&tbl_ops[Category],INDIRECT("tbl_ops["&var_crop&"]")),2,0) | AA205: Av Weaning % | AC205: ='Cleanskin Sheep Input'!E10 -> 1.5 | AF205: Age wethers sold | AG205: 0.5
B206: =VLOOKUP(r[0]c3&"No Ops",CHOOSE({1,2},tbl_ops[Name]&tbl_ops[Category],INDIRECT("tbl_ops["&var_crop&"]")),2,0) | AA206: dse/ewe | AC206: 1.6 | AF206: Flock death rate | AG206: =E202 -> 0.03
B208: =VLOOKUP(r[0]c3&var_rain,CHOOSE({1,2},tbl_ops[Name]&tbl_ops[Rainfall],INDIRECT("tbl_ops["&var_crop&"]")),2,0)
B209: =VLOOKUP(r[0]c3&var_rain,CHOOSE({1,2},tbl_ops[Name]&tbl_ops[Rainfall],INDIRECT("tbl_ops["&var_crop&"]")),2,0) | C209: SALES | E209: Number | G209: Price/hd | I209: Total
B210: =VLOOKUP(r[0]c3&var_rain,CHOOSE({1,2},tbl_ops[Name]&tbl_ops[Rainfall],INDIRECT("tbl_ops["&var_crop&"]")),2,0) | C210: c.f.a ewes | E210: =ROUND(AG220,0) -> 204 | G210: ='Cleanskin Sheep Input'!E18 -> 110 | I210: =ROUND(E210,0)*G210 -> 22440
B211: =VLOOKUP(r[0]c3&var_rain,CHOOSE({1,2},tbl_ops[Name]&tbl_ops[Rainfall],INDIRECT("tbl_ops["&var_crop&"]")),2,0) | C211: c.f.a rams | E211: =ROUND(AG244,0) -> 6 | G211: ='Cleanskin Sheep Input'!E19 -> 50 | I211: 300 | AA211: EWES | AB211: OPENING | AC211: NATURAL | AD211: PURCHASES | AE211: DEATHS | AF211: % sold | AG211: SALES | AH211: CLOSING
C212: Ewe hoggets | E212: =ROUND(AG222,0) -> 494 | G212: ='Cleanskin Sheep Input'!E20 -> 180 | I212: 88920 | AA212: AGE | AB212: NUMBERS | AC212: INCREASE | AF212: culled | AH212: NUMBERS
C213: Wether lambs | E213: =ROUND(AG230,0) -> 750 | G213: ='Cleanskin Sheep Input'!E21 -> 130 | I213: 97500 | AA213: 0-0.5yr | AC213: =AC202*AC205/2 -> 750 | AE213: =AB213*$AG$206 -> 0 | AF213: 0 | AG213: =AC213*AF213 -> 0 | AH213: =AB213+AC213+AD213-AE213-AG213 -> 750
C214: TOTAL | E214: =SUM(E210:E213) -> 1454 | G214: =I214/E214 -> 143.8514443 | I214: =SUM(I210:I213) -> 209160 | AA214: 0.5-1.5yr | AB214: =AH213 -> 750 | AE214: 22.5 | AF214: =(AB214*(1-AG206)-AB215)/(AB214-AE214) -> 0.6784060158 | AG214: =AB214-AE214-AB215 -> 493.5403765 | AH214: 233.9596235
AA215: 1.5-2.5yr | AB215: =AC202/(1+(1-AG206)*(1-AF215)*(1+(1-AG206)*(1-AF216)*(1+(1-AG206)*(1-AF217)*(1+(1-AG206)*(1-AF218))))) -> 233.9596235 | AE215: 7.018788705 | AF215: 0.05 | AG215: =(AB215-AE215)*AF215 -> 11.34704174 | AH215: 215.5937931
AA216: 2.5-3.5yr | AB216: =AH215 -> 215.5937931 | AE216: 6.467813792 | AF216: 0.05 | AG216: =(AB216-AE216)*AF216 -> 10.45629896 | AH216: 198.6696803
AA217: 3.5-4.5yr | AB217: =AH216 -> 198.6696803 | AE217: 5.960090409 | AF217: 0.05 | AG217: =(AB217-AE217)*AF217 -> 9.635479495 | AH217: 183.0741104
E218: Number of Times | AA218: 4.5-5.5yr | AB218: =AH217 -> 183.0741104 | AE218: 5.492223312 | AF218: =IF(AC204=5.5,1,5%) -> 0.05 | AG218: =(AB218-AE218)*AF218 -> 8.879094354 | AH218: =AB218+AC218+AD218-AE218-AG218 -> 168.7027927
C219: STOCK HEALTH REQUIREMENTS | E219: Number | G219: Drench | I219: Vacc. | K219: Blowfly | M219: Lice | O219: DSE | AA219: 5.5-6.5yr | AB219: =AH218 -> 168.7027927 | AE219: 5.061083782 | AF219: =IF(AC204=6.5,100%,0) -> 1 | AG219: =(AB219-AE219)*AF219 -> 163.641709 | AH219: 0
C220: Ewes | E220: =ROUND('Cleanskin Sheep Input'!E7,0) -> 1000 | G220: ='Cleanskin Sheep Input'!F57 -> 1 | I220: ='Cleanskin Sheep Input'!G57 -> 1 | K220: ='Cleanskin Sheep Input'!H57 -> 0 | M220: ='Cleanskin Sheep Input'!I57 -> 0 | O220: 1.8 | AA220: Ewes | AB220: =SUM(AB215:AB219) -> 1000 | AC220: =SUM(AC213:AC217) -> 750 | AD220: =SUM(AD213:AD219) -> 0 | AE220: =SUM(AE213:AE218) -> 47.43891622 | AG220: =SUM(AG215:AG219) -> 203.9596235 | AH220: =SUM(AH214:AH218) -> 1000
C221: Ewe hoggets | E221: =ROUND(AB222,0) -> 750 | G221: ='Cleanskin Sheep Input'!F58 -> 1 | I221: ='Cleanskin Sheep Input'!G58 -> 1 | K221: ='Cleanskin Sheep Input'!H58 -> 0 | M221: ='Cleanskin Sheep Input'!I58 -> 0 | O221: 1.2 | AA221: d.s.e's | AB221: =AB214+AC206*(AB215+AB216+AB217+AB218) -> 2080.075532
C222: Wether weaners | E222: =ROUND(AB228,0) -> 0 | G222: ='Cleanskin Sheep Input'!F59 -> 1 | I222: ='Cleanskin Sheep Input'!G59 -> 1 | K222: ='Cleanskin Sheep Input'!H59 -> 0 | M222: ='Cleanskin Sheep Input'!I59 -> 0 | O222: 0.8 | AA222: Ewe Hoggets | AB222: =AB214 -> 750 | AG222: =AG214 -> 493.5403765 | AH222: =AH213 -> 750
C223: Lambs | E223: =ROUND(AC213+AC227,0) -> 1500 | G223: ='Cleanskin Sheep Input'!F60 -> 1 | I223: ='Cleanskin Sheep Input'!G60 -> 2 | K223: ='Cleanskin Sheep Input'!H60 -> 0 | M223: ='Cleanskin Sheep Input'!I60 -> 0 | O223: 0 | AA223: Ewe lambs | AG223: =AG213 -> 0
C224: Rams | E224: =ROUND(AB244,0) -> 26 | G224: ='Cleanskin Sheep Input'!F61 -> 2 | I224: ='Cleanskin Sheep Input'!G61 -> 1 | K224: ='Cleanskin Sheep Input'!H61 -> 0 | M224: ='Cleanskin Sheep Input'!I61 -> 0 | O224: 2 | AA224: WETHERS | AB224: OPENING | AC224: NATURAL | AD224: PURCHASES | AE224: DEATHS | AF224: % sold | AG224: SALES | AH224: CLOSING
AA225: AGE | AB225: NUMBERS | AC225: INCREASE | AF225: culled | AH225: NUMBERS
AA227: 0-0.5yr | AC227: =AC202*AC205/2 -> 750 | AE227: =AB227*$AG$206 -> 0 | AF227: =IF(AG205=0.5,100%,0) -> 1 | AG227: =AC227*AF227 -> 750 | AH227: =AB227+AC227+AD227-AE227-AG227 -> 0
C228: TOTAL | E228: =SUM(E220:E227) -> 3276 | G228: =SUMPRODUCT($E$220:$E$227,G220:G227) -> 3302 | I228: =SUMPRODUCT($E$220:$E$227,I220:I227) -> 4776 | K228: =SUMPRODUCT($E$220:$E$227,K220:K227) -> 0 | M228: =SUMPRODUCT($E$220:$E$227,M220:M227) -> 0 | O228: =SUMPRODUCT($E$220:$E$227,O220:O227) -> 2752 | AA228: 0.5-1.5yr | AB228: =AH227 -> 0 | AE228: =AB228*$AG$206 -> 0 | AF228: =IF(AG205=1.5,100%,0) -> 0 | AG228: =(AB228-AE228)*AF228 -> 0 | AH228: =AB228+AC228+AD228-AE228-AG228 -> 0
C229: TOTAL VALUE | E229: =E228*G214 -> 471257.3315 | AA229: 1.5-2.5 | AB229: =AH228 -> 0 | AE229: =AB229*$AG$206 -> 0 | AF229: =IF(AG205=2.5,100%,0) -> 0 | AG229: =(AB229-AE229)*AF229 -> 0
AA230: Wth lambs | AB230: =AB227 -> 0 | AC230: =AC227 -> 750 | AD230: =AD227 -> 0 | AE230: 0 | AG230: =AG227 -> 750 | AH230: 0
AA231: Wth hgts | AB231: 0 | AC231: 0 | AD231: 0 | AE231: 0 | AG231: 0 | AH231: 0
AA232: Wethers | AB232: 0 | AC232: 0 | AD232: 0 | AE232: 0 | AG232: 0 | AH232: 0
AA233: d.s.e's | AB233: =AB231+AB232 -> 0
AA236: RAMS | AB236: OPENING | AC236: NATURAL | AD236: PURCHASES | AE236: DEATHS | AF236: % sold | AG236: SALES | AH236: CLOSING
AA237: AGE | AB237: NUMBERS | AC237: INCREASE | AF237: culled | AH237: NUMBERS
AA239: 0.5-1.5yr | AD239: =AB240/(1-AF239) -> 6.538387001 | AH239: =AB239+AC239+AD239-AE239-AG239 -> 6.538387001
AA240: 1.5-2.5yr | AB240: =IF(AG204=3,(AC202*AG202)/(1+(1-AG206)*(1-AF240)*(1+(1-AG206)*(1-AF241)*(1+(1-AG206)*(1-AF242)))),IF(AG204=4,(AC202*AG202)/(1+(1-AG206)*(1-AF240)*(1+(1-AG206)*(1-AF241)*(1+(1-AG206)*(1-AF242)*(1+(1-AG206)*(1-AF243))))),0)) -> 6.538387001 | AE240: =AB240*AG154 -> 0 | AF240: 0 | AG240: =(SUM(AB240:AD240)-AE240)*AF240 -> 0 | AH240: =AB240+AC240+AD240-AE240-AG240 -> 6.538387001
AA241: 2.5-3.5yr | AB241: =AH240 -> 6.538387001 | AE241: =AB241*$AG$206 -> 0.19615161 | AF241: 0 | AG241: =(SUM(AB241:AD241)-AE241)*AF241 -> 0 | AH241: =AB241+AC241+AD241-AE241-AG241 -> 6.342235391
AA242: 3.5-4.5yr | AB242: =AH241 -> 6.342235391 | AE242: =AB242*$AG$206 -> 0.1902670617 | AF242: =IF(AG204=3,100%,0) -> 0 | AG242: =(SUM(AB242:AD242)-AE242)*AF242 -> 0 | AH242: =AB242+AC242+AD242-AE242-AG242 -> 6.151968329
AA243: 4.5-5.5yr | AB243: =AH242 -> 6.151968329 | AE243: =AB243*$AG$206 -> 0.1845590499 | AF243: =IF(AG204=4,100%,0) -> 1 | AG243: =AB243-AE243 -> 5.967409279 | AH243: =AB243+AC243+AD243-AE243-AG243 -> 0
G244: Hay Cost ($/T) | I244: Kg Fed per Week | K244: No of Weeks Feeding | M244: Total Cost ($) | AB244: =AB239+AB240+AB241+AB242+AB243 -> 25.57097772 | AD244: =AD239+AD240+AD241+AD242+AD243 -> 6.538387001 | AE244: =AE239+AE240+AE241+AE242+AE243 -> 0.5709777216 | AG244: =AG239+AG240+AG241+AG242+AG243 -> 5.967409279 | AH244: =AH239+AH240+AH241+AH242+AH243 -> 25.57097772
C245: FEEDING | E245: Number | AA245: d.s.e's | AB245: =AB244*2 -> 51.14195544
C246: Ewes | E246: ='Cleanskin Sheep Input'!E69 -> 1000 | G246: ='Cleanskin Sheep Input'!F69 -> 180 | I246: ='Cleanskin Sheep Input'!G69 -> 2 | K246: ='Cleanskin Sheep Input'!H69 -> 10 | M246: =(E246*G246*I246*K246)/1000 -> 3600
C247: Weaner | E247: ='Cleanskin Sheep Input'!E70 -> 0 | G247: ='Cleanskin Sheep Input'!F70 -> 0 | I247: ='Cleanskin Sheep Input'!G70 -> 0 | K247: ='Cleanskin Sheep Input'!H70 -> 0 | M247: =(E247*G247*I247*K247)/1000 -> 0
C248: Ewe hoggets | E248: ='Cleanskin Sheep Input'!E71 -> 0 | G248: ='Cleanskin Sheep Input'!F71 -> 0 | I248: ='Cleanskin Sheep Input'!G71 -> 0 | K248: ='Cleanskin Sheep Input'!H71 -> 0 | M248: 0
C249: Lambs | E249: ='Cleanskin Sheep Input'!E72 -> 0 | G249: ='Cleanskin Sheep Input'!F72 -> 0 | I249: ='Cleanskin Sheep Input'!G72 -> 0 | K249: ='Cleanskin Sheep Input'!H72 -> 0 | M249: 0
C250: Rams | E250: ='Cleanskin Sheep Input'!E73 -> 0 | G250: ='Cleanskin Sheep Input'!F73 -> 0 | I250: ='Cleanskin Sheep Input'!G73 -> 0 | K250: ='Cleanskin Sheep Input'!H73 -> 0 | M250: 0
G251: Grain Cost ($/T) | I251: Kg Fed per Week | K251: No of Weeks Feeding | M251: Total Cost ($)
E252: Number
C253: Ewes | E253: ='Cleanskin Sheep Input'!E78 -> 1000 | G253: ='Cleanskin Sheep Input'!F78 -> 225 | I253: ='Cleanskin Sheep Input'!G78 -> 2.4 | K253: ='Cleanskin Sheep Input'!H78 -> 10 | M253: =(E253*G253*I253*K253)/1000 -> 5400
C254: Weaner | E254: ='Cleanskin Sheep Input'!E79 -> 750 | G254: ='Cleanskin Sheep Input'!F79 -> 300 | I254: ='Cleanskin Sheep Input'!G79 -> 1 | K254: ='Cleanskin Sheep Input'!H79 -> 10 | M254: =(E254*G254*I254*K254)/1000 -> 2250
C255: Ewe hoggets | E255: ='Cleanskin Sheep Input'!E80 -> 0 | G255: ='Cleanskin Sheep Input'!F80 -> 0 | I255: ='Cleanskin Sheep Input'!G80 -> 0 | K255: ='Cleanskin Sheep Input'!H80 -> 0 | M255: 0
C256: Lambs | E256: ='Cleanskin Sheep Input'!E81 -> 0 | G256: ='Cleanskin Sheep Input'!F81 -> 0 | I256: ='Cleanskin Sheep Input'!G81 -> 0 | K256: ='Cleanskin Sheep Input'!H81 -> 0 | M256: 0
C257: Rams | E257: ='Cleanskin Sheep Input'!E82 -> 0 | G257: ='Cleanskin Sheep Input'!F82 -> 0 | I257: ='Cleanskin Sheep Input'!G82 -> 0 | K257: ='Cleanskin Sheep Input'!H82 -> 0 | M257: 0
C258: TOTAL FEED COST | M258: =SUM(M246:M250,M253:M257) -> 11250
C263: GM SENSITIVITY | AB263: Water,Fuel,Other | AE263: =SUM(Q146:Q149) -> 11400.11466 | AF263: Lamb Costs | AG263: No: | AH263: per head
C264: Gross Margin/DSE | E264: Average Weaning % | AB264: Animal health | AE264: =((E220*G220+E224*G224+AB215*G221)*K90+(E220*I220+E224*I224+AB215*I221)*K91+(E220*K220+E224*K224+AB215*K221)*K93) -> 888.163898
G265: 1.2 | I265: 1.35 | K265: 1.5 | M265: 1.65 | O265: 1.8 | Q265: 1.9 | AB265: Stock Purchase | AE265: =Q105 -> 10500 | AF265: Marking | AG265: =E199*G265 -> 1200 | AH265: =SUM(K76:K77) -> 1.55
E266: 110 | G266: =(($E$199*(G$265*100)*$E266/200+($E$199*(G$265*100)/200-$AB$215-$AE$214)*$G$212)*(1-$K$124)+SUM($I$210:$I$211)-$AE$273-($E$199*(G$265*100)*$AH$270/100)-($E$199*(G$265*100)/200-$AB$215-$AE$214)*$AC$285)/$E$197 -> 35.4400156 | I266: 42.29096037 | K266: 49.14190514 | M266: 55.9928499 | O266: 62.84379467 | Q266: 67.41109118 | AB266: Freight | AC266: sheep | AE266: =SUM(Q119:Q120) -> 840 | AF266: Animal health | AH266: =G223*K90+I223*K91+K223*K93 -> 0.96
E267: 115 | G267: 36.4647249 | I267: 43.44375833 | K267: 50.42279176 | M267: 57.40182519 | O267: 64.38085862 | Q267: 69.03354758 | AC267: Wool | AF267: Freight | AH267: =K122/2 -> 2
C268: Average Sheep Sale Price($/hd) | E268: 120 | G268: 37.4894342 | I268: 44.5965563 | K268: 51.70367839 | M268: 58.81080048 | O268: 65.91792258 | Q268: 70.65600397 | AB268: Commission on livestock sales | AE268: =SUM(I210:I211)*K124 -> 1364.4 | AF268: Yard Fees | AH268: =K125/2 -> 0.425
E269: 125 | G269: 38.51414351 | I269: 45.74935426 | K269: 52.98456502 | M269: 60.21977577 | O269: 67.45498653 | Q269: 72.27846037 | AB269: Yard fees | AE269: =SUM(E210:E211)*K125 -> 178.5 | AF269: Levies | AH269: =SUM(K127:K128)/2 -> 1.025
E270: 130 | G270: 39.53885281 | I270: 46.90215223 | K270: 54.26545165 | M270: 61.62875107 | O270: 68.99205048 | Q270: 73.90091676 | AB270: Levies | AE270: =SUM(E210:E211)*K126 -> 42 | AF270: TOTAL | AH270: =SUM(AH265:AH269) -> 5.96
E271: 135 | G271: 40.56356211 | I271: 48.05495019 | K271: 55.54633827 | M271: 63.03772636 | O271: 70.52911444 | Q271: 75.52337316 | AB271: SASheep Industry | AE271: =SUM(E210:E211)*K128 -> 115.5
E272: 140 | G272: 41.58827141 | I272: 49.20774816 | K272: 56.8272249 | M272: 64.44670165 | O272: 72.06617839 | Q272: 77.14582955 | AB272: Feed & other costs | AE272: =M253+M246+AB215*G254*I254*K254/1000 -> 9701.878871
E273: 145 | G273: 42.61298072 | I273: 50.36054612 | K273: 58.10811153 | M273: 65.85567694 | O273: 73.60324234 | Q273: 78.76828595 | AE273: =SUM(AE263:AE272) -> 35030.55743
E274: 150 | G274: 43.63769002 | I274: 51.51334409 | K274: 59.38899816 | M274: 67.26465223 | O274: 75.1403063 | Q274: 80.39074234
E275: 155 | G275: 44.66239932 | I275: 52.66614205 | K275: 60.66988479 | M275: 68.67362752 | O275: 76.67737025 | Q275: 82.01319874
E276: 160 | G276: 45.68710862 | I276: 53.81894002 | K276: 61.95077141 | M276: 70.08260281 | O276: 78.2144342 | Q276: 83.63565514
AC277: Sale Ewe Hog Cost
C279: FLOCK STRUCTURE | E279: This table shows the number of merino sheep in each age group at mating | AB279: Feed | AC279: =G254*K254/1000 -> 3
E280: Age Group | AC280: =G221*K90+I221*K91+K221*K92+M221*K93 -> 0.696
C281: Class of Sheep | E281: 0.5 y.o. | G281: 1.5 y.o. | I281: 2.5 y.o. | K281: 3.5 y.o. | M281: 4.5 y.o. | O281: 5.5 y.o. | Q281: 6.5 y.o. | AC281: =K121 -> 4
C282: Ewes | E282: =$AB214 -> 750 | G282: =$AB215 -> 233.9596235 | I282: =$AB216 -> 215.5937931 | K282: =$AB217 -> 198.6696803 | M282: =$AB218 -> 183.0741104 | O282: =$AB219 -> 168.7027927 | Q282: 0 | AC282: =K125 -> 0.85
C283: Wethers | E283: =$AB228 -> 0 | G283: =$AB229 -> 0 | I283: 0 | K283: 0 | M283: 0 | O283: 0 | Q283: 0 | AC283: =K126 -> 0.2
C284: Rams | G284: =$AB240 -> 6.538387001 | I284: =$AB241 -> 6.538387001 | K284: =$AB242 -> 6.342235391 | M284: =$AB243 -> 6.151968329 | O284: 0 | Q284: 0 | AC284: =K128 -> 0.55
AB285: Total | AC285: =SUM(AC279:AC284) -> 9.296

Sheet GM_INFO (hidden)
A1: G.M. LINK SHEET
A3: COMMENT: spreadsheet is protected EXCEPT for highlighted cells,
A4: i.e. those cells which can be changed.
A6: DATE | B6: =m_year -> 2018
A10: _______________________________________________________________________________________________________________________
A11: Todays Date: | B11: =NOW() -> 2018-03-06T09:34:18.820
A14: ="FARM COSTS - "&m_year -> FARM COSTS - 2018
A17: SHEEP
A18: Lice Control | B18: Avenge | C18: 19.05 | D18: /litre
C19: 1.524 | D19: /80ml dose
A20: Drench | B20: Triguard | C20: 36 | D20: /litre
C21: =C20*0.012 -> 0.432 | D21: /10ml dose
A22: Vaccine | B22: Glanvac 3 | C22: 66 | D22: /250ml
C23: 0.264 | D23: /1ml dose
B24: Glanvac 6 | C24: 82 | D24: 250ml
C25: 0.33 | D25: /1ml dose
A26: Blowfly Control | B26: Clik | C26: 54.25 | D26: /litre
C27: 1.3 | D27: /24 ml dose
A28: Wool packs | B28: nylon | C28: 11.2 | D28: ea
A30: Shearing | B30: Sheep | C30: 301.96 | D30: /100
B31: rams | C31: 603.92 | D31: /100
B32: shed labour | C32: 227.68 | D32: /day
B33: wool classer | C33: 287.71 | D33: day
B34: superannuation | C34: 0.095 | D34: wages
B35: Work Cover-Allow | C35: 0.04 | D35: total
B36: shed sundries | C36: 0.15 | D36: /head
A38: Crutching | B38: sheep | C38: 87.57 | D38: /100
B39: rams | C39: 175.14 | D39: /100
A41: lamb marking | B41: mulesing / materials | C41: 1.4 | D41: /head
B42: marking only | C42: 1.15 | D42: /head
B43: ear tags | C43: 0.4 | D43: /head
B44: pain relief | C44: 0.45 | D44: /head
A45: Stock purchaces | B45: purchase rams | C45: 1000 | D45: /head
B46: purchase wethers | C46: 80 | D46: /head
A48: Stock selling | B48: commission/insurance | C48: 0.06
B49: yard fees | C49: 0.85 | D49: /head
B50: sheep transaction levy | C50: 0.2 | D50: /head
B51: lamb transaction levy | C51: 1.5 | D51: /head
B52: SA sheep industry levy | C52: 0.55 | D52: /head
B53: wool brokerage / testing / insurance | C53: 0.27 | D53: /kg
B54: wool levy | C54: 0.02
A60: BEEF | L60: BEEF
A61: Drench (backline) | B61: Genesis Pour-on | D61: 124 | E61: /litre
D62: 4.11 | E62: /25ml dose
A63: 7 in 1 vaccine | D63: 206 | E63: /250 ml
D64: 0.47 | E64: /2.5ml dose
A67: Trace Element treatments | D67: 3 | E67: /head
A68: HGP implant | D68: 1.75
A69: Vitamin injection | D69: 1.3
A73: NLIS Breeder Tags (incl levy) | D73: 4.75 | E73: each
B75: freight cattle in | D75: 30 | E75: /head
B76: freight cattle out | D76: 30 | E76: /head
B77: Cattle levy | D77: 5 | E77: /head
D78: Prime Lambs | E78: Prime Lambs Cereal | F78: Merino SR Cereal | G78: Wethers Cereal | H78: Cleanskin | I78: Beef Cereal
A79: FEED & OTHER COSTS | B79: water | C79: /DSE | D79: 1.5 | E79: 2.5 | F79: 2.5 | G79: 2.5 | H79: 2.5 | I79: 2.5
B80: Veh fuel, R&M | C80: /DSE | D80: 1.2 | E80: 1.2 | F80: 1.2 | G80: 1 | H80: 0.8 | I80: 1
B81: other | C81: /DSE | D81: 0.5 | E81: 0.5 | F81: 0.5 | G81: 0.5 | H81: 0.5 | I81: 0.5
B82: hay | C82: /tonne incl freight | D82: 180
B83: Feed Cereal grain | C83: /tonne incl freight | D83: 225
B84: Lamb Feedlot Mix | C84: /tonne incl freight | D84: 300
B85: Blocks/ Mineral Mix | D85: 5
A89: ="FARM COSTS - "&m_year -> FARM COSTS - 2018
A93: STOCK RETURNS | F93: Budget Base (Greasy)
A94: WOOL- High Rainfall 28 mic 70%Yield | F94: 525
A95: - High Rainfall 19.5 mic 70% Yld | F95: 1309
A96: - Med Rainfall 21 mic 68% Yield | F96: 1040
A97: - Low Rainfall 22 mic 63% Yield | F97: 920
A98: - Crossbred Ram 32 mic | F98: 400
A101: ="FARM COSTS - "&m_year -> FARM COSTS - 2018
A105: INSURANCE COSTS
A106: Livestock
A107: Sheep and cattle | B107: 2 | C107: /$1,000 insured
A110: FREIGHT COSTS | B110: Prime Lambs
A111: culls | B111: 4
A112: ewes | B112: 4
A113: prime lambs | B113: 4
A114: bales | B114: 17
A115: rams | B115: 4
A116: hoggets | B116: 4
A119: BEEF
A120: Vealers | B120: 270 | C120: kg liveweight @ | D120: 3.2 | E120: /kg L/W
A121: Yearling | B121: 400 | C121: kg liveweight @ | D121: 3 | E121: /kg L/W
A122: Cows | B122: 550 | C122: kg liveweight @ | D122: 2 | E122: /kg L/W

Sheet Beef Input (hidden)
C2: ="BEEF GROSS MARGIN - "&TEXT(m_year,"0000") -> BEEF GROSS MARGIN - 2018
C4: GENERAL INFORMATION
C5: Cells with yellow highlight can be changed.
C7: Breeding Cow | E7: 14.5 | F7: DSE
C8: Calf Weaning | E8: 0.9
C9: Herd Deaths | E9: 0.03
C10: Cows c.f.a | E10: 10 | F10: years old
C11: Carry over calf | E11: 8 | F11: DSE
C12: Weaned @ | E12: 8 | F12: months
C13: Heifers mated @ | E13: 15 | F13: months
C14: Stocking rate | E14: 5 | F14: DSE/ha
C15: Cow breeding herd | E15: 100
C16: Bull Percentage | E16: 0.03
C17: Bulls bought for | E17: 6000
C18: sold for | E18: 1500
C19: after | E19: 3 | F19: years
C20: carryover to heavier weights | E20: 0.5 | F20: including heifer replacements
C21: months extra carry over | E21: 6
C22: Drench cows | E22: 2 | F22: x
C23: Drench calves | E23: 1 | F23: x
C25: Supplementary Feed
C26: Hay | E26: 68 | F26: tonne
C27: Grain | E27: 0 | F27: tonne

Sheet Beef (hidden)
C1: BEEF
C2: =UPPER(Var_Animal)&" GROSS MARGIN - "&TEXT(m_year,"0000") -> BEEF GROSS MARGIN - 2018
C4: ASSUMPTIONS | E4: (Breeding young cattle for local trade, grass fattened)
C7: Breeding Cow | E7: ='Beef Input'!$E$7 -> 14.5 | G7: DSE | O7: Cow breeding herd | Q7: ='Beef Input'!E15 -> 100
C8: Calf Weaning | E8: ='Beef Input'!E8 -> 0.9 | O8: Cows replaced per year | Q8: =(Q7/E10)+(Q7*E9) -> 13
C9: Herd Deaths | E9: ='Beef Input'!E9 -> 0.03 | O9: Bull Percentage | Q9: ='Beef Input'!E16 -> 0.03
C10: Cows c.f.a | E10: ='Beef Input'!E10 -> 10 | G10: years old | O10: Bulls bought for | Q10: ='Beef Input'!E17 -> 6000
C11: Uses | E11: =Q8 -> 13 | G11: heifers as replacements | O11: sold for | Q11: ='Beef Input'!E18 -> 1500
C12: Carry over calf | E12: ='Beef Input'!E11 -> 8 | G12: DSE | O12: after | Q12: ='Beef Input'!E19 -> 3 | R12: years
C13: Weaned @ | E13: ='Beef Input'!E12 -> 8 | G13: months | O13: carryover to heavier weights | Q13: ='Beef Input'!E20 -> 0.5
C14: Heifers mated @ | E14: ='Beef Input'!E13 -> 15 | G14: months | O14: months extra carry over | Q14: ='Beef Input'!E21 -> 6
C15: Stocking rate | E15: ='Beef Input'!E14 -> 5 | G15: DSE/ha | O15: Herd DSE | Q15: =(Q7*E7)+(Q7*Q9*20)+(E11*E12*((E14-E13)/12))+(E11*E7*(24-E14)/12)+(E36*E12) -> 1960.041667
C16: Area required | E16: =Q15/E15 -> 392.0083333 | G16: hectares | O16: Drench cows | Q16: ='Beef Input'!E22 -> 2
O17: Drench calves | Q17: ='Beef Input'!E23 -> 1
C32: INCOME | Q32: $
I34: kg liveweight | M34: /kg L/W
B35: Stock Sales | D35: vealers | E35: =(1-Q13)*(Q7*E8) -> 45 | G35: Reset Rate> | H35: =GM_INFO!B120 | I35: =GM_INFO!B120 -> 270 | K35: Reset Rate> | L35: =GM_INFO!D120 | M35: =GM_INFO!D120 -> 3.2 | Q35: =M35*I35*E35 -> 38880
D36: yearlings | E36: =ROUND(((Q7*E8)-E35-E11)*(1-E9),0) -> 31 | G36: Reset Rate> | H36: =GM_INFO!B121 | I36: =GM_INFO!B121 -> 400 | K36: Reset Rate> | L36: =GM_INFO!D121 | M36: =GM_INFO!D121 -> 3 | Q36: =M36*I36*E36 -> 37200
B37: Culls | D37: cows | E37: =ROUND(Q8*(1-E9)^E10,0) -> 10 | G37: Reset Rate> | H37: =GM_INFO!B122 | I37: =GM_INFO!B122 -> 550 | K37: Reset Rate> | L37: =GM_INFO!D122 | M37: =GM_INFO!D122 -> 2 | Q37: 11000
D38: bull | E38: =ROUND(Q7*Q9/Q12,0) -> 1 | Q38: ='Beef Input'!E18*E38 -> 1500
C41: Gross Income | Q41: =SUM(Q35:Q38) -> 88580
C46: VARIABLE COSTS
C75: Bull Purchases | K75: Rate
C76: No. of Bulls | E76: =E38 -> 1 | G76: bulls | I76: Reset Rate> | J76: ='Beef Input'!E17 | K76: ='Beef Input'!E17 -> 6000 | M76: total | Q76: =K76*ROUND(E76,0) -> 6000
C89: Veterinary & Medicines
C90: Drench - cows 2x calves 1x | E90: =(Q7*Q16)+Q17*(Q7*E8) -> 290 | G90: head | I90: Reset Rate> | J90: =GM_INFO!d62 | K90: =GM_INFO!D62 -> 4.11 | M90: /head | Q90: =K90*ROUND(E90,0) -> 1191.9
C91: Ear Tags | E91: =Q7*E8 -> 90 | G91: head | I91: Reset Rate> | J91: =GM_INFO!d73 | K91: =GM_INFO!D73 -> 4.75 | M91: /tag | Q91: 427.5
C92: Lice Treatments | E92: =Q7 -> 100 | G92: head | I92: Reset Rate> | J92: =GM_INFO!d62 | K92: =GM_INFO!D62 -> 4.11 | M92: /dose | Q92: 411
C93: Vaccine (5 in 1) | E93: =Q7*E8*2 -> 180 | G93: head | I93: Reset Rate> | J93: =GM_INFO!d64 | K93: =GM_INFO!D64 -> 0.47 | M93: /dose | Q93: 84.6
C117: Sale Costs and other
C119: Insurance | E119: =(Q7*800)+(3*2500)+(Q7*E8*350) -> 119000 | I119: Reset Rate> | J119: =GM_INFO!B107 | K119: =GM_INFO!B107 -> 2 | M119: /$1000 | Q119: =K119*ROUND(E119,0)/1000 -> 238
C120: Water | E120: =Q15 -> 1960.041667 | G120: dse's | I120: Reset Rate> | J120: =GM_INFO!i79 | K120: =GM_INFO!I79 -> 2.5 | Q120: =K120*ROUND(E120,0) -> 4900
C121: Veh Fuel, R&M | E121: =Q15 -> 1960.041667 | G121: dse's | I121: Reset Rate> | J121: =GM_INFO!i80 | K121: =GM_INFO!I80 -> 1 | Q121: 1960
C122: Other | E122: =Q15 -> 1960.041667 | G122: dse's | I122: Reset Rate> | J122: =GM_INFO!i81 | K122: =GM_INFO!I81 -> 0.5 | Q122: 980
C123: Transport: | E123: =SUM(E35:E38) -> 87 | G123: head | I123: Reset Rate> | J123: =GM_INFO!d76 | K123: =GM_INFO!D76 -> 30 | M123: /head | Q123: =K123*ROUND(E123,0) -> 2610
C125: Commission | I125: Reset Rate> | J125: =GM_INFO!C48 | K125: =GM_INFO!C48 -> 0.06 | Q125: =Q41*K125 -> 5314.8
C126: Levies | I126: Reset Rate> | J126: =GM_INFO!d77 | K126: =GM_INFO!D77 -> 5 | M126: /head | Q126: =K126*SUM(E35:E38) -> 435
C143: Supplementary Feed
C145: Grain
C146: Hay | E146: ='Beef Input'!E26 -> 68 | G146: tonne | I146: Reset Rate> | J146: =GM_INFO!d82 | K146: =GM_INFO!D82 -> 180 | M146: /tonne | Q146: =K146*E146 -> 12240
C147: Grain | E147: ='Beef Input'!E27 -> 0 | G147: tonne | I147: Reset Rate> | J147: =GM_INFO!d83 | K147: =GM_INFO!D83 -> 225 | M147: /tonne | Q147: =K147*E147 -> 0
C148: Blocks/ Mineral Mix | E148: =Q7 -> 100 | G148: @ | I148: Reset Rate> | J148: =GM_INFO!d85 | K148: =GM_INFO!D85 -> 5 | M148: /head | Q148: 500
C170: TOTAL VARIABLE COSTS | Q170: =SUM(Q48:Q166) -> 37292.8
C172: GROSS MARGIN TOTAL | Q172: =Q41-Q170 -> 51287.2
C174: GROSS MARGIN/DSE | Q174: =$Q$172/Q15 -> 26.16638252
C176: GROSS MARGIN/COW | Q176: =$Q$172/Q7 -> 512.872
C178: GROSS MARGIN/HA | Q178: =$Q$172/E16 -> 130.8319126
B203: =VLOOKUP(r[0]c3&"No Ops",CHOOSE({1,2},tbl_ops[Name]&tbl_ops[Category],INDIRECT("tbl_ops["&var_crop&"]")),2,0)
B204: =VLOOKUP(r[0]c3&"No Ops",CHOOSE({1,2},tbl_ops[Name]&tbl_ops[Category],INDIRECT("tbl_ops["&var_crop&"]")),2,0)
B205: =VLOOKUP(r[0]c3&"No Ops",CHOOSE({1,2},tbl_ops[Name]&tbl_ops[Category],INDIRECT("tbl_ops["&var_crop&"]")),2,0)
B206: =VLOOKUP(r[0]c3&"No Ops",CHOOSE({1,2},tbl_ops[Name]&tbl_ops[Category],INDIRECT("tbl_ops["&var_crop&"]")),2,0)
B208: =VLOOKUP(r[0]c3&var_rain,CHOOSE({1,2},tbl_ops[Name]&tbl_ops[Rainfall],INDIRECT("tbl_ops["&var_crop&"]")),2,0)
B209: =VLOOKUP(r[0]c3&var_rain,CHOOSE({1,2},tbl_ops[Name]&tbl_ops[Rainfall],INDIRECT("tbl_ops["&var_crop&"]")),2,0)
B210: =VLOOKUP(r[0]c3&var_rain,CHOOSE({1,2},tbl_ops[Name]&tbl_ops[Rainfall],INDIRECT("tbl_ops["&var_crop&"]")),2,0)
B211: =VLOOKUP(r[0]c3&var_rain,CHOOSE({1,2},tbl_ops[Name]&tbl_ops[Rainfall],INDIRECT("tbl_ops["&var_crop&"]")),2,0)
C259: GM SENSITIVITY
C260: Gross Margin | E260: Per Cow ($/kg Liveweight(yearlings/steers))
G261: 2 | I261: 2.5 | K261: 3 | M261: 3.5 | O261: 4
E262: 0.6 | G262: =(((($Q$7*$E262*$Q$13-$E$11-1)*G$261*$I$36)+(($Q$7*$E262)*(1-$Q$13)*G$261*$I$35)+($E$37*$I$37*$M$37)+$Q$38)-$Q$170)/$Q$7 -> 42.072 | I262: =(((($Q$7*$E262*$Q$13-$E$11-1)*I$261*$I$36)+(($Q$7*$E262)*(1-$Q$13)*I$261*$I$35)+($E$37*$I$37*$M$37)+$Q$38)-$Q$170)/$Q$7 -> 114.572 | K262: =(((($Q$7*$E262*$Q$13-$E$11-1)*K$261*$I$36)+(($Q$7*$E262)*(1-$Q$13)*K$261*$I$35)+($E$37*$I$37*$M$37)+$Q$38)-$Q$170)/$Q$7 -> 187.072 | M262: =(((($Q$7*$E262*$Q$13-$E$11-1)*M$261*$I$36)+(($Q$7*$E262)*(1-$Q$13)*M$261*$I$35)+($E$37*$I$37*$M$37)+$Q$38)-$Q$170)/$Q$7 -> 259.572 | O262: =(((($Q$7*$E262*$Q$13-$E$11-1)*O$261*$I$36)+(($Q$7*$E262)*(1-$Q$13)*O$261*$I$35)+($E$37*$I$37*$M$37)+$Q$38)-$Q$170)/$Q$7 -> 332.072
E263: 0.65 | G263: =(((($Q$7*$E263*$Q$13-$E$11-1)*G$261*$I$36)+(($Q$7*$E263)*(1-$Q$13)*G$261*$I$35)+($E$37*$I$37*$M$37)+$Q$38)-$Q$170)/$Q$7 -> 75.572 | I263: =(((($Q$7*$E263*$Q$13-$E$11-1)*I$261*$I$36)+(($Q$7*$E263)*(1-$Q$13)*I$261*$I$35)+($E$37*$I$37*$M$37)+$Q$38)-$Q$170)/$Q$7 -> 156.447 | K263: =(((($Q$7*$E263*$Q$13-$E$11-1)*K$261*$I$36)+(($Q$7*$E263)*(1-$Q$13)*K$261*$I$35)+($E$37*$I$37*$M$37)+$Q$38)-$Q$170)/$Q$7 -> 237.322 | M263: =(((($Q$7*$E263*$Q$13-$E$11-1)*M$261*$I$36)+(($Q$7*$E263)*(1-$Q$13)*M$261*$I$35)+($E$37*$I$37*$M$37)+$Q$38)-$Q$170)/$Q$7 -> 318.197 | O263: =(((($Q$7*$E263*$Q$13-$E$11-1)*O$261*$I$36)+(($Q$7*$E263)*(1-$Q$13)*O$261*$I$35)+($E$37*$I$37*$M$37)+$Q$38)-$Q$170)/$Q$7 -> 399.072
C264: Weaning % | E264: 0.7 | G264: 109.072 | I264: 198.322 | K264: 287.572 | M264: 376.822 | O264: 466.072
E265: 0.75 | G265: 142.572 | I265: 240.197 | K265: 337.822 | M265: 435.447 | O265: 533.072
E266: 0.8 | G266: 176.072 | I266: 282.072 | K266: 388.072 | M266: 494.072 | O266: 600.072
E267: 0.85 | G267: 209.572 | I267: 323.947 | K267: 438.322 | M267: 552.697 | O267: 667.072
E268: 0.9 | G268: 243.072 | I268: 365.822 | K268: 488.572 | M268: 611.322 | O268: 734.072
E269: 0.95 | G269: 276.572 | I269: 407.697 | K269: 538.822 | M269: 669.947 | O269: 801.072
E270: 1 | G270: 310.072 | I270: 449.572 | K270: 589.072 | M270: 728.572 | O270: 868.072
C275: GM SENSITIVITY
C276: Gross Margin | E276: Per DSE ($/kg Liveweight(yearlings/steers))
G277: 2 | I277: 2.5 | K277: 3 | M277: 3.5 | O277: 4
E278: 0.6 | G278: =(((($Q$7*$E278*$Q$13-$E$11-1)*G$277*$I$36)+(($Q$7*$E278)*(1-$Q$13)*G$277*$I$35)+($E$37*$I$37*$M$37)+$Q$38)-$Q$170)/$Q$15 -> 2.146484981 | I278: =(((($Q$7*$E278*$Q$13-$E$11-1)*I$277*$I$36)+(($Q$7*$E278)*(1-$Q$13)*I$277*$I$35)+($E$37*$I$37*$M$37)+$Q$38)-$Q$170)/$Q$15 -> 5.84538594 | K278: =(((($Q$7*$E278*$Q$13-$E$11-1)*K$277*$I$36)+(($Q$7*$E278)*(1-$Q$13)*K$277*$I$35)+($E$37*$I$37*$M$37)+$Q$38)-$Q$170)/$Q$15 -> 9.544286899 | M278: =(((($Q$7*$E278*$Q$13-$E$11-1)*M$277*$I$36)+(($Q$7*$E278)*(1-$Q$13)*M$277*$I$35)+($E$37*$I$37*$M$37)+$Q$38)-$Q$170)/$Q$15 -> 13.24318786 | O278: =(((($Q$7*$E278*$Q$13-$E$11-1)*O$277*$I$36)+(($Q$7*$E278)*(1-$Q$13)*O$277*$I$35)+($E$37*$I$37*$M$37)+$Q$38)-$Q$170)/$Q$15 -> 16.94208882
E279: 0.65 | G279: =(((($Q$7*$E279*$Q$13-$E$11-1)*G$277*$I$36)+(($Q$7*$E279)*(1-$Q$13)*G$277*$I$35)+($E$37*$I$37*$M$37)+$Q$38)-$Q$170)/$Q$15 -> 3.855632321 | I279: =(((($Q$7*$E279*$Q$13-$E$11-1)*I$277*$I$36)+(($Q$7*$E279)*(1-$Q$13)*I$277*$I$35)+($E$37*$I$37*$M$37)+$Q$38)-$Q$170)/$Q$15 -> 7.981820114 | K279: =(((($Q$7*$E279*$Q$13-$E$11-1)*K$277*$I$36)+(($Q$7*$E279)*(1-$Q$13)*K$277*$I$35)+($E$37*$I$37*$M$37)+$Q$38)-$Q$170)/$Q$15 -> 12.10800791 | M279: =(((($Q$7*$E279*$Q$13-$E$11-1)*M$277*$I$36)+(($Q$7*$E279)*(1-$Q$13)*M$277*$I$35)+($E$37*$I$37*$M$37)+$Q$38)-$Q$170)/$Q$15 -> 16.2341957 | O279: =(((($Q$7*$E279*$Q$13-$E$11-1)*O$277*$I$36)+(($Q$7*$E279)*(1-$Q$13)*O$277*$I$35)+($E$37*$I$37*$M$37)+$Q$38)-$Q$170)/$Q$15 -> 20.3603835
C280: Weaning % | E280: 0.7 | G280: 5.56477966 | I280: 10.11825429 | K280: 14.67172892 | M280: 19.22520355 | O280: 23.77867817
E281: 0.75 | G281: 7.273927 | I281: 12.25468846 | K281: 17.23544993 | M281: 22.21621139 | O281: 27.19697285
E282: 0.8 | G282: 8.983074339 | I282: 14.39112264 | K282: 19.79917094 | M282: 25.20721923 | O282: 30.61526753
E283: 0.85 | G283: 10.69222168 | I283: 16.52755681 | K283: 22.36289195 | M283: 28.19822708 | O283: 34.03356221
E284: 0.9 | G284: 12.40136902 | I284: 18.66399099 | K284: 24.92661295 | M284: 31.18923492 | O284: 37.45185689
E285: 0.95 | G285: 14.11051636 | I285: 20.80042516 | K285: 27.49033396 | M285: 34.18024277 | O285: 40.87015157
E286: 1 | G286: 15.8196637 | I286: 22.93685934 | K286: 30.05405497 | M286: 37.17125061 | O286: 44.28844625
